Service,Expense Subtype,Merchant Name,Expense Invoice Date,Total Expense
OLDER PEOPLE,Financial Services,ATM BARCLAYS BANK PLC,05/01/2015,400.00
INTEGRATED DISABILITY,Financial Services,SAIN - BRIXTON,06/01/2015,400.00
INTEGRATED DISABILITY,Travel/Subsistence,NEWS AT NINE,06/01/2015,130.00
OLDER PEOPLE,Domestic Goods-Other,MAKRO SELF SERVICE CROYDO,06/01/2015,449.61
OLDER PEOPLE,Financial Services-Banking,CASH ADVANCE FEE,06/01/2015,11.80
BALANCE SHEET,VAT,NEWS AT NINE,06/01/2015,0.00
BALANCE SHEET,VAT,SAIN - BRIXTON,06/01/2015,0.00
YOUTH OFFENDING SERVICE,Travel/Subsistence,LUL TICKET MACHINE,06/01/2015,60.00
LIBRARIES & ARCHIVE,Education-Library Books,STATIONERY OFFICE BOOK,06/01/2015,131.00
DAY CENTRES,Telecommunications,TV LICENSING,07/01/2015,145.50
INTEGRATED DISABILITY,Financial Services,CASH ADVANCE FEE,07/01/2015,11.80
OTHER - ADULTS,Telecommunications,02 BRIXTON,07/01/2015,10.00
BALANCE SHEET,VAT,CASH ADVANCE FEE,07/01/2015,0.00
BALANCE SHEET,VAT,WWW.CLOTHES2ORDER.COM,07/01/2015,46.84
CHILDREN LOOKED AFTER,Financial Services,HM PASSPORT OFFICE,07/01/2015,46.00
CHILDREN SAFEGUARDING & ASSESSMENTS,Domestic Goods-Other,ARGOS DIRECT,07/01/2015,-8.95
YOUTH OFFENDING SERVICE,Use of Public Transport,LUL TICKET OFFICE.,07/01/2015,40.00
LIBRARIES & ARCHIVE,Clothing-Children/Adults,WWW.CLOTHES2ORDER.COM,07/01/2015,234.20
LIBRARIES & ARCHIVE,Education-Library Books,CITIZENS ADVICE,07/01/2015,65.00
LIBRARIES & ARCHIVE,Education-Library Books,FINANCIAL TIMES,07/01/2015,143.00
LIBRARIES & ARCHIVE,Education-Library Books,HISTORY TODAY LTD,07/01/2015,55.00
LIBRARIES & ARCHIVE,Education-Library Books,TIME LIT SUPP,07/01/2015,115.00
HOUSING MANAGEMENT - REPAIRS & MAINTENANCE,Professional & Advisory Services,PAYPAL *MARKROWE65,07/01/2015,500.00
HOUSING MANAGEMENT - REPAIRS & MAINTENANCE,Professional & Advisory Services,PAYPAL *MARKROWE65,07/01/2015,0.00
HOUSING MANAGEMENT - REPAIRS & MAINTENANCE,Professional & Advisory Services,PAYPAL *MARKROWE65,07/01/2015,250.00
SENIOR MANAGEMENT - ADULTS & PUBLIC HEALTH,Public Transport,TRAINLINE.COM,08/01/2015,40.90
LIBRARIES & ARCHIVE,Education-Library Books,TIME OUT MAGAZINE LTD,08/01/2015,25.00
REVENUE & BENEFITS,Travel/Subsistence,OYSTER AUTOTOPUP,08/01/2015,20.00
FINANCIAL PLANNING AND MANAGEMENT,Travel/Subsistence,BRIXTON HILL EXPRESS,08/01/2015,20.00
OLDER PEOPLE,Catering Food & Drink,DOMBEY WHOLESALE BUTCH,09/01/2015,53.00
OLDER PEOPLE,Catering Food & Drink,FISH BARGAIN WAREHOUSE,09/01/2015,47.00
OLDER PEOPLE,Catering Food & Drink,FRESH QUALITY HALAL BU,09/01/2015,73.00
LIBRARIES & ARCHIVE,Travel/Subsistence,OYSTER BUS AUTOTOP,09/01/2015,40.00
LIBRARIES & ARCHIVE,Travel/Subsistence,OYSTER BUS AUTOTOP,09/01/2015,40.00
INTEGRATED DISABILITY,Travel/Subsistence,NEWS AT NINE,12/01/2015,153.45
INTEGRATED DISABILITY,Travel/Subsistence,NEWS AT NINE,12/01/2015,1.55
INTEGRATED DISABILITY,Financial Services,ATM BARCLAYS BANK PLC,12/01/2015,400.00
INTEGRATED DISABILITY,Financial Services,PO KENNINGTON PARK 0711,12/01/2015,400.00
INTEGRATED DISABILITY,Financial Services,ROYAL BANK UK /,12/01/2015,400.00
INTEGRATED DISABILITY,Financial Services,ROYAL BANK UK /,12/01/2015,400.00
INTEGRATED DISABILITY,Financial Services,ROYAL BANK UK /,12/01/2015,400.00
INTEGRATED DISABILITY,Financial Services,ROYAL BANK UK /,12/01/2015,400.00
BALANCE SHEET,VAT,ATM BARCLAYS BANK PLC,12/01/2015,0.00
BALANCE SHEET,VAT,PO KENNINGTON PARK 0711,12/01/2015,0.00
BALANCE SHEET,VAT,ROYAL BANK UK /,12/01/2015,0.00
BALANCE SHEET,VAT,ROYAL BANK UK /,12/01/2015,0.00
BALANCE SHEET,VAT,ROYAL BANK UK /,12/01/2015,0.00
BALANCE SHEET,VAT,ROYAL BANK UK /,12/01/2015,0.00
BALANCE SHEET,VAT,NEWS AT NINE,12/01/2015,0.00
BALANCE SHEET,VAT,NEWS AT NINE,12/01/2015,0.00
BALANCE SHEET,VAT,PC WORLD ONLINE,12/01/2015,66.66
CHILDREN SAFEGUARDING & ASSESSMENTS,Domestic Goods-Other,ARGOS,12/01/2015,24.99
CHILDREN SAFEGUARDING & ASSESSMENTS,IT Hardware,PC WORLD ONLINE,12/01/2015,333.32
LIBRARIES & ARCHIVE,Education-Library Books,Amazon *Mktplce EU-UK,12/01/2015,2.81
LIBRARIES & ARCHIVE,Education-Library Books,Amazon *Mktplce EU-UK,12/01/2015,6.91
LIBRARIES & ARCHIVE,Education-Library Books,Amazon *Mktplce EU-UK,12/01/2015,2.81
BALANCE SHEET,VAT,J D SPORTS 651,13/01/2015,0.00
BALANCE SHEET,VAT,POST OFFICE COUNTER,13/01/2015,0.00
BALANCE SHEET,VAT,HIGH STREET VOUCHE,13/01/2015,0.99
CHILDREN LOOKED AFTER,Financial Services,HULL CITY TREASURY,13/01/2015,12.50
EARLY HELP,Education-Other,POST OFFICE COUNTER,13/01/2015,220.00
EARLY HELP,Sports Equipment,J D SPORTS 651,13/01/2015,50.00
EARLY HELP,Catering Food & Drink,TESCO STORE 2143,13/01/2015,250.00
EARLY HELP,Domestic Goods-Other,HIGH STREET VOUCHE,13/01/2015,454.96
EARLY HELP,Stationery,APPLE ONLINE STORE GBP,13/01/2015,34.80
EARLY HELP,Travel/Subsistence,STUDEN PHOTOCARD,13/01/2015,10.00
LIBRARIES & ARCHIVE,Professional & Advisory Services,TRFSA *THOMSONREUTERS,13/01/2015,475.00
LIBRARIES & ARCHIVE,Education-Other,WH SMITH,13/01/2015,291.89
LIBRARIES & ARCHIVE,Education-Other,WH SMITH,13/01/2015,314.35
LIBRARIES & ARCHIVE,Education-Other,WH SMITH,13/01/2015,395.98
LIBRARIES & ARCHIVE,Education-Other,WH SMITH,13/01/2015,319.64
LIBRARIES & ARCHIVE,Education-Other,WH SMITH,13/01/2015,289.23
HOUSING CAPITAL & ASSET MANAGEMENT,Legal Services-Other,HMCOURTS-SERVICE.G,13/01/2015,140.00
DAY CENTRES,Financial Services,SAIN - BRIXTON,14/01/2015,400.00
INTEGRATED DISABILITY,Education-Musical Instruments,THE COUNCIL FOR MUSIC,14/01/2015,140.40
SENIOR MANAGEMENT - ADULTS & PUBLIC HEALTH,Taxi Fares,WWW.ADDISONLEE.COM,14/01/2015,242.71
BALANCE SHEET,VAT,THE COUNCIL FOR MUSIC,14/01/2015,0.00
BALANCE SHEET,VAT,WWW.ADDISONLEE.COM,14/01/2015,48.54
QUALITY ASSURANCE & PERFORMANCE,Domestic Goods-Other,ARGOS,14/01/2015,49.98
LIBRARIES & ARCHIVE,Building-Others,FORTRESS LOCK AND SAFE CO,14/01/2015,10.35
INTERNAL AUDIT,Stationery,LBL NOT PRESENT,14/01/2015,10.17
DAY CENTRES,Financial Services,CASH ADVANCE FEE,15/01/2015,11.80
OTHER - ADULTS,Catering Food & Drink,TESCO STORE 2143,15/01/2015,84.49
OTHER - ADULTS,Education-Library Books,Amazon *Mktplce EU-UK,15/01/2015,50.94
OTHER - ADULTS,Facilities-Printing,Amazon EU,15/01/2015,108.33
SENIOR MANAGEMENT - ADULTS & PUBLIC HEALTH,Taxi Fares,MINI CAB,15/01/2015,32.50
BALANCE SHEET,VAT,Amazon EU,15/01/2015,21.66
BALANCE SHEET,VAT,NLP SCHOOL,15/01/2015,13.00
QUALITY ASSURANCE & PERFORMANCE,Stationery,Amazon *Mktplce EU-UK,15/01/2015,36.04
QUALITY ASSURANCE & PERFORMANCE,Travel/Subsistence,EC MAINLINE CO INT,15/01/2015,81.20
QUALITY ASSURANCE & PERFORMANCE,Travel/Subsistence,EC MAINLINE CO INT,15/01/2015,79.70
QUALITY ASSURANCE & PERFORMANCE,Travel/Subsistence,LUL TICKET MACHINE,15/01/2015,50.00
QUALITY ASSURANCE & PERFORMANCE,Travel/Subsistence,OYSTER AUTOTOPUP,15/01/2015,40.00
QUALITY ASSURANCE & PERFORMANCE,Travel/Subsistence,OYSTER AUTOTOPUP,15/01/2015,40.00
QUALITY ASSURANCE & PERFORMANCE,Travel/Subsistence,OYSTER AUTOTOPUP,15/01/2015,40.00
QUALITY ASSURANCE & PERFORMANCE,Travel/Subsistence,OYSTER BUS AUTOTOP,15/01/2015,40.00
QUALITY ASSURANCE & PERFORMANCE,Travel/Subsistence,OYSTER BUS AUTOTOP,15/01/2015,40.00
QUALITY ASSURANCE & PERFORMANCE,Travel/Subsistence,OYSTER RENEW WEB,15/01/2015,40.00
QUALITY ASSURANCE & PERFORMANCE,Travel/Subsistence,OYSTER RENEW WEB,15/01/2015,-40.00
YOUTH OFFENDING SERVICE,Food/refreshment - meetings,TESCO STORE 2143,15/01/2015,3.53
LIBRARIES & ARCHIVE,Education-Library Books,MEDIA BUS INSIGHT BUS,15/01/2015,225.00
LIBRARIES & ARCHIVE,Education-Library Books,WP-MA EDUCATION LT,15/01/2015,284.00
CORPORATE AFFAIRS,Stationery,Amazon *Mktplce EU-UK,15/01/2015,8.50
CORPORATE AFFAIRS,Travel/Subsistence,BRIX CENTRAL STOP,15/01/2015,150.00
CORPORATE AFFAIRS,Travel/Subsistence,BRIX CENTRAL STOP,15/01/2015,50.00
INTERNAL AUDIT,Travel/Subsistence,OYSTER AUTOTOPUP,15/01/2015,40.00
INTERNAL AUDIT,Travel/Subsistence,OYSTER AUTOTOPUP,15/01/2015,20.00
INTERNAL AUDIT,Travel/Subsistence,OYSTER AUTOTOPUP,15/01/2015,40.00
HUMAN RESOURCES & ORGANISATIONAL DEVELOPMENT,Education-Other,LONDON SCHOOL OF PAINT,15/01/2015,354.45
HUMAN RESOURCES & ORGANISATIONAL DEVELOPMENT,Education-Other,UNIVERSITY COLLEGE,15/01/2015,"2,075.00"
HUMAN RESOURCES & ORGANISATIONAL DEVELOPMENT,Education-Other,WP-THE ART ACADEMY,15/01/2015,295.00
"WELFARE, EMPLOYMENT & SKILLS",Education-Other,NLP SCHOOL,15/01/2015,65.00
OTHER - ADULTS,Education-Other,BRIGHTONSCH,16/01/2015,"1,432.00"
OTHER - ADULTS,Education-Other,BRIGHTONSCH,16/01/2015,75.76
BALANCE SHEET,VAT,BRIGHTONSCH,16/01/2015,268.00
BALANCE SHEET,VAT,SKILLS FOR CARE SOLUTI,16/01/2015,41.00
LIBRARIES & ARCHIVE,Use of Public Transport,OYSTER BUS AUTOTOP,16/01/2015,20.00
LIBRARIES & ARCHIVE,Domestic Goods-Other,CURRYS SUPERSTORE,16/01/2015,39.98
PROPERTY & FINANCIAL TRANSACTION SERVICES,Travel/Subsistence,OYSTER AUTOTOPUP,16/01/2015,20.00
PROPERTY & FINANCIAL TRANSACTION SERVICES,Travel/Subsistence,OYSTER BUS AUTOSET,16/01/2015,20.00
HUMAN RESOURCES & ORGANISATIONAL DEVELOPMENT,Professional & Advisory Services,SKILLS FOR CARE SOLUTI,16/01/2015,205.00
OTHER - ADULTS,Education-Library Books,Amazon *Mktplce EU-UK,19/01/2015,100.72
CHILDREN LOOKED AFTER,Domestic Goods-Other,AO RETAIL LIMITED,19/01/2015,-99.98
CHILDREN LOOKED AFTER,Domestic Goods-Other,AO RETAIL LIMITED,19/01/2015,-25.00
CHILDREN LOOKED AFTER,Domestic Goods-Other,CURRYS ONLINE,19/01/2015,-299.99
CHILDREN LOOKED AFTER,Facilities-Market Research,ARGOS DIRECT,19/01/2015,-85.00
CHILDREN LOOKED AFTER,Facilities-Market Research,ARGOS DIRECT,19/01/2015,-44.94
CHILDREN LOOKED AFTER,Facilities-Market Research,ARGOS DIRECT,19/01/2015,-3.95
CHILDREN LOOKED AFTER,Facilities-Market Research,ARGOS DIRECT,19/01/2015,-3.95
CHILDREN LOOKED AFTER,Facilities-Market Research,ARGOS DIRECT,19/01/2015,-79.99
CHILDREN LOOKED AFTER,Facilities-Printing,Amazon EU,19/01/2015,-18.85
CHILDREN LOOKED AFTER,Financial Services,GRO HM PASSPORT OFFICE,19/01/2015,-9.25
CHILDREN LOOKED AFTER,Taxi Fares,MINI CAB,19/01/2015,-25.60
CHILDREN LOOKED AFTER,Travel/Subsistence,FCC WEBSALES,19/01/2015,-69.70
CHILDREN LOOKED AFTER,Travel/Subsistence,FCC WEBSALES,19/01/2015,-49.00
CHILDREN LOOKED AFTER,Travel/Subsistence,FCC WEBSALES,19/01/2015,-170.40
CHILDREN LOOKED AFTER,Accommodation,TRAVELODGE AGENT,19/01/2015,-176.00
CHILDREN SAFEGUARDING & ASSESSMENTS,Domestic Goods-Other,ARGOS,19/01/2015,7.99
REVENUE & BENEFITS,Travel/Subsistence,LONDON & SOUTH EAS,19/01/2015,715.50
FINANCE (HRA),Domestic Goods-Other,SGN CONNECTIONS,19/01/2015,403.20
OTHER - ADULTS,Domestic Goods-Other,MORLEYS,20/01/2015,9.99
OTHER - ADULTS,Education-Library Books,Amazon *Mktplce EU-UK,20/01/2015,21.87
OTHER - ADULTS,Education-Library Books,Amazon *Mktplce EU-UK,20/01/2015,174.90
OTHER - ADULTS,Education-Library Books,Amazon *Mktplce EU-UK,20/01/2015,19.40
OTHER - ADULTS,Education-Other,SOUTH THAMES COLL,20/01/2015,115.00
BALANCE SHEET,VAT,HOOTSUITE MEDIA INC.,20/01/2015,17.94
BALANCE SHEET,VAT,TIGER,20/01/2015,3.18
LIBRARIES & ARCHIVE,Building-Electrical,SECOM PLC,20/01/2015,25.92
FINANCIAL PLANNING AND MANAGEMENT,Travel/Subsistence,EXPRESS NEWS,20/01/2015,20.00
FINANCE (HRA),Domestic Goods-Other,SGN CONNECTIONS,20/01/2015,403.20
FINANCE (HRA),Professional & Advisory Services,ACCA,20/01/2015,211.00
COMMUNICATIONS (HRA),Consultancy-Business,HOOTSUITE MEDIA INC.,20/01/2015,89.70
COMMUNICATIONS (HRA),Domestic Goods-Other,LOVE2SHOP.CO.UK,20/01/2015,486.90
COMMUNICATIONS (HRA),Domestic Goods-Other,TIGER,20/01/2015,20.82
COMMUNICATIONS (HRA),Education-Library Books,Amazon *Mktplce EU-UK,20/01/2015,11.75
COMMUNICATIONS (HRA),Travel/Subsistence,TRAINLINE.COM,20/01/2015,225.93
COMMUNICATIONS (HRA),Travel/Subsistence,VIRGINTRAINS.CO.UK,20/01/2015,91.80
HOUSING CAPITAL & ASSET MANAGEMENT,Legal Services-Other,HMCOURTS-SERVICE.G,20/01/2015,80.00
DAY CENTRES,Travel/Subsistence,OYSTER BUS AUTOTOP,21/01/2015,20.00
BALANCE SHEET,VAT,Amazon EU,21/01/2015,22.62
CHILDREN LOOKED AFTER,Accommodation,RAMADA ENCORE NEWCASTLE G,21/01/2015,84.90
FINANCIAL PLANNING AND MANAGEMENT,Education-Other,ACCA,21/01/2015,83.00
FINANCIAL PLANNING AND MANAGEMENT,Education-Other,ACCA,21/01/2015,83.00
FINANCIAL PLANNING AND MANAGEMENT,Education-Other,ACCA,21/01/2015,83.00
FINANCIAL PLANNING AND MANAGEMENT,Catering Food & Drink,TESCO STORE 2143,21/01/2015,32.78
INTERNAL AUDIT,Financial Services,COMPANIES HOUSE,21/01/2015,250.00
INTERNAL AUDIT,Travel/Subsistence,TFL CC/LEZ CHARGE,21/01/2015,11.50
INTERNAL AUDIT,Travel/Subsistence,TFL CC/LEZ CHARGE,21/01/2015,11.50
INTERNAL AUDIT,Travel/Subsistence,TFL CC/LEZ CHARGE,21/01/2015,11.50
HUMAN RESOURCES & ORGANISATIONAL DEVELOPMENT,Education-Other,HIGH STREET VOUCHE,21/01/2015,100.00
FINANCE (HRA),Facilities-Printing,Amazon EU,21/01/2015,113.27
HOUSING CAPITAL & ASSET MANAGEMENT,Legal Services-Other,HMCOURTS-SERVICE.G,21/01/2015,220.00
INTEGRATED DISABILITY,Catering Equipment,TESCO STORE 3205,22/01/2015,25.60
INTEGRATED DISABILITY,Catering Food & Drink,TESCO STORE 2764,22/01/2015,148.30
INTEGRATED DISABILITY,Catering Food & Drink,TESCO STORE 2764,22/01/2015,23.24
INTEGRATED DISABILITY,Catering Food & Drink,TESCO STORE 3205,22/01/2015,77.01
INTEGRATED DISABILITY,Catering Food & Drink,TESCO STORE 3205,22/01/2015,21.15
INTEGRATED DISABILITY,Catering Food & Drink,TESCO STORES 4342,22/01/2015,95.29
INTEGRATED DISABILITY,Domestic Goods-Other,TESCO STORE 3205,22/01/2015,46.30
BALANCE SHEET,VAT,TESCO STORE 2764,22/01/2015,0.00
BALANCE SHEET,VAT,TESCO STORE 2764,22/01/2015,0.00
BALANCE SHEET,VAT,TESCO STORE 3205,22/01/2015,0.00
BALANCE SHEET,VAT,TESCO STORE 3205,22/01/2015,0.00
BALANCE SHEET,VAT,TESCO STORE 3205,22/01/2015,0.00
BALANCE SHEET,VAT,TESCO STORE 3205,22/01/2015,0.00
BALANCE SHEET,VAT,TESCO STORES 4342,22/01/2015,0.00
CHILDREN LOOKED AFTER,Domestic Goods-Other,ARGOS,22/01/2015,47.49
CHILDREN SAFEGUARDING & ASSESSMENTS,Travel/Subsistence,NATIONALEXPRESS.CO,22/01/2015,33.50
CHILDREN SAFEGUARDING & ASSESSMENTS,Travel/Subsistence,NATIONALEXPRESS.CO,22/01/2015,48.70
LIBRARIES & ARCHIVE,Travel/Subsistence,OYSTER BUS AUTOTOP,22/01/2015,20.00
INTERNAL AUDIT,Travel/Subsistence,OYSTER AUTOTOPUP,22/01/2015,40.00
OTHER - ADULTS,Organised Activities,PAYPAL *CENTRALCONF,26/01/2015,150.00
BALANCE SHEET,VAT,TRAVELODGE WEBSITE,26/01/2015,73.00
BALANCE SHEET,VAT,IPF,26/01/2015,68.60
BALANCE SHEET,VAT,PAYPAL *CENTRALCONF,26/01/2015,30.00
CHILDREN LOOKED AFTER,Accommodation,TRAVELODGE WEBSITE,26/01/2015,365.00
CHILDREN SAFEGUARDING & ASSESSMENTS,Domestic Goods-Other,ARGOS,26/01/2015,-3.00
LIBRARIES & ARCHIVE,Education-Library Books,WWW.MADELEINELINDLEY.COM,26/01/2015,325.42
BUSINESS TRANSFORMATION,Professional subscriptions,EB ICO DATA PROTECTIO,26/01/2015,50.00
PROCUREMENT,Education-Other,IPF,26/01/2015,343.00
PROCUREMENT,Education-Other,WWW.CIPS.ORG,26/01/2015,94.00
PROCUREMENT,Vehicle Maintenance,TFL CC/LEZ CHARGE,26/01/2015,10.00
HOUSING MANAGEMENT SERVICES,Legal Services-Other,TFL PENALTY CHARGE,26/01/2015,195.00
HOUSING MANAGEMENT SERVICES,Travel/Subsistence,LUL TICKET MACHINE,26/01/2015,100.00
HOUSING MANAGEMENT SERVICES,Travel/Subsistence,LUL TICKET OFFICE.,26/01/2015,150.00
OLDER PEOPLE,Financial Services,SANTANDER PLC (UK),27/01/2015,250.00
OTHER - ADULTS,Catering Equipment,WWW.EVENTSUPPLIES.CO.U,27/01/2015,141.55
OTHER - ADULTS,IT Office Equipment,Amazon *Mktplce EU-UK,27/01/2015,18.99
OTHER - ADULTS,IT Office Equipment,Amazon EU,27/01/2015,40.99
OTHER - ADULTS,IT Office Equipment,Amazon UK Retail,27/01/2015,-40.99
BALANCE SHEET,VAT,BRIGHT & HOVE BUSINESS,27/01/2015,104.00
BALANCE SHEET,VAT,DIANA HOTEL,27/01/2015,14.17
BALANCE SHEET,VAT,GALLOWGLASS LTD,27/01/2015,32.00
BALANCE SHEET,VAT,LION CONTAINERS LTD,27/01/2015,480.06
BALANCE SHEET,VAT,PAYPAL *NOEA PAYPAL,27/01/2015,37.00
BALANCE SHEET,VAT,PREMIER INN44123965,27/01/2015,24.67
BALANCE SHEET,VAT,WWW.WRISTIES.CO.UK,27/01/2015,137.00
BALANCE SHEET,VAT,1&1 INTERNET LIMITED,27/01/2015,11.99
BALANCE SHEET,VAT,FINDEL ED LTD,27/01/2015,8.07
BALANCE SHEET,VAT,PHOENIX AMENITY SU,27/01/2015,52.00
EARLY YEARS AND PARENTING,Stationery,FINDEL ED LTD,27/01/2015,40.35
EARLY YEARS AND PARENTING,Education-Library Books,WH SMITH,27/01/2015,13.98
EARLY YEARS AND PARENTING,IT Services,1&1 INTERNET LIMITED,27/01/2015,59.97
EARLY YEARS AND PARENTING,Travel/Subsistence,THE TRAINLINE.CO,27/01/2015,40.30
LIBRARIES & ARCHIVE,Education-Other,RICHMOND ADULT,27/01/2015,-170.00
LIBRARIES & ARCHIVE,Facilities-Printing,WWW.GENFAIR.CO.UK,27/01/2015,12.00
LIBRARIES & ARCHIVE,Financial Services-Grants,MACMILLAN CANCER SUPPO,27/01/2015,12.80
RESIDUAL RESOURCES,Travel/Subsistence,TRAINLINE.COM,27/01/2015,111.69
FINANCIAL PLANNING AND MANAGEMENT,Financial Services,LAND REGISTRY,27/01/2015,6.00
FINANCIAL PLANNING AND MANAGEMENT,Financial Services,LAND REGISTRY,27/01/2015,9.00
POLICY & COMMUNICATIONS,Accommodation,DIANA HOTEL,27/01/2015,70.83
POLICY & COMMUNICATIONS,Accommodation,PREMIER INN44123965,27/01/2015,123.33
POLICY & COMMUNICATIONS,Catering Food & Drink,LONDIS,27/01/2015,8.97
POLICY & COMMUNICATIONS,Catering Food & Drink,SACAT MARKS & SPENCER,27/01/2015,56.75
POLICY & COMMUNICATIONS,Catering Food & Drink,WM MORRISONS STORE,27/01/2015,2.50
POLICY & COMMUNICATIONS,Consultancy-Business,BRIGHT & HOVE BUSINESS,27/01/2015,520.00
POLICY & COMMUNICATIONS,Consultancy-Business,GALLOWGLASS LTD,27/01/2015,160.00
POLICY & COMMUNICATIONS,Consultancy-Other,PAYPAL *NOEA PAYPAL,27/01/2015,185.00
POLICY & COMMUNICATIONS,Couriers,WWW.WRISTIES.CO.UK,27/01/2015,10.00
POLICY & COMMUNICATIONS,Domestic Goods-Other,ARGOS,27/01/2015,39.99
POLICY & COMMUNICATIONS,Domestic Goods-Other,WWW.WRISTIES.CO.UK,27/01/2015,675.00
POLICY & COMMUNICATIONS,Education-Library Books,Amazon *Mktplce EU-UK,27/01/2015,7.98
POLICY & COMMUNICATIONS,Facilities-Advertising,FACEBK *8RWRE6NAA2,27/01/2015,26.49
POLICY & COMMUNICATIONS,Facilities-Advertising,FACEBK *9S4QH6EAA2,27/01/2015,24.13
POLICY & COMMUNICATIONS,Facilities-Advertising,FACEBK *AAZ2F6JAA2,27/01/2015,52.99
POLICY & COMMUNICATIONS,Facilities-Advertising,FACEBK *GJ3PB62AA2,27/01/2015,25.19
POLICY & COMMUNICATIONS,Facilities-Advertising,FACEBK *GJE9B6JAA2,27/01/2015,27.29
POLICY & COMMUNICATIONS,Facilities-Advertising,FACEBK *HZFED6JAA2,27/01/2015,27.22
POLICY & COMMUNICATIONS,Facilities-Advertising,FACEBK *LRDPK6WAA2,27/01/2015,49.57
POLICY & COMMUNICATIONS,Facilities-Advertising,FACEBK *S8BTC6AAA2,27/01/2015,27.45
POLICY & COMMUNICATIONS,Facilities-Advertising,FACEBK *SQYDB6SAA2,27/01/2015,28.90
POLICY & COMMUNICATIONS,Facilities-Advertising,FACEBK *SUC2C6JAA2,27/01/2015,27.04
POLICY & COMMUNICATIONS,Facilities-Advertising,FACEBK *WBTUH6EAA2,27/01/2015,47.14
POLICY & COMMUNICATIONS,Facilities-Advertising,FACEBK *WJ6BJ6EAA2,27/01/2015,51.60
POLICY & COMMUNICATIONS,Facilities-Advertising,FACEBK *ZL5RF6SAA2,27/01/2015,19.99
POLICY & COMMUNICATIONS,Facilities-Market Research,CTC*CONSTANTCONTACT.COM,27/01/2015,96.80
POLICY & COMMUNICATIONS,Facilities-Market Research,CTC*CONSTANTCONTACT.COM,27/01/2015,96.80
POLICY & COMMUNICATIONS,Facilities-Market Research,CTC*CONSTANTCONTACT.COM,27/01/2015,70.80
POLICY & COMMUNICATIONS,Facilities-Market Research,CTC*CONSTANTCONTACT.COM,27/01/2015,70.80
POLICY & COMMUNICATIONS,Facilities-Printing,Amazon EU,27/01/2015,10.00
POLICY & COMMUNICATIONS,Facilities-Storage,LION CONTAINERS LTD,27/01/2015,"2,400.31"
POLICY & COMMUNICATIONS,Financial Services,HSBC/BRIXTON RD I1,27/01/2015,500.00
POLICY & COMMUNICATIONS,Financial Services,LION CONTAINERS LTD,27/01/2015,86.41
POLICY & COMMUNICATIONS,Financial Services-Banking,CASH ADVANCE FEE,27/01/2015,14.75
POLICY & COMMUNICATIONS,IT Software-Customised,PAYPAL *PIKTOCHART,27/01/2015,17.81
POLICY & COMMUNICATIONS,IT Software-Customised,WUFOO.COM,27/01/2015,190.60
POLICY & COMMUNICATIONS,Organised Activities,OMNIBUS,27/01/2015,165.00
POLICY & COMMUNICATIONS,Professional & Advisory Services,J & M GROUP LTD,27/01/2015,114.00
POLICY & COMMUNICATIONS,Travel/Subsistence,OYSTER AUTOTOPUP,27/01/2015,40.00
POLICY & COMMUNICATIONS,Travel/Subsistence,OYSTER AUTOTOPUP,27/01/2015,40.00
POLICY & COMMUNICATIONS,Travel/Subsistence,OYSTER AUTOTOPUP,27/01/2015,40.00
POLICY & COMMUNICATIONS,Travel/Subsistence,OYSTER BUS AUTOTOP,27/01/2015,40.00
POLICY & COMMUNICATIONS,Travel/Subsistence,OYSTER BUS AUTOTOP,27/01/2015,40.00
POLICY & COMMUNICATIONS,Travel/Subsistence,OYSTER BUS AUTOTOP,27/01/2015,40.00
POLICY & COMMUNICATIONS,Travel/Subsistence,OYSTER BUS AUTOTOP,27/01/2015,40.00
POLICY & COMMUNICATIONS,Travel/Subsistence,OYSTER BUS AUTOTOP,27/01/2015,40.00
POLICY & COMMUNICATIONS,Travel/Subsistence,OYSTER BUS AUTOTOP,27/01/2015,40.00
POLICY & COMMUNICATIONS,Travel/Subsistence,TRAINLINE.COM,27/01/2015,243.58
POLICY & COMMUNICATIONS,Travel/Subsistence,TRAINLINE.COM,27/01/2015,265.30
POLICY & COMMUNICATIONS,Travel/Subsistence,ZIPCAR,27/01/2015,118.80
NEIGHBOURHOODS,Horticultural-Seeds & Plants,PHOENIX AMENITY SU,27/01/2015,260.00
SENIOR MANAGEMENT - NEIGHBOURHOODS & GROWTH,Travel/Subsistence,VOYAGES-SNCF UK LTD,27/01/2015,431.27
SENIOR MANAGEMENT - NEIGHBOURHOODS & GROWTH,Travel/Subsistence,VOYAGES-SNCF UK LTD,27/01/2015,-190.50
OLDER PEOPLE,Financial Services,CASH ADVANCE FEE,28/01/2015,7.38
CHILDREN LOOKED AFTER,Domestic Goods-Other,ARGOS,28/01/2015,-5.40
CHILDREN SAFEGUARDING & ASSESSMENTS,Financial Services,WWW.WANDSWORTH.GOV.UK,28/01/2015,10.00
BUSINESS TRANSFORMATION,Professional subscriptions,WWW.ICO.GOV.UK,28/01/2015,500.00
FINANCIAL PLANNING AND MANAGEMENT,Domestic Goods-Other,ARGOS RETAIL GROUP,28/01/2015,638.93
FINANCIAL PLANNING AND MANAGEMENT,Domestic Goods-Other,ARGOS RETAIL GROUP,28/01/2015,83.94
FINANCIAL PLANNING AND MANAGEMENT,Domestic Goods-Other,ARGOS RETAIL GROUP,28/01/2015,173.94
FINANCIAL PLANNING AND MANAGEMENT,Travel/Subsistence,LUL TICKET OFFICE.,28/01/2015,20.00
FINANCIAL PLANNING AND MANAGEMENT,Travel/Subsistence,OYSTER BUS AUTOTOP,28/01/2015,20.00
FINANCIAL PLANNING AND MANAGEMENT,Travel/Subsistence,EXPRESS NEWS,28/01/2015,20.50
HOUSING CAPITAL & ASSET MANAGEMENT,Legal Services-Other,HMCOURTS-SERVICE.G,28/01/2015,280.00
DAY CENTRES,Financial Services,SAIN - BRIXTON,29/01/2015,400.00
INTEGRATED DISABILITY,Catering Food & Drink,TESCO STORE 3205,29/01/2015,25.00
INTEGRATED DISABILITY,Domestic Goods-Other,POUNDLAND LTD 1582,29/01/2015,29.00
INTEGRATED DISABILITY,Healthcare-Drugs,SUPERDRUG STORES PLC,29/01/2015,102.15
OTHER - ADULTS,Education-Library Books,Amazon *Mktplce EU-UK,29/01/2015,43.16
OTHER - ADULTS,Facilities-Printing,Amazon UK Retail,29/01/2015,18.01
OTHER - ADULTS,Furniture-Office Furniture,Amazon UK Retail,29/01/2015,41.56
BALANCE SHEET,VAT,AMERISUITES,29/01/2015,7.01
BALANCE SHEET,VAT,IKEA ONLINE,29/01/2015,9.17
BALANCE SHEET,VAT,MAXWELLAMEN,29/01/2015,67.19
BALANCE SHEET,VAT,WWW.VICTORIANANURSERY.,29/01/2015,40.38
BALANCE SHEET,VAT,"Amazon Svcs Europe,SAR",29/01/2015,1.41
BALANCE SHEET,VAT,POUNDLAND LTD 1582,29/01/2015,0.00
BALANCE SHEET,VAT,SUPERDRUG STORES PLC,29/01/2015,0.00
BALANCE SHEET,VAT,TESCO STORE 3205,29/01/2015,0.00
BALANCE SHEET,Personal,CURRYS ONLINE,29/01/2015,-143.00
BALANCE SHEET,VAT,AO RETAIL LIMITED,29/01/2015,39.00
BALANCE SHEET,VAT,AO RETAIL LIMITED,29/01/2015,46.33
BALANCE SHEET,VAT,CURRYS ONLINE,29/01/2015,18.33
BALANCE SHEET,VAT,CURRYS ONLINE,29/01/2015,92.00
BALANCE SHEET,VAT,CURRYS ONLINE,29/01/2015,43.33
BALANCE SHEET,VAT,CURRYS ONLINE,29/01/2015,59.33
BALANCE SHEET,VAT,CURRYS ONLINE,29/01/2015,36.67
BALANCE SHEET,VAT,IKEA ONLINE,29/01/2015,108.67
CHILDREN LOOKED AFTER,Telecommunications,CARPHONE WAREHOUSE,29/01/2015,299.99
CHILDREN LOOKED AFTER,Building-Floors,CARPETRIGHT,29/01/2015,531.33
CHILDREN LOOKED AFTER,Domestic Goods-Other,AO RETAIL LIMITED,29/01/2015,578.98
CHILDREN LOOKED AFTER,Domestic Goods-Other,AO RETAIL LIMITED,29/01/2015,195.00
CHILDREN LOOKED AFTER,Domestic Goods-Other,AO RETAIL LIMITED,29/01/2015,500.66
CHILDREN LOOKED AFTER,Domestic Goods-Other,ARGOS DIRECT,29/01/2015,249.99
CHILDREN LOOKED AFTER,Domestic Goods-Other,ARGOS RETAIL GROUP,29/01/2015,448.94
CHILDREN LOOKED AFTER,Domestic Goods-Other,ARGOS RETAIL GROUP,29/01/2015,364.93
CHILDREN LOOKED AFTER,Domestic Goods-Other,ARGOS RETAIL GROUP,29/01/2015,847.87
CHILDREN LOOKED AFTER,Domestic Goods-Other,ARGOS RETAIL GROUP,29/01/2015,292.88
CHILDREN LOOKED AFTER,Domestic Goods-Other,ARGOS RETAIL GROUP,29/01/2015,"1,051.29"
CHILDREN LOOKED AFTER,Domestic Goods-Other,ARGOS RETAIL GROUP,29/01/2015,467.88
CHILDREN LOOKED AFTER,Domestic Goods-Other,ARGOS RETAIL GROUP,29/01/2015,142.95
CHILDREN LOOKED AFTER,Domestic Goods-Other,CURRYS ONLINE,29/01/2015,91.66
CHILDREN LOOKED AFTER,Domestic Goods-Other,CURRYS ONLINE,29/01/2015,459.99
CHILDREN LOOKED AFTER,Domestic Goods-Other,CURRYS ONLINE,29/01/2015,216.66
CHILDREN LOOKED AFTER,Domestic Goods-Other,CURRYS ONLINE,29/01/2015,296.67
CHILDREN LOOKED AFTER,Domestic Goods-Other,CURRYS ONLINE,29/01/2015,715.00
CHILDREN LOOKED AFTER,Domestic Goods-Other,MICROTRONICS CENTRE,29/01/2015,640.00
CHILDREN LOOKED AFTER,Facilities-Market Research,ARGOS DIRECT,29/01/2015,33.94
CHILDREN LOOKED AFTER,Facilities-Printing,Amazon EU,29/01/2015,21.60
CHILDREN LOOKED AFTER,Financial Services,GRO HM PASSPORT OFFICE,29/01/2015,18.50
CHILDREN LOOKED AFTER,Furniture-Domestic Furniture,A2Z FURNITURE,29/01/2015,914.99
CHILDREN LOOKED AFTER,Furniture-Domestic Furniture,ARCHWAY TRADING,29/01/2015,389.50
CHILDREN LOOKED AFTER,Furniture-Domestic Furniture,DREAMS LTD,29/01/2015,179.00
CHILDREN LOOKED AFTER,Furniture-Domestic Furniture,IKEA ONLINE,29/01/2015,543.33
CHILDREN LOOKED AFTER,Furniture-Domestic Furniture,PAYPAL *DFSTRADING,29/01/2015,494.00
CHILDREN LOOKED AFTER,Furniture-Domestic Furniture,WWW.DFS.CO.UK,29/01/2015,60.00
CHILDREN LOOKED AFTER,Domestic Goods-Other,ARGOS RETAIL GROUP,29/01/2015,811.84
CHILDREN LOOKED AFTER,Domestic Goods-Other,ARGOS RETAIL GROUP,29/01/2015,"1,117.86"
CHILDREN LOOKED AFTER,Domestic Goods-Other,CURRYS ONLINE,29/01/2015,183.32
CHILDREN SAFEGUARDING & ASSESSMENTS,Domestic Goods-Other,ARGOS RETAIL GROUP,29/01/2015,21.93
CORPORATE AFFAIRS,Catering Food & Drink,POUNDLAND LTD 1203,29/01/2015,5.00
CORPORATE AFFAIRS,Catering Food & Drink,SAINSBURYS S/MKTS,29/01/2015,7.00
CORPORATE AFFAIRS,Stationery,"Amazon Svcs Europe,SAR",29/01/2015,186.63
CORPORATE AFFAIRS,Travel/Subsistence,BRIX CENTRAL STOP,29/01/2015,50.00
FINANCIAL PLANNING AND MANAGEMENT,Travel/Subsistence,VIRGINTRAINS.CO.UK,29/01/2015,40.00
FINANCIAL PLANNING AND MANAGEMENT,Financial Services,ACCA,29/01/2015,211.00
POLICY & COMMUNICATIONS,Accommodation,AMERISUITES,29/01/2015,35.06
POLICY & COMMUNICATIONS,Building-Timber,B & Q,29/01/2015,31.78
POLICY & COMMUNICATIONS,Catering Equipment,Amazon *Mktplce EU-UK,29/01/2015,6.28
POLICY & COMMUNICATIONS,Catering Food & Drink,TESCO STORES 4342,29/01/2015,78.88
POLICY & COMMUNICATIONS,Catering Food & Drink,TESCO STORES 4342,29/01/2015,96.68
POLICY & COMMUNICATIONS,Catering Food & Drink,TESCO STORES 4342,29/01/2015,58.74
POLICY & COMMUNICATIONS,Domestic Goods-Other,PAYPAL *VTPLASTICS,29/01/2015,3.80
POLICY & COMMUNICATIONS,Domestic Goods-Other,WWW.MUJI.CO.UK,29/01/2015,54.70
POLICY & COMMUNICATIONS,Furniture-Domestic Furniture,IKEA ONLINE,29/01/2015,45.83
POLICY & COMMUNICATIONS,Furniture-Domestic Furniture,PAYPAL *ZENITHWHOLS,29/01/2015,3.94
POLICY & COMMUNICATIONS,Horticultural-Other,KEEPERS NURSERY,29/01/2015,"1,293.00"
POLICY & COMMUNICATIONS,Horticultural-Other,MAXWELLAMEN,29/01/2015,335.95
POLICY & COMMUNICATIONS,Horticultural-Other,WWW.VICTORIANANURSERY.,29/01/2015,201.92
POLICY & COMMUNICATIONS,Organised Activities,WWW.WEEBADGERS.COM,29/01/2015,79.00
POLICY & COMMUNICATIONS,Stationery,Amazon *Mktplce EU-UK,29/01/2015,4.19
POLICY & COMMUNICATIONS,Stationery,Amazon *Mktplce EU-UK,29/01/2015,2.45
POLICY & COMMUNICATIONS,Travel/Subsistence,THETRAINLINE.COM,29/01/2015,39.78
POLICY & COMMUNICATIONS,Travel/Subsistence,TRAINLINE.COM,29/01/2015,191.25
DAY CENTRES,Financial Services,CASH ADVANCE FEE,30/01/2015,11.80
INTEGRATED DISABILITY,Financial Services,SAIN - BRIXTON,30/01/2015,400.00
BALANCE SHEET,VAT,SAIN - BRIXTON,30/01/2015,0.00
BALANCE SHEET,VAT,VIKING,30/01/2015,53.80
QUALITY ASSURANCE & PERFORMANCE,Stationery,VIKING,30/01/2015,269.00
DAY CENTRES,Travel/Subsistence,OYSTER BUS AUTOTOP,31/01/2015,20.00
INTEGRATED DISABILITY,Financial Services,CASH ADVANCE FEE,02/02/2015,11.80
BALANCE SHEET,VAT,BIRD CONTROL SYSTEMS L,02/02/2015,18.49
BALANCE SHEET,VAT,PAYPAL *WALKERLOCKS,02/02/2015,16.49
CHILDREN LOOKED AFTER,Domestic Goods-Other,ARGOS,02/02/2015,-18.99
CHILDREN LOOKED AFTER,Domestic Goods-Other,MOTHERCARE UK LTD,02/02/2015,64.99
QUALITY ASSURANCE & PERFORMANCE,Domestic Goods-Other,ARGOS,02/02/2015,47.49
CORPORATE AFFAIRS,Legal Services-Other,GEN COUNCIL OF,02/02/2015,102.50
HUMAN RESOURCES & ORGANISATIONAL DEVELOPMENT (HRA),Consultancy-Business,WWW.PPMA.ORG.UK,02/02/2015,590.40
HUMAN RESOURCES & ORGANISATIONAL DEVELOPMENT (HRA),Domestic Goods-Other,ARGOS,02/02/2015,29.99
HUMAN RESOURCES & ORGANISATIONAL DEVELOPMENT (HRA),Domestic Goods-Other,ARGOS,02/02/2015,49.98
HUMAN RESOURCES & ORGANISATIONAL DEVELOPMENT (HRA),Domestic Goods-Other,ARGOS,02/02/2015,-49.98
HUMAN RESOURCES & ORGANISATIONAL DEVELOPMENT (HRA),Domestic Goods-Other,ARGOS LTD,02/02/2015,94.98
HUMAN RESOURCES & ORGANISATIONAL DEVELOPMENT (HRA),IT Services-Disaster Recovery,BT DISCLOSURE SCOTLAND,02/02/2015,25.00
HUMAN RESOURCES & ORGANISATIONAL DEVELOPMENT (HRA),Staff Recruitment costs,BT DISCLOSURE SCOTLAND,02/02/2015,25.00
HUMAN RESOURCES & ORGANISATIONAL DEVELOPMENT (HRA),Stationery,VIKING,02/02/2015,49.95
HUMAN RESOURCES & ORGANISATIONAL DEVELOPMENT (HRA),Travel/Subsistence,EXPRESS NEWS,02/02/2015,60.00
HOUSING MANAGEMENT SERVICES,Building-Others,PAYPAL *WALKERLOCKS,02/02/2015,82.45
HOUSING MANAGEMENT SERVICES,Environmental-Pest Control,BIRD CONTROL SYSTEMS L,02/02/2015,92.45
HOUSING MANAGEMENT SERVICES,Travel/Subsistence,LUL TICKET OFFICE.,02/02/2015,125.00
HOUSING MANAGEMENT SERVICES,Travel/Subsistence,OYSTER RENEW WEB,02/02/2015,50.00
INTEGRATED DISABILITY,Healthcare Services,WWW.HUNTLEIGH-HEAL,03/02/2015,261.12
INTEGRATED DISABILITY,Healthcare Services,WWW.HUNTLEIGH-HEAL,03/02/2015,318.00
OLDER PEOPLE,Catering Food & Drink,DOMBEY WHOLESALE BUTCH,03/02/2015,200.00
BALANCE SHEET,VAT,WWW.HUNTLEIGH-HEAL,03/02/2015,0.00
BALANCE SHEET,VAT,WWW.HUNTLEIGH-HEAL,03/02/2015,0.00
CHILDREN LOOKED AFTER,Furniture-Domestic Furniture,IKEA ONLINE,03/02/2015,514.00
FINANCIAL PLANNING AND MANAGEMENT,Public Transport,BRIXTON HILL EXPRESS,03/02/2015,40.00
INTEGRATED DISABILITY,Works-Construction,PROWASTE,04/02/2015,282.00
BALANCE SHEET,Personal,PROWASTE,04/02/2015,-47.00
BALANCE SHEET,VAT,PROWASTE,04/02/2015,-47.00
CHILDREN LOOKED AFTER,Travel/Subsistence,TRAVEL REPUBLIC LTD,04/02/2015,35.70
REVENUE & BENEFITS,Legal Services-Other,HMCOURTS-SERVICE.G,04/02/2015,"5,382.00"
NEE SENIOR MANAGEMENT TEAM,Accommodation,AIRBNB,04/02/2015,103.00
OLDER PEOPLE,Catering Food & Drink,FISH BARGAIN WAREHOUSE,05/02/2015,55.00
OLDER PEOPLE,Catering Food & Drink,ICELAND,05/02/2015,6.23
OLDER PEOPLE,Financial Services,ATM BARCLAYS BANK PLC,05/02/2015,300.00
BALANCE SHEET,VAT,WWW.EDUSENTIALS.CO.UK,05/02/2015,70.97
CHILDREN LOOKED AFTER,Domestic Goods-Other,ARGOS,05/02/2015,37.98
CHILDREN SAFEGUARDING & ASSESSMENTS,Domestic Goods-Other,ARGOS,05/02/2015,241.56
LIBRARIES & ARCHIVE,Domestic Goods-Other,Amazon UK Marketplace,05/02/2015,11.98
LIBRARIES & ARCHIVE,Travel/Subsistence,OYSTER BUS AUTOTOP,05/02/2015,20.00
LIBRARIES & ARCHIVE,Education-Other,WWW.EDUSENTIALS.CO.UK,05/02/2015,354.85
REVENUE & BENEFITS,Travel/Subsistence,LUL TICKET MACHINE,05/02/2015,20.00
REVENUE & BENEFITS,Travel/Subsistence,OYSTER AUTOTOPUP,05/02/2015,20.00
REVENUE & BENEFITS,Travel/Subsistence,OYSTER RENEW WEB,05/02/2015,10.00
REVENUE & BENEFITS,Travel/Subsistence,OYSTER RENEW WEB,05/02/2015,-10.00
INTEGRATED DISABILITY,Travel/Subsistence,NEWS AT NINE,06/02/2015,200.00
OLDER PEOPLE,Financial Services,CASH ADVANCE FEE,06/02/2015,8.85
BALANCE SHEET,VAT,NEWS AT NINE,06/02/2015,0.00
BALANCE SHEET,VAT,Amazon UK Retail,06/02/2015,5.10
LIBRARIES & ARCHIVE,Domestic Goods-Other,Amazon UK Marketplace,06/02/2015,5.48
LIBRARIES & ARCHIVE,Education-Arts/Crafts,Amazon UK Retail,06/02/2015,25.50
LIBRARIES & ARCHIVE,Education-Library Books,"Amazon Svcs Europe,SAR",06/02/2015,6.74
INTERNAL AUDIT,Travel/Subsistence,OYSTER AUTOTOPUP,06/02/2015,40.00
INTERNAL AUDIT,Travel/Subsistence,OYSTER AUTOTOPUP,06/02/2015,20.00
INTERNAL AUDIT,Travel/Subsistence,OYSTER BUS AUTOTOP,06/02/2015,40.00
INTERNAL AUDIT,Travel/Subsistence,OYSTER BUS AUTOTOP,06/02/2015,40.00
FINANCIAL PLANNING AND MANAGEMENT,Taxi Fares,TAXI NIF 33988309J,07/02/2015,34.67
OLDER PEOPLE,Catering Equipment,HARTNOLL LTD,09/02/2015,246.27
BALANCE SHEET,VAT,ACCESS SELF STORAG,09/02/2015,39.03
BALANCE SHEET,VAT,MILLER TOOLS LTD,09/02/2015,83.33
BALANCE SHEET,VAT,RTPI,09/02/2015,19.00
BALANCE SHEET,VAT,HARTNOLL LTD,09/02/2015,49.25
BALANCE SHEET,VAT,TRAVELODGE AGENT,09/02/2015,139.89
CHILDREN LOOKED AFTER,Accommodation,TRAVELODGE AGENT,09/02/2015,699.46
FINANCIAL PLANNING AND MANAGEMENT,Professional subscriptions,CIPFA ESS,09/02/2015,201.00
"PLANNING, TRANSPORT & DEVELOPMENT",Building-Paint,MILLER TOOLS LTD,09/02/2015,416.66
"PLANNING, TRANSPORT & DEVELOPMENT",Building-Timber,SCREWFIX DIRECT,09/02/2015,56.98
"PLANNING, TRANSPORT & DEVELOPMENT",Consultancy-Business,ARMOUR LOCK AND SAFE,09/02/2015,8.00
"PLANNING, TRANSPORT & DEVELOPMENT",Consultancy-Business,ARMOUR LOCK AND SAFE,09/02/2015,-8.00
"PLANNING, TRANSPORT & DEVELOPMENT",Cycles Purchase,BRIXTON CYCLES LTD,09/02/2015,12.00
"PLANNING, TRANSPORT & DEVELOPMENT",Cycles Purchase,BRIXTON CYCLES LTD,09/02/2015,120.00
"PLANNING, TRANSPORT & DEVELOPMENT",Cycles Purchase,TFL CYCLE HIRE,09/02/2015,8.00
"PLANNING, TRANSPORT & DEVELOPMENT",Domestic Goods-Other,ARGOS,09/02/2015,12.79
"PLANNING, TRANSPORT & DEVELOPMENT",Facilities-Design & Photography,4 PRINT & DESIGN,09/02/2015,76.31
"PLANNING, TRANSPORT & DEVELOPMENT",Facilities-Storage,ACCESS SELF STORAG,09/02/2015,195.17
"PLANNING, TRANSPORT & DEVELOPMENT",Financial Services-Grants,RTPI,09/02/2015,95.00
"PLANNING, TRANSPORT & DEVELOPMENT",Healthcare Services,LONDON EYECARE CEN,09/02/2015,250.00
"PLANNING, TRANSPORT & DEVELOPMENT",Healthcare Services,LONDON EYECARE CEN,09/02/2015,265.00
INTEGRATED DISABILITY,Financial Services,ROYAL BANK UK /,10/02/2015,400.00
BALANCE SHEET,VAT,ROYAL BANK UK /,10/02/2015,0.00
BALANCE SHEET,VAT,ADT LOUGHTON CC,10/02/2015,72.60
BALANCE SHEET,VAT,SHIRE LEASING PLC,10/02/2015,36.20
BALANCE SHEET,VAT,WHICH?,10/02/2015,0.00
BALANCE SHEET,VAT,WORDFLOW LTD,10/02/2015,3.27
BALANCE SHEET,VAT,WWW.PMGLTD.CO.UK,10/02/2015,-79.00
LIBRARIES & ARCHIVE,Domestic Goods-Other,Amazon *Mktplce EU-UK,10/02/2015,27.79
LIBRARIES & ARCHIVE,Education-Library Books,Amazon *Mktplce EU-UK,10/02/2015,26.58
LIBRARIES & ARCHIVE,Education-Library Books,Amazon *Mktplce EU-UK,10/02/2015,7.79
LIBRARIES & ARCHIVE,Education-Library Books,Amazon *Mktplce EU-UK,10/02/2015,11.50
LIBRARIES & ARCHIVE,Education-Library Books,Amazon *Mktplce EU-UK,10/02/2015,14.24
LIBRARIES & ARCHIVE,Education-Library Books,Amazon *Mktplce EU-UK,10/02/2015,12.38
LIBRARIES & ARCHIVE,Education-Library Books,Amazon *Mktplce EU-UK,10/02/2015,3.79
LIBRARIES & ARCHIVE,Education-Library Books,Amazon *Mktplce EU-UK,10/02/2015,14.55
LIBRARIES & ARCHIVE,Education-Library Books,Amazon *Mktplce EU-UK,10/02/2015,42.05
LIBRARIES & ARCHIVE,Education-Library Books,Amazon *Mktplce EU-UK,10/02/2015,30.45
LIBRARIES & ARCHIVE,Education-Library Books,Amazon *Mktplce EU-UK,10/02/2015,42.25
LIBRARIES & ARCHIVE,Education-Library Books,Amazon *Mktplce EU-UK,10/02/2015,46.32
LIBRARIES & ARCHIVE,Education-Library Books,Amazon *Mktplce EU-UK,10/02/2015,14.35
LIBRARIES & ARCHIVE,Education-Library Books,Amazon *Mktplce EU-UK,10/02/2015,10.05
LIBRARIES & ARCHIVE,Education-Library Books,Amazon *Mktplce EU-UK,10/02/2015,9.79
LIBRARIES & ARCHIVE,Education-Library Books,Amazon *Mktplce EU-UK,10/02/2015,10.95
LIBRARIES & ARCHIVE,Education-Library Books,Amazon *Mktplce EU-UK,10/02/2015,14.50
LIBRARIES & ARCHIVE,Education-Library Books,Amazon EU,10/02/2015,9.50
LIBRARIES & ARCHIVE,Education-Library Books,Amazon EU,10/02/2015,7.12
LIBRARIES & ARCHIVE,Education-Library Books,Amazon EU,10/02/2015,3.75
LIBRARIES & ARCHIVE,Education-Library Books,"Amazon Svcs Europe,SAR",10/02/2015,12.28
LIBRARIES & ARCHIVE,Education-Library Books,"Amazon Svcs Europe,SAR",10/02/2015,11.93
LIBRARIES & ARCHIVE,Education-Library Books,"Amazon Svcs Europe,SAR",10/02/2015,29.48
LIBRARIES & ARCHIVE,Education-Library Books,"Amazon Svcs Europe,SAR",10/02/2015,12.59
LIBRARIES & ARCHIVE,Education-Library Books,"Amazon Svcs Europe,SAR",10/02/2015,17.43
LIBRARIES & ARCHIVE,Education-Library Books,"Amazon Svcs Europe,SAR",10/02/2015,12.92
LIBRARIES & ARCHIVE,Education-Library Books,"Amazon Svcs Europe,SAR",10/02/2015,8.61
LIBRARIES & ARCHIVE,Education-Library Books,"Amazon Svcs Europe,SAR",10/02/2015,2.81
LIBRARIES & ARCHIVE,Education-Library Books,Amazon UK Marketplace,10/02/2015,8.80
LIBRARIES & ARCHIVE,Education-Library Books,Amazon UK Marketplace,10/02/2015,6.29
LIBRARIES & ARCHIVE,Education-Library Books,Amazon UK Marketplace,10/02/2015,2.81
LIBRARIES & ARCHIVE,Education-Library Books,WWW.THEBOOKSELLER.COM,10/02/2015,196.00
LIBRARIES & ARCHIVE,Stationery,WWW.LABELPLANET.CO.UK,10/02/2015,150.00
LIBRARIES & ARCHIVE,Building-Others,ADT LOUGHTON CC,10/02/2015,363.04
LIBRARIES & ARCHIVE,Education-Library Books,Amazon *Mktplce EU-UK,10/02/2015,16.80
LIBRARIES & ARCHIVE,Education-Library Books,Amazon EU,10/02/2015,7.69
LIBRARIES & ARCHIVE,Education-Library Books,Amazon EU,10/02/2015,15.92
LIBRARIES & ARCHIVE,Education-Other,WHICH?,10/02/2015,75.00
LIBRARIES & ARCHIVE,IT Hardware,SHIRE LEASING PLC,10/02/2015,181.00
LIBRARIES & ARCHIVE,Stationery,Amazon *Mktplce EU-UK,10/02/2015,7.06
LIBRARIES & ARCHIVE,Stationery,Amazon *Mktplce EU-UK,10/02/2015,-7.06
LIBRARIES & ARCHIVE,Stationery,Amazon *Mktplce EU-UK,10/02/2015,8.00
LIBRARIES & ARCHIVE,Stationery,WORDFLOW LTD,10/02/2015,16.35
CORPORATE AFFAIRS,Catering Food & Drink,TESCO STORE 2143,10/02/2015,15.74
CORPORATE AFFAIRS,Professional & Advisory Services,WWW.PMGLTD.CO.UK,10/02/2015,-395.00
CORPORATE AFFAIRS,Vehicle Maintenance,FORTRESS LOCK AND SAFE CO,10/02/2015,33.25
INTERNAL AUDIT,Financial Services,LBL NOT PRESENT,10/02/2015,10.17
INTERNAL AUDIT,Travel/Subsistence,TFL CC/LEZ CHARGE,10/02/2015,11.50
POLICY & COMMUNICATIONS,Financial Services-Insurance,LIBERTY INSURANCE LTD,10/02/2015,10.00
DAY CENTRES,Domestic Goods-Other,ARGOS,11/02/2015,198.92
INTEGRATED DISABILITY,Catering Equipment,"Amazon Svcs Europe,SAR",11/02/2015,33.95
INTEGRATED DISABILITY,Domestic Goods-Other,"Amazon Svcs Europe,SAR",11/02/2015,65.08
BALANCE SHEET,VAT,"Amazon Svcs Europe,SAR",11/02/2015,0.00
BALANCE SHEET,VAT,Amazon EU,11/02/2015,0.73
BALANCE SHEET,VAT,Amazon EU,11/02/2015,22.74
BALANCE SHEET,VAT,CITB,11/02/2015,5.00
BALANCE SHEET,VAT,CITB,11/02/2015,5.00
BALANCE SHEET,VAT,CITB,11/02/2015,5.00
BALANCE SHEET,VAT,WWW.HSS.COM,11/02/2015,40.89
BALANCE SHEET,VAT,TRAVELODGE WEBSITE,11/02/2015,82.17
CHILDREN LOOKED AFTER,Accommodation,TRAVELODGE WEBSITE,11/02/2015,410.83
CHILDREN SAFEGUARDING & ASSESSMENTS,Travel/Subsistence,J&S TRAVEL INTERNATION,11/02/2015,988.80
EMPLOYMENT & ENTERPRISE - E&L,Education-Other,CITB,11/02/2015,25.00
EMPLOYMENT & ENTERPRISE - E&L,Education-Other,CITB,11/02/2015,25.00
EMPLOYMENT & ENTERPRISE - E&L,Education-Other,CITB,11/02/2015,25.00
EMPLOYMENT & ENTERPRISE - E&L,Education-Other,HURAK EDUCATION SERVIC,11/02/2015,139.98
EMPLOYMENT & ENTERPRISE - E&L,Education-Other,WWW.HSS.COM,11/02/2015,204.44
EMPLOYMENT & ENTERPRISE - E&L,Furniture-Office Furniture,Amazon EU,11/02/2015,113.70
EMPLOYMENT & ENTERPRISE - E&L,Professional & Advisory Services,JIB,11/02/2015,30.22
EMPLOYMENT & ENTERPRISE - E&L,Professional & Advisory Services,JIB,11/02/2015,30.22
EMPLOYMENT & ENTERPRISE - E&L,Stationery,Amazon *Mktplce EU-UK,11/02/2015,5.50
EMPLOYMENT & ENTERPRISE - E&L,Stationery,Amazon *Mktplce EU-UK,11/02/2015,12.98
EMPLOYMENT & ENTERPRISE - E&L,Stationery,Amazon *Mktplce EU-UK,11/02/2015,1.99
EMPLOYMENT & ENTERPRISE - E&L,Stationery,Amazon EU,11/02/2015,3.67
EMPLOYMENT & ENTERPRISE - E&L,Travel/Subsistence,LUL TICKET MACHINE,11/02/2015,50.00
EMPLOYMENT & ENTERPRISE - E&L,Travel/Subsistence,OYSTER AUTOTOPUP,11/02/2015,20.00
EMPLOYMENT & ENTERPRISE - E&L,Travel/Subsistence,OYSTER AUTOTOPUP,11/02/2015,20.00
EMPLOYMENT & ENTERPRISE - E&L,Travel/Subsistence,OYSTER AUTOTOPUP,11/02/2015,20.00
EMPLOYMENT & ENTERPRISE - E&L,Travel/Subsistence,OYSTER AUTOTOPUP,11/02/2015,20.00
EMPLOYMENT & ENTERPRISE - E&L,Travel/Subsistence,OYSTER AUTOTOPUP,11/02/2015,20.00
EMPLOYMENT & ENTERPRISE - E&L,Travel/Subsistence,OYSTER AUTOTOPUP,11/02/2015,20.00
EMPLOYMENT & ENTERPRISE - E&L,Travel/Subsistence,OYSTER BUS AUTOTOP,11/02/2015,20.00
EMPLOYMENT & ENTERPRISE - E&L,Travel/Subsistence,OYSTER BUS AUTOTOP,11/02/2015,20.00
EMPLOYMENT & ENTERPRISE - E&L,Travel/Subsistence,OYSTER BUS AUTOTOP,11/02/2015,20.00
EMPLOYMENT & ENTERPRISE - E&L,Travel/Subsistence,OYSTER BUS AUTOTOP,11/02/2015,20.00
EMPLOYMENT & ENTERPRISE - E&L,Travel/Subsistence,OYSTER BUS AUTOTOP,11/02/2015,20.00
EMPLOYMENT & ENTERPRISE - E&L,Travel/Subsistence,OYSTER BUS AUTOTOP,11/02/2015,20.00
EMPLOYMENT & ENTERPRISE - E&L,Travel/Subsistence,OYSTER BUS AUTOTOP,11/02/2015,40.00
EMPLOYMENT & ENTERPRISE - E&L,Travel/Subsistence,THE TRAINLINE.CO,11/02/2015,108.00
INTEGRATED DISABILITY,Catering Equipment,Amazon UK Retail,12/02/2015,14.55
OLDER PEOPLE,Catering Food & Drink,DOMBEY WHOLESALE BUTCH,12/02/2015,60.96
BALANCE SHEET,VAT,Amazon UK Retail,12/02/2015,0.00
BALANCE SHEET,VAT,SAINSBURYS S/MKTS,12/02/2015,2.00
CHILDREN LOOKED AFTER,Financial Services,HM PASSPORT OFFICE,12/02/2015,72.50
BUSINESS TRANSFORMATION,Education-Library Books,Amazon EU,12/02/2015,38.61
BUSINESS TRANSFORMATION,Education-Library Books,"Amazon Svcs Europe,SAR",12/02/2015,93.30
BUSINESS TRANSFORMATION,Education-Other,WWW.CITY.AC.UK,12/02/2015,430.00
BUSINESS TRANSFORMATION,IT Office Equipment,Amazon *Mktplce EU-UK,12/02/2015,44.95
INTERNAL AUDIT,Catering Food & Drink,SAINSBURYS S/MKTS,12/02/2015,8.00
HOUSING NEEDS (HRA),Building-Timber,SCREWFIX DIRECT,12/02/2015,119.14
HOUSING CAPITAL & ASSET MANAGEMENT,Legal Services-Other,HMCOURTS-SERVICE.G,12/02/2015,200.00
HOUSING CAPITAL & ASSET MANAGEMENT,Legal Services-Other,HMCOURTS-SERVICE.G,12/02/2015,240.00
HOUSING CAPITAL & ASSET MANAGEMENT,Legal Services-Other,HMCOURTS-SERVICE.G,12/02/2015,140.00
HOUSING CAPITAL & ASSET MANAGEMENT,Legal Services-Other,HMCOURTS-SERVICE.G,12/02/2015,140.00
HOUSING CAPITAL & ASSET MANAGEMENT,Legal Services-Other,HMCOURTS-SERVICE.G,12/02/2015,80.00
HOUSING CAPITAL & ASSET MANAGEMENT,Legal Services-Other,HMCOURTS-SERVICE.G,12/02/2015,40.00
HOUSING CAPITAL & ASSET MANAGEMENT,Legal Services-Other,HMCOURTS-SERVICE.G,12/02/2015,160.00
HOUSING CAPITAL & ASSET MANAGEMENT,Legal Services-Other,HMCOURTS-SERVICE.G,12/02/2015,60.00
HOUSING CAPITAL & ASSET MANAGEMENT,Legal Services-Other,HMCOURTS-SERVICE.G,12/02/2015,60.00
HOUSING CAPITAL & ASSET MANAGEMENT,Legal Services-Other,HMCOURTS-SERVICE.G,12/02/2015,200.00
OTHER - ADULTS,Education-Other,BRIGHTONSCH,13/02/2015,410.00
OTHER - ADULTS,Education-Other,BRIGHTONSCH,13/02/2015,127.12
OTHER - ADULTS,Facilities-Printing,Amazon UK Retail,13/02/2015,79.16
BALANCE SHEET,VAT,Amazon UK Retail,13/02/2015,15.83
BALANCE SHEET,VAT,BRIGHTONSCH,13/02/2015,90.00
BALANCE SHEET,VAT,TESCO STORES 5342,13/02/2015,0.59
FINANCIAL PLANNING AND MANAGEMENT,Travel/Subsistence,SELFSERVE TICKET,13/02/2015,20.00
NEE SENIOR MANAGEMENT TEAM,Catering Food & Drink,TESCO STORES 5342,13/02/2015,33.76
FINANCIAL PLANNING AND MANAGEMENT,Travel/Subsistence,OYSTER BUS AUTOTOP,15/02/2015,20.00
DAY CENTRES,Financial Services,SAIN - BRIXTON,16/02/2015,400.00
BALANCE SHEET,VAT,PAVILLION PUBLISHI AND,16/02/2015,78.00
CHILDREN LOOKED AFTER,Consultancy-Business,HEALTHCARE CONFERENCES,16/02/2015,394.20
HUMAN RESOURCES & ORGANISATIONAL DEVELOPMENT,Facilities-Market Research,PAVILLION PUBLISHI AND,16/02/2015,390.00
DAY CENTRES,Financial Services,CASH ADVANCE FEE,17/02/2015,11.80
INTEGRATED DISABILITY,Building-Others,CVLE / MPLC,17/02/2015,179.22
OLDER PEOPLE,Catering Food & Drink,DOMBEY WHOLESALE BUTCH,17/02/2015,42.68
OLDER PEOPLE,Catering Food & Drink,FISH BARGAIN WAREHOUSE,17/02/2015,166.20
SENIOR MANAGEMENT - ADULTS & PUBLIC HEALTH,Taxi Fares,WWW.ADDISONLEE.COM,17/02/2015,32.08
BALANCE SHEET,VAT,ARGOS RETAIL GROUP,17/02/2015,12.48
BALANCE SHEET,VAT,CVLE / MPLC,17/02/2015,0.00
BALANCE SHEET,VAT,WWW.ADDISONLEE.COM,17/02/2015,6.42
ADVENTURE PLAYGROUNDS & ONE O'CLOCK CLUBS,Sports Equipment,ARGOS RETAIL GROUP,17/02/2015,62.38
"PLANNING, TRANSPORT & DEVELOPMENT",Travel/Subsistence,DOVETAIL FOKS,17/02/2015,"1,177.20"
"PLANNING, TRANSPORT & DEVELOPMENT",Travel/Subsistence,DOVETAIL FOKS,17/02/2015,265.00
HOUSING CAPITAL & ASSET MANAGEMENT,Legal Services-Other,HMCOURTS-SERVICE.G,17/02/2015,200.00
INTEGRATED DISABILITY,Financial Services,SAIN - BRIXTON,18/02/2015,400.00
INTEGRATED DISABILITY,Accommodation,THE CITY HOTEL,18/02/2015,31.67
BALANCE SHEET,VAT,POUNDLAND LTD 1203,18/02/2015,1.50
BALANCE SHEET,VAT,SAIN - BRIXTON,18/02/2015,0.00
BALANCE SHEET,VAT,THE CITY HOTEL,18/02/2015,6.33
EARLY YEARS AND PARENTING,Catering Equipment,POUNDLAND LTD 1203,18/02/2015,7.50
EARLY YEARS AND PARENTING,Catering Food & Drink,TESCO STORE 2143,18/02/2015,34.75
ADVENTURE PLAYGROUNDS & ONE O'CLOCK CLUBS,Education-Other,TESCO STORE 2143,18/02/2015,15.00
ADVENTURE PLAYGROUNDS & ONE O'CLOCK CLUBS,Catering Food & Drink,TESCO STORE 2143,18/02/2015,24.00
ADVENTURE PLAYGROUNDS & ONE O'CLOCK CLUBS,Catering Food & Drink,TESCO STORES 5999,18/02/2015,309.65
ADVENTURE PLAYGROUNDS & ONE O'CLOCK CLUBS,Education-Toys,ARGOS,18/02/2015,56.98
ADVENTURE PLAYGROUNDS & ONE O'CLOCK CLUBS,Education-Toys,ARGOS RETAIL GROUP,18/02/2015,123.87
FINANCIAL PLANNING AND MANAGEMENT,Travel/Subsistence,LUL TICKET MACHINE,18/02/2015,20.00
INTEGRATED DISABILITY,Financial Services,CASH ADVANCE FEE,19/02/2015,11.80
BALANCE SHEET,VAT,CASH ADVANCE FEE,19/02/2015,0.00
EARLY HELP,Catering Food & Drink,TESCO STORE 2143,19/02/2015,30.00
EARLY HELP,Clothing-Children/Adults,NEW LOOK,19/02/2015,100.00
EARLY HELP,Clothing-Children/Adults,PRIMARK,19/02/2015,200.00
EARLY HELP,Domestic Goods-Other,ARGOS LTD,19/02/2015,39.99
EARLY HELP,Domestic Goods-Other,ARGOS LTD,19/02/2015,182.31
EARLY HELP,Domestic Goods-Other,ARGOS RETAIL GROUP,19/02/2015,255.31
REVENUE & BENEFITS,Healthcare Equipment,Amazon UK Retail,19/02/2015,239.67
FINANCIAL PLANNING AND MANAGEMENT,Public Transport,EXPRESS NEWS,20/02/2015,30.00
BALANCE SHEET,VAT,GLS EDUCATIONAL,23/02/2015,18.04
EARLY YEARS AND PARENTING,Education-Supplies,GLS EDUCATIONAL,23/02/2015,90.19
HOUSING CAPITAL & ASSET MANAGEMENT,Legal Services-Other,HMCOURTS-SERVICE.G,23/02/2015,140.00
INTEGRATED DISABILITY,Financial Services,ROYAL BANK UK /,24/02/2015,400.00
OTHER - ADULTS,Catering Food & Drink,TESCO STORES 5999,24/02/2015,92.55
BALANCE SHEET,VAT,ROYAL BANK UK /,24/02/2015,0.00
BALANCE SHEET,VAT,AO RETAIL LIMITED,24/02/2015,110.99
BALANCE SHEET,VAT,AO RETAIL LIMITED,24/02/2015,129.33
BALANCE SHEET,VAT,CURRYS ONLINE,24/02/2015,42.33
BALANCE SHEET,VAT,CURRYS ONLINE,24/02/2015,58.17
BALANCE SHEET,VAT,CURRYS ONLINE,24/02/2015,43.16
BALANCE SHEET,VAT,CURRYS ONLINE,24/02/2015,48.17
BALANCE SHEET,VAT,PC WORLD ONLINE,24/02/2015,38.17
CHILDREN LOOKED AFTER,Building-Timber,B&Q DIRECT,24/02/2015,345.60
CHILDREN LOOKED AFTER,Consultancy-Other,TVLICENSING.CO.UK,24/02/2015,291.00
CHILDREN LOOKED AFTER,Domestic Goods-Other,AO RETAIL LIMITED,24/02/2015,107.50
CHILDREN LOOKED AFTER,Domestic Goods-Other,ARGOS RETAIL GROUP,24/02/2015,188.94
CHILDREN LOOKED AFTER,Domestic Goods-Other,ARGOS RETAIL GROUP,24/02/2015,418.93
CHILDREN LOOKED AFTER,Domestic Goods-Other,ARGOS RETAIL GROUP,24/02/2015,"1,078.25"
CHILDREN LOOKED AFTER,Domestic Goods-Other,ARGOS RETAIL GROUP,24/02/2015,"1,293.83"
CHILDREN LOOKED AFTER,Domestic Goods-Other,CURRYS ONLINE,24/02/2015,290.83
CHILDREN LOOKED AFTER,Domestic Goods-Other,CURRYS ONLINE,24/02/2015,240.83
CHILDREN LOOKED AFTER,Domestic Goods-Other,CURRYS SUPERSTORE,24/02/2015,110.00
CHILDREN LOOKED AFTER,Domestic Goods-Other,WILKO.COM,24/02/2015,53.50
CHILDREN LOOKED AFTER,Financial Services,HM PASSPORT OFFICE,24/02/2015,230.50
CHILDREN LOOKED AFTER,Financial Services,NATIONALITY DIRECTORAT,24/02/2015,170.00
CHILDREN LOOKED AFTER,Financial Services,THE HOME OFFICE,24/02/2015,601.00
CHILDREN LOOKED AFTER,Furniture-Domestic Furniture,DREAMS LTD,24/02/2015,219.00
CHILDREN LOOKED AFTER,Furniture-Domestic Furniture,WWW.LOVESOFAS.CO.UK,24/02/2015,769.00
CHILDREN LOOKED AFTER,Domestic Goods-Other,AO RETAIL LIMITED,24/02/2015,555.00
CHILDREN LOOKED AFTER,Domestic Goods-Other,AO RETAIL LIMITED,24/02/2015,539.17
CHILDREN LOOKED AFTER,Domestic Goods-Other,CURRYS ONLINE,24/02/2015,211.67
CHILDREN LOOKED AFTER,Domestic Goods-Other,CURRYS ONLINE,24/02/2015,215.78
CHILDREN LOOKED AFTER,Domestic Goods-Other,PC WORLD ONLINE,24/02/2015,190.83
CHILDREN LOOKED AFTER,Furniture-Domestic Furniture,A2Z FURNITURE,24/02/2015,460.00
FINANCIAL PLANNING AND MANAGEMENT,Financial Services,LAND REGISTRY,24/02/2015,9.00
FINANCIAL PLANNING AND MANAGEMENT,Financial Services,LAND REGISTRY,24/02/2015,6.00
FINANCIAL PLANNING AND MANAGEMENT,Education-Other,WWW.CIMAGLOBAL.COM,24/02/2015,259.00
HOUSING CAPITAL & ASSET MANAGEMENT,Legal Services-Other,HMCOURTS-SERVICE.G,24/02/2015,120.00
INTEGRATED DISABILITY,Accommodation,THE TOWNHOUSE HOTEL ARBR,25/02/2015,59.17
INTEGRATED DISABILITY,Financial Services,CASH ADVANCE FEE,25/02/2015,11.80
INTEGRATED DISABILITY,Financial Services,CASH ADVANCE FEE,25/02/2015,11.80
INTEGRATED DISABILITY,Financial Services,CASH ADVANCE FEE,25/02/2015,11.80
INTEGRATED DISABILITY,Financial Services,CASH ADVANCE FEE,25/02/2015,11.80
INTEGRATED DISABILITY,Financial Services,CASH ADVANCE FEE,25/02/2015,11.80
SENIOR MANAGEMENT - ADULTS & PUBLIC HEALTH,Education-Other,ASHRIDGE MANAGEMENT COLLE,25/02/2015,198.00
BALANCE SHEET,VAT,WWW.INSTANTPRINT.C,25/02/2015,0.83
BALANCE SHEET,VAT,CASH ADVANCE FEE,25/02/2015,0.00
BALANCE SHEET,VAT,CASH ADVANCE FEE,25/02/2015,0.00
BALANCE SHEET,VAT,CASH ADVANCE FEE,25/02/2015,0.00
BALANCE SHEET,VAT,CASH ADVANCE FEE,25/02/2015,0.00
BALANCE SHEET,VAT,CASH ADVANCE FEE,25/02/2015,0.00
BALANCE SHEET,VAT,Amazon UK Retail,25/02/2015,27.60
BALANCE SHEET,VAT,ASHRIDGE MANAGEMENT COLLE,25/02/2015,39.60
BALANCE SHEET,VAT,THE TOWNHOUSE HOTEL ARBR,25/02/2015,11.83
QUALITY ASSURANCE & PERFORMANCE,Accommodation,HOTELS COM120825653272,25/02/2015,-79.00
QUALITY ASSURANCE & PERFORMANCE,Travel/Subsistence,EC MAINLINE CO INT,25/02/2015,129.30
QUALITY ASSURANCE & PERFORMANCE,Travel/Subsistence,EC MAINLINE CO INT,25/02/2015,15.00
QUALITY ASSURANCE & PERFORMANCE,Travel/Subsistence,EC MAINLINE CO INT,25/02/2015,201.00
QUALITY ASSURANCE & PERFORMANCE,Travel/Subsistence,EC MAINLINE CO INT,25/02/2015,91.00
QUALITY ASSURANCE & PERFORMANCE,Travel/Subsistence,EC MAINLINE CO INT,25/02/2015,30.60
QUALITY ASSURANCE & PERFORMANCE,Travel/Subsistence,EC MAINLINE CO INT,25/02/2015,10.60
QUALITY ASSURANCE & PERFORMANCE,Travel/Subsistence,EC MAINLINE CO INT,25/02/2015,18.10
QUALITY ASSURANCE & PERFORMANCE,Travel/Subsistence,GOV.UK/DART-CHARGE,25/02/2015,10.00
QUALITY ASSURANCE & PERFORMANCE,Travel/Subsistence,NEW SOUTHERN RAILW,25/02/2015,50.00
QUALITY ASSURANCE & PERFORMANCE,Travel/Subsistence,OYSTER AUTOTOPUP,25/02/2015,40.00
QUALITY ASSURANCE & PERFORMANCE,Travel/Subsistence,OYSTER AUTOTOPUP,25/02/2015,40.00
QUALITY ASSURANCE & PERFORMANCE,Travel/Subsistence,OYSTER BUS AUTOTOP,25/02/2015,40.00
QUALITY ASSURANCE & PERFORMANCE,Travel/Subsistence,OYSTER BUS AUTOTOP,25/02/2015,40.00
QUALITY ASSURANCE & PERFORMANCE,Travel/Subsistence,OYSTER BUS AUTOTOP,25/02/2015,40.00
QUALITY ASSURANCE & PERFORMANCE,Travel/Subsistence,OYSTER RENEW WEB,25/02/2015,40.00
YOUTH OFFENDING SERVICE,Use of Public Transport,BRIX CENTRAL STOP,25/02/2015,40.00
YOUTH OFFENDING SERVICE,Use of Public Transport,BRIX CENTRAL STOP,25/02/2015,40.00
PROPERTY & FINANCIAL TRANSACTION SERVICES,IT Hardware,Amazon UK Retail,25/02/2015,137.65
REVENUE & BENEFITS,Travel/Subsistence,OYSTER BUS AUTOTOP,25/02/2015,20.00
FINANCIAL PLANNING AND MANAGEMENT,Domestic Goods-Other,ARGOS RETAIL GROUP,25/02/2015,173.94
FINANCIAL PLANNING AND MANAGEMENT,Financial Services,LB CROYDON,25/02/2015,10.17
FINANCIAL PLANNING AND MANAGEMENT,Travel/Subsistence,OYSTER AUTOTOPUP,25/02/2015,20.00
POLICY & COMMUNICATIONS,Catering Food & Drink,SAINSBURYS SUPERMA,25/02/2015,24.30
POLICY & COMMUNICATIONS,Catering Food & Drink,TESCO STORES 4342,25/02/2015,50.10
POLICY & COMMUNICATIONS,Catering Food & Drink,TESCO STORES 4342,25/02/2015,61.45
POLICY & COMMUNICATIONS,Catering Food & Drink,TESCO STORES 4342,25/02/2015,55.25
POLICY & COMMUNICATIONS,Education-Supplies,W HOBBY LTD,25/02/2015,33.91
POLICY & COMMUNICATIONS,Facilities-Reprographics,WWW.INSTANTPRINT.C,25/02/2015,59.16
POLICY & COMMUNICATIONS,IT Consumables,"Amazon Svcs Europe,SAR",25/02/2015,17.18
POLICY & COMMUNICATIONS,Stationery,PAYPAL *A1PACKAGING,25/02/2015,22.45
POLICY & COMMUNICATIONS,Stationery,PAYPAL *A4LABELSCOM,25/02/2015,3.79
POLICY & COMMUNICATIONS,Stationery,PAYPAL *BAGITPLASTI,25/02/2015,2.62
POLICY & COMMUNICATIONS,Stationery,PAYPAL *GLAMGLASS,25/02/2015,9.50
POLICY & COMMUNICATIONS,Stationery,PAYPAL *SSJOHALSONS,25/02/2015,25.99
POLICY & COMMUNICATIONS,Stationery,PAYPAL *VERAGELIMIT,25/02/2015,11.78
CHILDREN SAFEGUARDING & ASSESSMENTS,Domestic Goods-Other,ARGOS DIRECT,26/02/2015,686.91
CHILDREN SAFEGUARDING & ASSESSMENTS,Facilities-Market Research,ARGOS DIRECT,26/02/2015,144.98
LIBRARIES & ARCHIVE,Education-Library Books,Amazon *Mktplce EU-UK,26/02/2015,5.30
LIBRARIES & ARCHIVE,Education-Library Books,Amazon *Mktplce EU-UK,26/02/2015,2.64
LIBRARIES & ARCHIVE,Education-Library Books,Amazon *Mktplce EU-UK,26/02/2015,36.42
LIBRARIES & ARCHIVE,Education-Library Books,Amazon *Mktplce EU-UK,26/02/2015,2.81
LIBRARIES & ARCHIVE,Education-Library Books,Amazon *Mktplce EU-UK,26/02/2015,39.10
LIBRARIES & ARCHIVE,Education-Library Books,Amazon *Mktplce EU-UK,26/02/2015,7.42
LIBRARIES & ARCHIVE,Education-Library Books,Amazon EU,26/02/2015,20.96
LIBRARIES & ARCHIVE,Education-Library Books,Amazon EU,26/02/2015,6.99
LIBRARIES & ARCHIVE,Education-Library Books,Amazon EU,26/02/2015,23.65
LIBRARIES & ARCHIVE,Education-Library Books,Amazon EU,26/02/2015,7.55
LIBRARIES & ARCHIVE,Education-Library Books,"Amazon Svcs Europe,SAR",26/02/2015,2.81
HOUSING CAPITAL & ASSET MANAGEMENT,Legal Services-Other,HMCOURTS-SERVICE.G,26/02/2015,100.00
BALANCE SHEET,VAT,HOOTSUITE MEDIA INC.,27/02/2015,18.39
BALANCE SHEET,VAT,MARIAS KITCHEN,27/02/2015,78.80
BALANCE SHEET,VAT,PAUL ANTONIO SCRIBE LT,27/02/2015,15.00
BALANCE SHEET,VAT,POUNDLAND LTD 1203,27/02/2015,1.50
FINANCIAL PLANNING AND MANAGEMENT,Domestic Goods-Other,ARGOS RETAIL GROUP,27/02/2015,23.94
FINANCIAL PLANNING AND MANAGEMENT,Domestic Goods-Other,ARGOS RETAIL GROUP,27/02/2015,258.94
COMMUNICATIONS (HRA),Catering Food & Drink,MARIAS KITCHEN,27/02/2015,394.00
COMMUNICATIONS (HRA),Catering Food & Drink,TESCO STORES-2143,27/02/2015,9.80
COMMUNICATIONS (HRA),Domestic Goods-Other,HIGH STREET VOUCHE,27/02/2015,495.95
COMMUNICATIONS (HRA),Domestic Goods-Other,POUNDLAND LTD 1203,27/02/2015,7.50
COMMUNICATIONS (HRA),Horticultural-Seeds & Plants,JANET EDWARDS LONDON B,27/02/2015,40.00
COMMUNICATIONS (HRA),IT Services,HOOTSUITE MEDIA INC.,27/02/2015,91.92
COMMUNICATIONS (HRA),Stationery,PAUL ANTONIO SCRIBE LT,27/02/2015,75.00
HOUSING MANAGEMENT SERVICES,Travel/Subsistence,LUL TICKET MACHINE,27/02/2015,50.00
HOUSING MANAGEMENT SERVICES,Travel/Subsistence,LUL TICKET MACHINE,27/02/2015,25.00
HOUSING MANAGEMENT SERVICES,Travel/Subsistence,OYSTER AUTOTOPUP,27/02/2015,20.00
HOUSING MANAGEMENT SERVICES,Travel/Subsistence,OYSTER RENEW WEB,27/02/2015,20.00
HOUSING MANAGEMENT SERVICES,Travel/Subsistence,OYSTER RENEW WEB,27/02/2015,0.00
HOUSING MANAGEMENT SERVICES,Travel/Subsistence,OYSTER RENEW WEB,27/02/2015,10.00
PROCUREMENT,Stationery,WWW.CIPS.ORG,01/03/2015,40.24
OTHER - ADULTS,Domestic Goods-Other,Amazon UK Marketplace,02/03/2015,105.87
BALANCE SHEET,VAT,C RASSELL LTD,02/03/2015,21.90
BALANCE SHEET,VAT,PAYPAL *TINDERFOUND,02/03/2015,19.00
HOUSING MANAGEMENT SERVICES,Facilities-Design & Photography,HOSPEDIAHOSPITALTV,02/03/2015,40.00
HOUSING MANAGEMENT SERVICES,Facilities-Market Research,Amazon Prime,02/03/2015,79.00
HOUSING MANAGEMENT SERVICES,Facilities-Printing,WWW.INSIDEHOUSING.CO.U,02/03/2015,64.50
HOUSING MANAGEMENT SERVICES,Financial Services-Grants,PAYPAL *TINDERFOUND,02/03/2015,95.00
HOUSING MANAGEMENT SERVICES,Horticultural-Other,C RASSELL LTD,02/03/2015,109.50
HOUSING NEEDS (HRA),Stationery,Amazon UK Marketplace,02/03/2015,3.99
INTEGRATED DISABILITY,Education-Musical Instruments,THE COUNCIL FOR MUSIC,03/03/2015,140.40
OLDER PEOPLE,Catering Food & Drink,MN WEST NORWOOD HALAL,03/03/2015,92.00
BALANCE SHEET,VAT,THE COUNCIL FOR MUSIC,03/03/2015,0.00
BALANCE SHEET,VAT,RBI EVENTS,03/03/2015,39.80
YOUTH OFFENDING SERVICE,Travel/Subsistence,LUL TICKET MACHINE,03/03/2015,60.00
REVENUE & BENEFITS,Travel/Subsistence,SOUTHWESTTRAINS,03/03/2015,47.10
REVENUE & BENEFITS,Travel/Subsistence,THE TRAINLINE.CO,03/03/2015,40.90
REVENUE & BENEFITS,Travel/Subsistence,THE TRAINLINE.CO,03/03/2015,46.00
REVENUE & BENEFITS,Travel/Subsistence,THE TRAINLINE.CO,03/03/2015,47.10
FINANCIAL PLANNING AND MANAGEMENT,Public Transport,BRIXTON NEWS,03/03/2015,20.60
HUMAN RESOURCES & ORGANISATIONAL DEVELOPMENT,Organised Activities,RBI EVENTS,03/03/2015,199.00
HOUSING CAPITAL & ASSET MANAGEMENT,Legal Services-Other,HMCOURTS-SERVICE.G,03/03/2015,340.00
OLDER PEOPLE,Catering Food & Drink,DOMBEY WHOLESALE BUTCH,04/03/2015,253.16
BALANCE SHEET,VAT,KINGSHIELD PHARMACY,04/03/2015,2.25
EARLY HELP,Building-Floors,BUDGET CARPETS 1,04/03/2015,269.00
EARLY HELP,Clothing-Children/Adults,TOP SHOP/DP/EVANS,04/03/2015,30.00
EARLY HELP,Domestic Goods-Other,ARGOS,04/03/2015,4.99
QUALITY ASSURANCE & PERFORMANCE,Stationery,KINGSHIELD PHARMACY,04/03/2015,11.25
QUALITY ASSURANCE & PERFORMANCE,Stationery,WH SMITH,04/03/2015,61.39
LIBRARIES & ARCHIVE,Facilities-Advertising,WH SMITH,04/03/2015,570.48
INTERNAL AUDIT,Travel/Subsistence,OYSTER AUTOTOPUP,04/03/2015,60.00
INTERNAL AUDIT,Travel/Subsistence,OYSTER AUTOTOPUP,04/03/2015,20.00
INTERNAL AUDIT,Travel/Subsistence,OYSTER BUS AUTOTOP,04/03/2015,20.00
INTERNAL AUDIT,Education-Library Books,"Amazon Svcs Europe,SAR",04/03/2015,47.77
INTERNAL AUDIT,Financial Services,LBL NOT PRESENT,04/03/2015,10.17
INTERNAL AUDIT,Travel/Subsistence,TFL CC/LEZ CHARGE,04/03/2015,11.50
INTERNAL AUDIT,Travel/Subsistence,TFL CC/LEZ CHARGE,04/03/2015,11.50
INTERNAL AUDIT,Travel/Subsistence,TFL CC/LEZ CHARGE,04/03/2015,11.50
HOUSING NEEDS,Travel/Subsistence,TRAINLINE.COM,04/03/2015,270.61
HOUSING CAPITAL & ASSET MANAGEMENT,Legal Services-Other,HMCOURTS-SERVICE.G,04/03/2015,140.00
DAY CENTRES,Financial Services,SAIN - BRIXTON,05/03/2015,400.00
INTEGRATED DISABILITY,Financial Services,ROYAL BANK UK /,05/03/2015,400.00
MENTAL HEALTH,Legal Services-Other,HMCOURTS-SERVICE.G,05/03/2015,80.00
MENTAL HEALTH,Legal Services-Other,HMCOURTS-SERVICE.G,05/03/2015,40.00
MENTAL HEALTH,Legal Services-Other,HMCOURTS-SERVICE.G,05/03/2015,20.00
MENTAL HEALTH,Legal Services-Other,HMCOURTS-SERVICE.G,05/03/2015,20.00
MENTAL HEALTH,Legal Services-Other,HMCOURTS-SERVICE.G,05/03/2015,40.00
MENTAL HEALTH,Legal Services-Other,HMCOURTS-SERVICE.G,05/03/2015,20.00
MENTAL HEALTH,Legal Services-Other,HMCOURTS-SERVICE.G,05/03/2015,60.00
MENTAL HEALTH,Legal Services-Other,HMCOURTS-SERVICE.G,05/03/2015,40.00
MENTAL HEALTH,Legal Services-Other,HMCOURTS-SERVICE.G,05/03/2015,20.00
MENTAL HEALTH,Legal Services-Other,HMCOURTS-SERVICE.G,05/03/2015,40.00
MENTAL HEALTH,Legal Services-Other,HMCOURTS-SERVICE.G,05/03/2015,20.00
MENTAL HEALTH,Legal Services-Other,HMCOURTS-SERVICE.G,05/03/2015,20.00
MENTAL HEALTH,Legal Services-Other,HMCOURTS-SERVICE.G,05/03/2015,40.00
MENTAL HEALTH,Legal Services-Other,HMCOURTS-SERVICE.G,05/03/2015,40.00
MENTAL HEALTH,Legal Services-Other,HMCOURTS-SERVICE.G,05/03/2015,60.00
MENTAL HEALTH,Legal Services-Other,HMCOURTS-SERVICE.G,05/03/2015,40.00
MENTAL HEALTH,Legal Services-Other,HMCOURTS-SERVICE.G,05/03/2015,20.00
MENTAL HEALTH,Legal Services-Other,HMCOURTS-SERVICE.G,05/03/2015,20.00
MENTAL HEALTH,Legal Services-Other,HMCOURTS-SERVICE.G,05/03/2015,40.00
MENTAL HEALTH,Legal Services-Other,HMCOURTS-SERVICE.G,05/03/2015,40.00
OTHER - ADULTS,Taxi Fares,WWW.ADDISONLEE.COM,05/03/2015,13.00
BALANCE SHEET,VAT,WWW.ADDISONLEE.COM,05/03/2015,2.60
BALANCE SHEET,VAT,ROYAL BANK UK /,05/03/2015,0.00
CHILDREN LOOKED AFTER,Financial Services,HM PASSPORT OFFICE,05/03/2015,46.00
CHILDREN LOOKED AFTER,Travel/Subsistence,VIRGINAT,05/03/2015,746.22
REVENUE & BENEFITS,Legal Services-Other,HMCOURTS-SERVICE.G,05/03/2015,"5,976.00"
FINANCIAL PLANNING AND MANAGEMENT,Professional subscriptions,ACCA,05/03/2015,386.00
FINANCIAL PLANNING AND MANAGEMENT,Public Transport,EXPRESS NEWS,05/03/2015,20.00
"WELFARE, EMPLOYMENT & SKILLS",Professional subscriptions,WWW.PMGLTD.CO.UK,05/03/2015,445.00
DAY CENTRES,Financial Services,CASH ADVANCE FEE,06/03/2015,11.80
INTEGRATED DISABILITY,Financial Services,CASH ADVANCE FEE,06/03/2015,11.80
BALANCE SHEET,VAT,CASH ADVANCE FEE,06/03/2015,0.00
BALANCE SHEET,VAT,ACT*Neil Stewart Assoc,06/03/2015,70.00
BALANCE SHEET,VAT,ACT*Neil Stewart Assoc,06/03/2015,35.00
CHILDREN LOOKED AFTER,Financial Services,HM PASSPORT OFFICE,06/03/2015,46.00
CHILDREN LOOKED AFTER,Financial Services,L BORO OF ISLINGTN,06/03/2015,11.00
FINANCIAL PLANNING AND MANAGEMENT,Consultancy-Business,ACT*Neil Stewart Assoc,06/03/2015,350.00
FINANCIAL PLANNING AND MANAGEMENT,Consultancy-Business,ACT*Neil Stewart Assoc,06/03/2015,175.00
FINANCIAL PLANNING AND MANAGEMENT,Financial Services,LAND REGISTRY,06/03/2015,3.00
FINANCIAL PLANNING AND MANAGEMENT,Travel/Subsistence,TRAINLINE.COM,06/03/2015,225.62
INTERNAL AUDIT,Financial Services,LONDON BRGH SOUTHWARK,06/03/2015,10.00
"WELFARE, EMPLOYMENT & SKILLS",Professional subscriptions,BRIGHTONSCH,06/03/2015,500.00
HOUSING NEEDS (HRA),Furniture-Soft Furnishings,ARGOS RETAIL GROUP,06/03/2015,53.80
CHILDREN LOOKED AFTER,Catering Food & Drink,MARKS & SPENCER,08/03/2015,42.54
CHILDREN LOOKED AFTER,Domestic Goods-Other,ARGOS,08/03/2015,19.98
CHILDREN LOOKED AFTER,Domestic Goods-Other,CURRYS ONLINE,08/03/2015,349.99
BALANCE SHEET,VAT,Amazon UK Retail,09/03/2015,3.52
QUALITY ASSURANCE & PERFORMANCE,Domestic Goods-Other,HIGH STREET VOUCHE,09/03/2015,50.00
PROPERTY & FINANCIAL TRANSACTION SERVICES,Healthcare Equipment,"Amazon Svcs Europe,SAR",09/03/2015,28.95
PROPERTY & FINANCIAL TRANSACTION SERVICES,Healthcare Equipment,Amazon UK Retail,09/03/2015,17.64
HUMAN RESOURCES & ORGANISATIONAL DEVELOPMENT (HRA),Catering Food & Drink,TESCO STORES 5999,09/03/2015,88.10
HUMAN RESOURCES & ORGANISATIONAL DEVELOPMENT (HRA),Education-Other,WWW.CIMAGLOBAL.COM,09/03/2015,272.00
HUMAN RESOURCES & ORGANISATIONAL DEVELOPMENT (HRA),IT Services-Disaster Recovery,BT DISCLOSURE SCOTLAND,09/03/2015,75.00
HUMAN RESOURCES & ORGANISATIONAL DEVELOPMENT (HRA),IT Services-Disaster Recovery,BT DISCLOSURE SCOTLAND,09/03/2015,100.00
HUMAN RESOURCES & ORGANISATIONAL DEVELOPMENT (HRA),IT Services-Disaster Recovery,BT DISCLOSURE SCOTLAND,09/03/2015,25.00
NEIGHBOURHOODS,Financial Services,LAMBETH INTERNET PAYM,09/03/2015,115.88
NEIGHBOURHOODS,Financial Services,LAMBETH INTERNET PAYM,09/03/2015,249.05
NEIGHBOURHOODS,Financial Services,LAMBETH INTERNET PAYM,09/03/2015,55.91
OTHER - ADULTS,Catering Food & Drink,TESCO STORE 2821,10/03/2015,29.50
CHILDREN LOOKED AFTER,Accommodation,CHESTER HOTEL,10/03/2015,65.00
CHILDREN SAFEGUARDING & ASSESSMENTS,Healthcare Services,GENERAL GENETICS CORP,10/03/2015,12.25
REVENUE & BENEFITS,Stationery,"Amazon Svcs Europe,SAR",10/03/2015,63.90
FINANCE (HRA),Consultancy-Business,EB ALMO CHIEF EXECUTI,10/03/2015,399.00
FINANCE (HRA),Consultancy-Business,EVENTBRITE INC,10/03/2015,-399.00
FINANCE (HRA),Travel/Subsistence,VIRGINTRAINS.CO.UK,10/03/2015,125.00
HOUSING CAPITAL & ASSET MANAGEMENT,Legal Services-Other,HMCOURTS-SERVICE.G,10/03/2015,240.00
OLDER PEOPLE,Catering Food & Drink,ICELAND,12/03/2015,50.00
BALANCE SHEET,VAT,NOTTINGHAM BELFRY,12/03/2015,20.70
CHILDREN LOOKED AFTER,Accommodation,CHESTER HOTEL,12/03/2015,"1,056.00"
CHILDREN LOOKED AFTER,Domestic Goods-Other,TESCO - PLO,12/03/2015,279.95
REVENUE & BENEFITS,Healthcare Equipment,"Amazon Svcs Europe,SAR",12/03/2015,29.00
REVENUE & BENEFITS,Stationery,"Amazon Svcs Europe,SAR",12/03/2015,42.99
REVENUE & BENEFITS,Accommodation,NOTTINGHAM BELFRY,12/03/2015,103.50
REVENUE & BENEFITS,Travel/Subsistence,LONDON & SOUTH EAS,12/03/2015,169.60
NEIGHBOURHOODS,Stationery,"Amazon Svcs Europe,SAR",12/03/2015,69.16
NEIGHBOURHOODS,Stationery,Amazon UK Retail,12/03/2015,12.85
NEIGHBOURHOODS,Stationery,Amazon UK Retail,12/03/2015,-12.85
HOUSING CAPITAL & ASSET MANAGEMENT,Legal Services-Other,HMCOURTS-SERVICE.G,12/03/2015,220.00
BALANCE SHEET,VAT,WWW.CIPS.ORG,13/03/2015,67.20
LIBRARIES & ARCHIVE,Education-Library Books,Amazon *Mktplce EU-UK,13/03/2015,5.68
LIBRARIES & ARCHIVE,Education-Library Books,Amazon *Mktplce EU-UK,13/03/2015,32.30
LIBRARIES & ARCHIVE,Education-Library Books,Amazon *Mktplce EU-UK,13/03/2015,14.44
LIBRARIES & ARCHIVE,Education-Library Books,Amazon *Mktplce EU-UK,13/03/2015,1.96
LIBRARIES & ARCHIVE,Education-Library Books,Amazon *Mktplce EU-UK,13/03/2015,15.38
LIBRARIES & ARCHIVE,Education-Library Books,Amazon *Mktplce EU-UK,13/03/2015,5.79
LIBRARIES & ARCHIVE,Education-Library Books,Amazon EU,13/03/2015,5.81
LIBRARIES & ARCHIVE,Education-Library Books,Amazon EU,13/03/2015,39.44
LIBRARIES & ARCHIVE,Education-Library Books,Amazon EU,13/03/2015,43.93
LIBRARIES & ARCHIVE,Education-Library Books,"Amazon Svcs Europe,SAR",13/03/2015,7.96
LIBRARIES & ARCHIVE,Education-Library Books,"Amazon Svcs Europe,SAR",13/03/2015,115.99
LIBRARIES & ARCHIVE,Education-Library Books,"Amazon Svcs Europe,SAR",13/03/2015,-25.78
FINANCIAL PLANNING AND MANAGEMENT,Travel/Subsistence,OYSTER BUS AUTOTOP,13/03/2015,20.00
HUMAN RESOURCES & ORGANISATIONAL DEVELOPMENT,Professional & Advisory Services,WWW.CIPS.ORG,13/03/2015,268.80
DAY CENTRES,Financial Services,SAIN - BRIXTON,16/03/2015,400.00
INTEGRATED DISABILITY,Financial Services,SAIN - BRIXTON,16/03/2015,400.00
INTEGRATED DISABILITY,Travel/Subsistence,NEWS AT NINE,16/03/2015,250.00
OLDER PEOPLE,Catering Food & Drink,MN WEST NORWOOD HALAL,16/03/2015,68.44
BALANCE SHEET,VAT,NEWS AT NINE,16/03/2015,0.00
BALANCE SHEET,VAT,SAIN - BRIXTON,16/03/2015,0.00
PROPERTY & FINANCIAL TRANSACTION SERVICES,Healthcare Equipment,"Amazon Svcs Europe,SAR",16/03/2015,-58.78
FINANCIAL PLANNING AND MANAGEMENT,Stationery,GAUDIO LIMITED,16/03/2015,136.68
ENVIRONMENT,Building-Timber,B & Q,16/03/2015,52.84
ENVIRONMENT,Building-Timber,B & Q,16/03/2015,45.00
ENVIRONMENT,Building-Timber,WWW.MEONUK.COM,16/03/2015,279.60
ENVIRONMENT,Catering Food & Drink,TESCO STORES-2143,16/03/2015,9.84
ENVIRONMENT,Environmental-Pest Control,PETS AT HOME LTD,16/03/2015,96.80
ENVIRONMENT,Facilities-Advertising,HOLTYS NEWSAGENT,16/03/2015,35.00
ENVIRONMENT,Facilities-Advertising,WWW.LETSRECYCLE.COM,16/03/2015,284.52
ENVIRONMENT,Financial Services,LAND REGISTRY,16/03/2015,6.00
ENVIRONMENT,Financial Services,LAND REGISTRY,16/03/2015,6.00
ENVIRONMENT,Financial Services,LAND REGISTRY,16/03/2015,12.00
ENVIRONMENT,Financial Services,LAND REGISTRY,16/03/2015,18.00
ENVIRONMENT,Financial Services,LAND REGISTRY,16/03/2015,12.00
ENVIRONMENT,Travel/Subsistence,LONDON & SOUTH EAS,16/03/2015,30.00
ENVIRONMENT,Travel/Subsistence,LONDON & SOUTH EAS,16/03/2015,50.00
ENVIRONMENT,Travel/Subsistence,LONDON & SOUTH EAS,16/03/2015,30.00
ENVIRONMENT,Travel/Subsistence,NEW SOUTHERN RAILW,16/03/2015,30.00
DAY CENTRES,Financial Services,CASH ADVANCE FEE,17/03/2015,11.80
INTEGRATED DISABILITY,Financial Services,CASH ADVANCE FEE,17/03/2015,11.80
INTEGRATED DISABILITY,Financial Services,ROYAL BANK UK /,17/03/2015,0.00
INTEGRATED DISABILITY,Financial Services-Banking,ROYAL BANK UK /,17/03/2015,0.00
BALANCE SHEET,VAT,ROYAL BANK UK /,17/03/2015,400.00
BALANCE SHEET,VAT,CASH ADVANCE FEE,17/03/2015,0.00
CHILDREN SAFEGUARDING & ASSESSMENTS,Accommodation,GLAN ABER HOTEL,17/03/2015,49.95
HOUSING CAPITAL & ASSET MANAGEMENT,Legal Services-Other,HMCOURTS-SERVICE.G,17/03/2015,240.00
INTEGRATED DISABILITY,Financial Services,CASH ADVANCE FEE,18/03/2015,11.80
OTHER - ADULTS,Furniture-Domestic Furniture,BACK SHOP,18/03/2015,332.50
OTHER - ADULTS,Furniture-Domestic Furniture,IKEA ONLINE,18/03/2015,249.17
SENIOR MANAGEMENT - ADULTS & PUBLIC HEALTH,Taxi Fares,WWW.ADDISONLEE.COM,18/03/2015,22.25
BALANCE SHEET,VAT,BACK SHOP,18/03/2015,66.50
BALANCE SHEET,VAT,IKEA ONLINE,18/03/2015,49.83
BALANCE SHEET,VAT,CASH ADVANCE FEE,18/03/2015,0.00
BALANCE SHEET,VAT,WWW.ADDISONLEE.COM,18/03/2015,4.45
CHILDREN LOOKED AFTER,Financial Services,HM PASSPORT OFFICE,18/03/2015,46.00
QUALITY ASSURANCE & PERFORMANCE,Accommodation,PREMIER INN44521270,18/03/2015,51.00
QUALITY ASSURANCE & PERFORMANCE,Travel/Subsistence,HOTELS COM120825653272,18/03/2015,79.00
QUALITY ASSURANCE & PERFORMANCE,Travel/Subsistence,HOTELS COM120838331957,18/03/2015,61.00
LIBRARIES & ARCHIVE,Education-Library Books,Amazon *Mktplce EU-UK,18/03/2015,11.15
LIBRARIES & ARCHIVE,Education-Library Books,Amazon *Mktplce EU-UK,18/03/2015,6.64
LIBRARIES & ARCHIVE,Education-Library Books,Amazon *Mktplce EU-UK,18/03/2015,1.90
LIBRARIES & ARCHIVE,Education-Library Books,Amazon EU,18/03/2015,6.24
LIBRARIES & ARCHIVE,Education-Library Books,Amazon EU,18/03/2015,14.85
LIBRARIES & ARCHIVE,Education-Library Books,"Amazon Svcs Europe,SAR",18/03/2015,5.38
LIBRARIES & ARCHIVE,Education-Library Books,"Amazon Svcs Europe,SAR",18/03/2015,2.81
LIBRARIES & ARCHIVE,Education-Library Books,"Amazon Svcs Europe,SAR",18/03/2015,1.93
LIBRARIES & ARCHIVE,Education-Library Books,"Amazon Svcs Europe,SAR",18/03/2015,3.16
LIBRARIES & ARCHIVE,Education-Library Books,"Amazon Svcs Europe,SAR",18/03/2015,32.94
LIBRARIES & ARCHIVE,Education-Library Books,"Amazon Svcs Europe,SAR",18/03/2015,5.98
LIBRARIES & ARCHIVE,Education-Library Books,"Amazon Svcs Europe,SAR",18/03/2015,21.98
LIBRARIES & ARCHIVE,Education-Library Books,"Amazon Svcs Europe,SAR",18/03/2015,17.89
LIBRARIES & ARCHIVE,Education-Library Books,"Amazon Svcs Europe,SAR",18/03/2015,17.74
LIBRARIES & ARCHIVE,Education-Library Books,"Amazon Svcs Europe,SAR",18/03/2015,7.79
LIBRARIES & ARCHIVE,Education-Library Books,"Amazon Svcs Europe,SAR",18/03/2015,60.38
LIBRARIES & ARCHIVE,Education-Library Books,"Amazon Svcs Europe,SAR",18/03/2015,38.96
LIBRARIES & ARCHIVE,Education-Library Books,"Amazon Svcs Europe,SAR",18/03/2015,5.74
LIBRARIES & ARCHIVE,Education-Library Books,"Amazon Svcs Europe,SAR",18/03/2015,4.09
LIBRARIES & ARCHIVE,Education-Library Books,"Amazon Svcs Europe,SAR",18/03/2015,1.99
LIBRARIES & ARCHIVE,Education-Library Books,"Amazon Svcs Europe,SAR",18/03/2015,9.47
LIBRARIES & ARCHIVE,Education-Library Books,"Amazon Svcs Europe,SAR",18/03/2015,4.23
LIBRARIES & ARCHIVE,Education-Library Books,Amazon UK Marketplace,18/03/2015,8.15
LIBRARIES & ARCHIVE,Education-Library Books,Amazon UK Marketplace,18/03/2015,17.80
LIBRARIES & ARCHIVE,Education-Library Books,Amazon UK Marketplace,18/03/2015,7.10
LIBRARIES & ARCHIVE,Education-Library Books,Amazon UK Marketplace,18/03/2015,10.84
LIBRARIES & ARCHIVE,Education-Library Books,Amazon UK Retail,18/03/2015,9.39
LIBRARIES & ARCHIVE,Financial Services,NATWEST BANK /,18/03/2015,500.00
ENVIRONMENT,Education-Other,WWW.CITY.AC.UK,18/03/2015,25.00
HOUSING CAPITAL & ASSET MANAGEMENT,Legal Services-Other,HMCOURTS-SERVICE.G,18/03/2015,120.00
OLDER PEOPLE,Catering Food & Drink,FISH BARGAIN WAREHOUSE,19/03/2015,138.25
OTHER - ADULTS,Taxi Fares,WWW.ADDISONLEE.COM,19/03/2015,10.83
BALANCE SHEET,VAT,CITB,19/03/2015,5.00
BALANCE SHEET,VAT,CITB,19/03/2015,15.00
BALANCE SHEET,VAT,CTD QUICKSTEP LTD,19/03/2015,95.00
BALANCE SHEET,VAT,WWW.ADDISONLEE.COM,19/03/2015,4.92
BALANCE SHEET,VAT,WWW.ADDISONLEE.COM,19/03/2015,-0.83
BALANCE SHEET,VAT,WWW.ADDISONLEE.COM,19/03/2015,2.17
CHILDREN LOOKED AFTER,Travel/Subsistence,SACKVILLE TRAVELSERVIC,19/03/2015,"2,448.00"
EARLY HELP,Stationery,JD SPORTS PLC,19/03/2015,35.00
EARLY HELP,Stationery,PRIMARK,19/03/2015,27.50
EARLY HELP,Stationery,T K MAXX,19/03/2015,136.94
QUALITY ASSURANCE & PERFORMANCE,Accommodation,THE NADLER LIVERPOOL D,19/03/2015,53.10
QUALITY ASSURANCE & PERFORMANCE,Mail Services-Postage,POST OFFICE COUNTER,19/03/2015,272.44
QUALITY ASSURANCE & PERFORMANCE,Travel/Subsistence,EC MAINLINE CO INT,19/03/2015,24.60
QUALITY ASSURANCE & PERFORMANCE,Travel/Subsistence,EC MAINLINE CO INT,19/03/2015,44.40
QUALITY ASSURANCE & PERFORMANCE,Travel/Subsistence,EC MAINLINE CO INT,19/03/2015,47.40
QUALITY ASSURANCE & PERFORMANCE,Travel/Subsistence,NEW SOUTHERN RAILW,19/03/2015,50.00
QUALITY ASSURANCE & PERFORMANCE,Travel/Subsistence,OYSTER AUTOTOPUP,19/03/2015,40.00
QUALITY ASSURANCE & PERFORMANCE,Travel/Subsistence,OYSTER AUTOTOPUP,19/03/2015,40.00
QUALITY ASSURANCE & PERFORMANCE,Travel/Subsistence,OYSTER RENEW WEB,19/03/2015,40.00
QUALITY ASSURANCE & PERFORMANCE,Travel/Subsistence,EC MAINLINE CO INT,19/03/2015,30.40
QUALITY ASSURANCE & PERFORMANCE,Travel/Subsistence,GOV.UK/DART-CHARGE,19/03/2015,10.00
QUALITY ASSURANCE & PERFORMANCE,Travel/Subsistence,NEW SOUTHERN RAILW,19/03/2015,50.00
QUALITY ASSURANCE & PERFORMANCE,Travel/Subsistence,OYSTER AUTOTOPUP,19/03/2015,40.00
QUALITY ASSURANCE & PERFORMANCE,Travel/Subsistence,OYSTER AUTOTOPUP,19/03/2015,40.00
QUALITY ASSURANCE & PERFORMANCE,Travel/Subsistence,OYSTER AUTOTOPUP,19/03/2015,40.00
QUALITY ASSURANCE & PERFORMANCE,Travel/Subsistence,OYSTER BUS AUTOTOP,19/03/2015,40.00
QUALITY ASSURANCE & PERFORMANCE,Travel/Subsistence,VIRGINTRAINSEC SERVCS,19/03/2015,54.20
QUALITY ASSURANCE & PERFORMANCE,Travel/Subsistence,VIRGINTRAINSEC SERVCS,19/03/2015,67.55
QUALITY ASSURANCE & PERFORMANCE,Travel/Subsistence,VIRGINTRAINSEC SERVCS,19/03/2015,155.00
EMPLOYMENT & ENTERPRISE - E&L,Catering Food & Drink,SAINSBURY'S SMKT,19/03/2015,50.00
EMPLOYMENT & ENTERPRISE - E&L,Catering Food & Drink,SAINSBURY'S SMKT,19/03/2015,100.00
EMPLOYMENT & ENTERPRISE - E&L,Catering Food & Drink,SAINSBURYS S/MKTS,19/03/2015,23.74
EMPLOYMENT & ENTERPRISE - E&L,Catering Food & Drink,SAINSBURYS S/MKTS,19/03/2015,12.63
EMPLOYMENT & ENTERPRISE - E&L,Catering Food & Drink,Sainsburys S/mkts,19/03/2015,200.00
EMPLOYMENT & ENTERPRISE - E&L,Catering Food & Drink,Sainsburys S/mkts,19/03/2015,40.00
EMPLOYMENT & ENTERPRISE - E&L,Catering Food & Drink,TESCO STORE2097,19/03/2015,50.00
EMPLOYMENT & ENTERPRISE - E&L,Catering Food & Drink,TESCO STORE2097,19/03/2015,50.00
EMPLOYMENT & ENTERPRISE - E&L,Catering Food & Drink,TESCO STORES 5342,19/03/2015,21.82
EMPLOYMENT & ENTERPRISE - E&L,Catering Food & Drink,TESCO STORES 5342,19/03/2015,0.49
EMPLOYMENT & ENTERPRISE - E&L,Catering Food & Drink,TESCO STORES 6851,19/03/2015,1.74
EMPLOYMENT & ENTERPRISE - E&L,Clothing-Uniforms,TESCO STORES 5342,19/03/2015,50.00
EMPLOYMENT & ENTERPRISE - E&L,Domestic Goods-Other,HIGH STREET VOUCHE,19/03/2015,304.25
EMPLOYMENT & ENTERPRISE - E&L,Domestic Goods-Other,HIGH STREET VOUCHE,19/03/2015,454.25
EMPLOYMENT & ENTERPRISE - E&L,Education-Other,CITB,19/03/2015,25.00
EMPLOYMENT & ENTERPRISE - E&L,Education-Other,CITB,19/03/2015,75.00
EMPLOYMENT & ENTERPRISE - E&L,Education-Other,CITB,19/03/2015,30.00
EMPLOYMENT & ENTERPRISE - E&L,Education-Other,CTD QUICKSTEP LTD,19/03/2015,486.40
EMPLOYMENT & ENTERPRISE - E&L,Financial Services,THE HOME OFFICE,19/03/2015,104.00
EMPLOYMENT & ENTERPRISE - E&L,Stationery,SAINSBURYS S/MKTS,19/03/2015,2.00
EMPLOYMENT & ENTERPRISE - E&L,Taxi Fares,WWW.ADDISONLEE.COM,19/03/2015,24.58
EMPLOYMENT & ENTERPRISE - E&L,Taxi Fares,WWW.ADDISONLEE.COM,19/03/2015,-4.17
EMPLOYMENT & ENTERPRISE - E&L,Travel/Subsistence,LUL TICKET MACHINE,19/03/2015,77.60
EMPLOYMENT & ENTERPRISE - E&L,Travel/Subsistence,LUL TICKET MACHINE,19/03/2015,123.30
EMPLOYMENT & ENTERPRISE - E&L,Travel/Subsistence,LUL TICKET MACHINE,19/03/2015,123.30
EMPLOYMENT & ENTERPRISE - E&L,Travel/Subsistence,LUL TICKET MACHINE,19/03/2015,145.50
EMPLOYMENT & ENTERPRISE - E&L,Travel/Subsistence,LUL TICKET MACHINE,19/03/2015,120.40
EMPLOYMENT & ENTERPRISE - E&L,Travel/Subsistence,OYSTER AUTOTOPUP,19/03/2015,20.00
EMPLOYMENT & ENTERPRISE - E&L,Travel/Subsistence,OYSTER AUTOTOPUP,19/03/2015,20.00
EMPLOYMENT & ENTERPRISE - E&L,Travel/Subsistence,OYSTER AUTOTOPUP,19/03/2015,20.00
EMPLOYMENT & ENTERPRISE - E&L,Travel/Subsistence,OYSTER AUTOTOPUP,19/03/2015,20.00
EMPLOYMENT & ENTERPRISE - E&L,Travel/Subsistence,OYSTER BUS AUTOTOP,19/03/2015,20.00
EMPLOYMENT & ENTERPRISE - E&L,Travel/Subsistence,OYSTER BUS AUTOTOP,19/03/2015,20.00
EMPLOYMENT & ENTERPRISE - E&L,Travel/Subsistence,OYSTER BUS AUTOTOP,19/03/2015,20.00
EMPLOYMENT & ENTERPRISE - E&L,Travel/Subsistence,OYSTER BUS AUTOTOP,19/03/2015,20.00
EMPLOYMENT & ENTERPRISE - E&L,Travel/Subsistence,OYSTER BUS AUTOTOP,19/03/2015,20.00
EMPLOYMENT & ENTERPRISE - E&L,Travel/Subsistence,OYSTER BUS AUTOTOP,19/03/2015,20.00
EMPLOYMENT & ENTERPRISE - E&L,Travel/Subsistence,OYSTER BUS AUTOTOP,19/03/2015,20.00
EMPLOYMENT & ENTERPRISE - E&L,Travel/Subsistence,OYSTER RENEW WEB,19/03/2015,110.40
EMPLOYMENT & ENTERPRISE - E&L,Travel/Subsistence,OYSTER RENEW WEB,19/03/2015,97.60
EMPLOYMENT & ENTERPRISE - E&L,Travel/Subsistence,OYSTER RENEW WEB,19/03/2015,120.30
EMPLOYMENT & ENTERPRISE - E&L,Travel/Subsistence,OYSTER RENEW WEB,19/03/2015,80.20
EMPLOYMENT & ENTERPRISE - E&L,Travel/Subsistence,Sainsburys S/mkts,19/03/2015,48.00
LIBRARIES & ARCHIVE,Financial Services,CASH ADVANCE FEE,19/03/2015,14.75
LIBRARIES & ARCHIVE,Furniture-Office Furniture,DEMCO EUROPE LTD,19/03/2015,242.34
LIBRARIES & ARCHIVE,Healthcare Equipment,WWW.EUREKADIRECT.CO.UK,19/03/2015,74.34
REVENUE & BENEFITS,Travel/Subsistence,OYSTER AUTOTOPUP,19/03/2015,20.00
CORPORATE AFFAIRS,Catering Food & Drink,TESCO STORE 2143,19/03/2015,44.85
CORPORATE AFFAIRS,Travel/Subsistence,BRIX CENTRAL STOP,19/03/2015,50.00
CORPORATE AFFAIRS,Travel/Subsistence,FGW WEBSALES,19/03/2015,186.00
FINANCIAL PLANNING AND MANAGEMENT,Use of Public Transport,EXPRESS NEWS,19/03/2015,30.00
OTHER - ADULTS,Taxi Fares,WWW.ADDISONLEE.COM,20/03/2015,10.50
BALANCE SHEET,VAT,THE EMERGENCY PLAN,20/03/2015,10.00
BALANCE SHEET,VAT,WWW.ADDISONLEE.COM,20/03/2015,2.10
FINANCIAL PLANNING AND MANAGEMENT,Domestic Goods-Other,ARGOS RETAIL GROUP,20/03/2015,595.35
FINANCIAL PLANNING AND MANAGEMENT,Domestic Goods-Other,ARGOS RETAIL GROUP,20/03/2015,158.93
HOMES & COMMUNITIES,Education-Other,THE EMERGENCY PLAN,20/03/2015,50.00
BALANCE SHEET,VAT,ACCESS SELF STORAG,21/03/2015,39.03
BALANCE SHEET,VAT,ACCESS SELF STORAG,21/03/2015,42.90
BALANCE SHEET,VAT,BEAMLED,21/03/2015,7.34
BALANCE SHEET,VAT,BEAMLED,21/03/2015,23.84
BALANCE SHEET,VAT,CITY ELECTRICAL FA,21/03/2015,4.95
BALANCE SHEET,VAT,HALFORDS 0716,21/03/2015,6.71
"PLANNING, TRANSPORT & DEVELOPMENT",Accommodation,BEST WESTERN OLD TOWN,21/03/2015,113.95
"PLANNING, TRANSPORT & DEVELOPMENT",Building-Timber,CITY ELECTRICAL FA,21/03/2015,24.99
"PLANNING, TRANSPORT & DEVELOPMENT",Catering Food & Drink,TESCO STORES 5999,21/03/2015,68.00
"PLANNING, TRANSPORT & DEVELOPMENT",Cycles Purchase,BRIXTON CYCLES LTD,21/03/2015,390.00
"PLANNING, TRANSPORT & DEVELOPMENT",Cycles Purchase,BRIXTON CYCLES LTD,21/03/2015,16.00
"PLANNING, TRANSPORT & DEVELOPMENT",Cycles Purchase,BRIXTON CYCLES LTD,21/03/2015,163.00
"PLANNING, TRANSPORT & DEVELOPMENT",Cycles Purchase,HALFORDS 0716,21/03/2015,33.53
"PLANNING, TRANSPORT & DEVELOPMENT",Cycles Purchase,PAYPAL *ACTIVESPORT,21/03/2015,17.99
"PLANNING, TRANSPORT & DEVELOPMENT",Domestic Goods-Other,BEAMLED,21/03/2015,36.64
"PLANNING, TRANSPORT & DEVELOPMENT",Domestic Goods-Other,BEAMLED,21/03/2015,119.13
"PLANNING, TRANSPORT & DEVELOPMENT",Education-Library Books,WP-HAYMARKET PUBLI,21/03/2015,432.00
"PLANNING, TRANSPORT & DEVELOPMENT",Facilities-Storage,ACCESS SELF STORAG,21/03/2015,195.17
"PLANNING, TRANSPORT & DEVELOPMENT",Facilities-Storage,ACCESS SELF STORAG,21/03/2015,214.52
"PLANNING, TRANSPORT & DEVELOPMENT",Travel/Subsistence,EASYJET 000ENVFHRL,21/03/2015,212.65
"PLANNING, TRANSPORT & DEVELOPMENT",Travel/Subsistence,OYSTER AUTOTOPUP,21/03/2015,20.00
"PLANNING, TRANSPORT & DEVELOPMENT",Travel/Subsistence,OYSTER BUS AUTOTOP,21/03/2015,20.00
"PLANNING, TRANSPORT & DEVELOPMENT",Travel/Subsistence,OYSTER BUS AUTOTOP,21/03/2015,20.00
CHILDREN SAFEGUARDING & ASSESSMENTS,Taxi Fares,RADIO TAXIS,23/03/2015,336.60
QUALITY ASSURANCE & PERFORMANCE,Couriers,DHL,23/03/2015,43.84
QUALITY ASSURANCE & PERFORMANCE,Couriers,DHL,23/03/2015,21.92
LIBRARIES & ARCHIVE,Financial Services,CASH ADVANCE FEE,23/03/2015,14.75
BUSINESS TRANSFORMATION,Education-Other,WP-E-CAREERS LTD,23/03/2015,70.00
BUSINESS TRANSFORMATION,IT Consumables,INTELLI SOFTWARE L,23/03/2015,330.00
HOUSING CAPITAL & ASSET MANAGEMENT,Legal Services-Other,HMCOURTS-SERVICE.G,23/03/2015,240.00
OTHER - ADULTS,Stationery,FAST KEY SERVICES,24/03/2015,5.60
BALANCE SHEET,VAT,FAST KEY SERVICES,24/03/2015,1.12
FINANCIAL PLANNING AND MANAGEMENT,Travel/Subsistence,OYSTER BUS AUTOSET,24/03/2015,40.00
FINANCIAL PLANNING AND MANAGEMENT,Travel/Subsistence,OYSTER ISSUE WEB,24/03/2015,15.00
FINANCIAL PLANNING AND MANAGEMENT,Travel/Subsistence,OYSTER RENEW WEB,24/03/2015,40.00
FINANCIAL PLANNING AND MANAGEMENT,Travel/Subsistence,OYSTER RENEW WEB,24/03/2015,-40.00
INTEGRATED DISABILITY,Travel/Subsistence,NEWS AT NINE,25/03/2015,100.00
INTEGRATED DISABILITY,Furniture-Other,"Amazon Svcs Europe,SAR",25/03/2015,29.55
OLDER PEOPLE,Catering Food & Drink,ICELAND,25/03/2015,37.00
OLDER PEOPLE,Catering Food & Drink,MN WEST NORWOOD HALAL,25/03/2015,209.89
BALANCE SHEET,VAT,"Amazon Svcs Europe,SAR",25/03/2015,0.00
BALANCE SHEET,VAT,ACCESS STORAG,25/03/2015,1.83
BALANCE SHEET,VAT,Amazon UK Retail,25/03/2015,54.66
BALANCE SHEET,VAT,DISPLAYSENSE.CO.UK,25/03/2015,53.79
BALANCE SHEET,VAT,HOLIDAY INNS,25/03/2015,78.00
BALANCE SHEET,VAT,HPSL/CDS,25/03/2015,31.00
BALANCE SHEET,VAT,WWW.ADDISONLEE.COM,25/03/2015,5.98
BALANCE SHEET,VAT,WWW.ADDISONLEE.COM,25/03/2015,6.48
BALANCE SHEET,VAT,WWW.WALLCREATE.COM,25/03/2015,27.48
BALANCE SHEET,VAT,1&1 INTERNET LIMITED,25/03/2015,2.00
BALANCE SHEET,VAT,J D SPORTS 651,25/03/2015,0.00
BALANCE SHEET,VAT,POST OFFICE COUNTER,25/03/2015,0.00
BALANCE SHEET,VAT,TESCO STORE 2143,25/03/2015,0.00
BALANCE SHEET,VAT,NEWS AT NINE,25/03/2015,0.00
BALANCE SHEET,VAT,IPF,25/03/2015,166.00
EARLY HELP,IT Office Equipment,"Amazon Svcs Europe,SAR",25/03/2015,24.98
EARLY HELP,Catering Food & Drink,TESCO STORE 2143,25/03/2015,7.18
EARLY HELP,Mail Services-Postage,POST OFFICE COUNTER,25/03/2015,90.00
EARLY HELP,Sports Equipment,J D SPORTS 651,25/03/2015,"1,200.00"
EARLY YEARS AND PARENTING,Professional & Advisory Services,PACEY COMMERCIAL SERVI,25/03/2015,76.00
EARLY YEARS AND PARENTING,IT Services,1&1 INTERNET LIMITED,25/03/2015,9.99
ADVENTURE PLAYGROUNDS & ONE O'CLOCK CLUBS,Financial Services,TVLICENSING.CO.UK,25/03/2015,145.50
CORPORATE AFFAIRS,Catering Food & Drink,TESCO STORE 2143,25/03/2015,15.29
CORPORATE AFFAIRS,Catering Food & Drink,TESCO STORES-2143,25/03/2015,24.31
PROCUREMENT,Education-Other,WWW.CIPS.ORG,25/03/2015,95.88
PROCUREMENT,Financial Services-Accountancy,IPF,25/03/2015,830.00
PROCUREMENT,Education-Other,WWW.CIPS.ORG,25/03/2015,40.24
PROCUREMENT,IT Hardware,Amazon *Mktplce EU-UK,25/03/2015,2.40
POLICY & COMMUNICATIONS,Domestic Goods-Other,Amazon UK Marketplace,25/03/2015,5.99
POLICY & COMMUNICATIONS,Domestic Goods-Other,WWW.WALLCREATE.COM,25/03/2015,137.43
POLICY & COMMUNICATIONS,Facilities-Advertising,FACEBK *CUPXW6AAA2,25/03/2015,20.53
POLICY & COMMUNICATIONS,Facilities-Advertising,FACEBOOK 4ELU87SR62,25/03/2015,22.40
POLICY & COMMUNICATIONS,Facilities-Advertising,FACEBOOK 9TTL67JS62,25/03/2015,22.75
POLICY & COMMUNICATIONS,Facilities-Advertising,FACEBOOK AAPR77ES62,25/03/2015,15.97
POLICY & COMMUNICATIONS,Facilities-Advertising,FACEBOOK BEFC87JS62,25/03/2015,17.35
POLICY & COMMUNICATIONS,Facilities-Advertising,FACEBOOK CYSC572S62,25/03/2015,3.02
POLICY & COMMUNICATIONS,Facilities-Advertising,FACEBOOK JXBT47ES62,25/03/2015,23.76
POLICY & COMMUNICATIONS,Facilities-Design & Photography,WWW.GETTYIMAGES.COM,25/03/2015,"1,207.20"
POLICY & COMMUNICATIONS,Facilities-Printing,HPSL/CDS,25/03/2015,155.00
POLICY & COMMUNICATIONS,IT Consumables,DISPLAYSENSE.CO.UK,25/03/2015,268.97
POLICY & COMMUNICATIONS,IT Hardware,Amazon UK Retail,25/03/2015,266.66
POLICY & COMMUNICATIONS,Mail Services-Postage,Amazon UK Retail,25/03/2015,6.66
POLICY & COMMUNICATIONS,Mail Services-Postage,WWW.WALLCREATE.COM,25/03/2015,3.97
POLICY & COMMUNICATIONS,Travel/Subsistence,VIRGINTRAINS.CO.UK,25/03/2015,59.00
POLICY & COMMUNICATIONS,Professional & Advisory Services,EB GREEN EVENTS AMP I,25/03/2015,82.80
POLICY & COMMUNICATIONS,Consultancy-Business,MASH MEDIA GROUP LTD,25/03/2015,70.00
POLICY & COMMUNICATIONS,Facilities-Advertising,FACEBK *33CW27EAA2,25/03/2015,21.19
POLICY & COMMUNICATIONS,Facilities-Advertising,FACEBK *5GN3Y6NAA2,25/03/2015,8.22
POLICY & COMMUNICATIONS,Facilities-Advertising,FACEBK *FDZCW6AAA2,25/03/2015,19.98
POLICY & COMMUNICATIONS,Facilities-Advertising,FACEBK *LGZ627EAA2,25/03/2015,20.58
POLICY & COMMUNICATIONS,Facilities-Advertising,FACEBK *R4P4V62AA2,25/03/2015,19.97
POLICY & COMMUNICATIONS,Facilities-Advertising,FACEBK *TFKFU62AA2,25/03/2015,19.78
POLICY & COMMUNICATIONS,Facilities-Advertising,FACEBK *V6JCU62AA2,25/03/2015,19.90
POLICY & COMMUNICATIONS,Facilities-Advertising,FACEBK *YJ9TV6AAA2,25/03/2015,37.65
POLICY & COMMUNICATIONS,Facilities-Market Research,Amazon Prime,25/03/2015,79.00
POLICY & COMMUNICATIONS,Facilities-Market Research,CTC*CONSTANTCONTACT.COM,25/03/2015,70.80
POLICY & COMMUNICATIONS,Facilities-Market Research,CTC*CONSTANTCONTACT.COM,25/03/2015,70.80
POLICY & COMMUNICATIONS,Facilities-Storage,ACCESS STORAG,25/03/2015,9.17
POLICY & COMMUNICATIONS,IT Consumables,SAINSBURYS S/MKTS,25/03/2015,6.49
POLICY & COMMUNICATIONS,IT Services,G8S7WD2,25/03/2015,79.00
POLICY & COMMUNICATIONS,IT Software,PAYPAL *ROOMSKETCH,25/03/2015,64.14
POLICY & COMMUNICATIONS,Mail Services-Postage,POST OFFICE COUNTER,25/03/2015,16.40
POLICY & COMMUNICATIONS,Professional & Advisory Services,PAYPAL *EVENTSINDUS,25/03/2015,25.00
POLICY & COMMUNICATIONS,Taxi Fares,WWW.ADDISONLEE.COM,25/03/2015,29.92
POLICY & COMMUNICATIONS,Taxi Fares,WWW.ADDISONLEE.COM,25/03/2015,35.90
POLICY & COMMUNICATIONS,Taxi Fares,WWW.ADDISONLEE.COM,25/03/2015,18.50
POLICY & COMMUNICATIONS,Taxi Fares,WWW.ADDISONLEE.COM,25/03/2015,-18.50
POLICY & COMMUNICATIONS,Taxi Fares,WWW.ADDISONLEE.COM,25/03/2015,32.42
POLICY & COMMUNICATIONS,Travel/Subsistence,OYSTER BUS AUTOTOP,25/03/2015,40.00
POLICY & COMMUNICATIONS,Travel/Subsistence,OYSTER BUS AUTOTOP,25/03/2015,40.00
POLICY & COMMUNICATIONS,Travel/Subsistence,OYSTER BUS AUTOTOP,25/03/2015,40.00
POLICY & COMMUNICATIONS,Travel/Subsistence,OYSTER BUS AUTOTOP,25/03/2015,80.00
POLICY & COMMUNICATIONS,Travel/Subsistence,OYSTER ISSUE WEB,25/03/2015,90.00
POLICY & COMMUNICATIONS,Travel/Subsistence,ZIPCAR,25/03/2015,21.26
POLICY & COMMUNICATIONS,Travel/Subsistence,ZIPCAR,25/03/2015,43.87
POLICY & COMMUNICATIONS,Professional & Advisory Services,MARKET RESEARCH SO,25/03/2015,150.00
POLICY & COMMUNICATIONS,Accommodation,HOLIDAY INNS,25/03/2015,390.00
POLICY & COMMUNICATIONS,Letting Agents,ORIGINHOUSING.ORG.,25/03/2015,30.00
POLICY & COMMUNICATIONS,Travel/Subsistence,EAST MIDLANDS,25/03/2015,100.00
POLICY & COMMUNICATIONS,Travel/Subsistence,TRAINLINE.COM,25/03/2015,194.31
HOUSING CAPITAL & ASSET MANAGEMENT,Legal Services-Other,HMCOURTS-SERVICE.G,25/03/2015,300.00
OTHER - ADULTS,Catering Food & Drink,TESCO STORES 5999,26/03/2015,37.49
BALANCE SHEET,VAT,"Amazon Svcs Europe,SAR",26/03/2015,4.18
BALANCE SHEET,VAT,PC WORLD ONLINE,26/03/2015,7.50
BALANCE SHEET,VAT,PHONIC BOOKS LTD,26/03/2015,23.20
BALANCE SHEET,VAT,SIMPLY SAFES LIMIT,26/03/2015,7.50
BALANCE SHEET,VAT,VIKING,26/03/2015,138.40
BALANCE SHEET,VAT,EE & T-MOBILE,26/03/2015,6.16
CHILDREN LOOKED AFTER,Accommodation,COMFORT INNS,26/03/2015,494.00
CHILDREN LOOKED AFTER,Financial Services,HM PASSPORT OFFICE,26/03/2015,46.00
CHILDREN LOOKED AFTER,Domestic Goods-Other,ARGOS RETAIL GROUP,26/03/2015,159.90
CHILDREN LOOKED AFTER,Domestic Goods-Other,ARGOS RETAIL GROUP,26/03/2015,48.94
CHILDREN LOOKED AFTER,Domestic Goods-Other,ARGOS RETAIL GROUP,26/03/2015,273.93
CHILDREN LOOKED AFTER,Domestic Goods-Other,KIDDICARE.COM LTD,26/03/2015,86.08
CHILDREN SAFEGUARDING & ASSESSMENTS,Consultancy-Business,"LANGUAGE LINE, INC.",26/03/2015,40.82
CHILDREN SAFEGUARDING & ASSESSMENTS,Domestic Goods-Other,PC WORLD ONLINE,26/03/2015,37.49
QUALITY ASSURANCE & PERFORMANCE,Stationery,VIKING,26/03/2015,692.00
QUALITY ASSURANCE & PERFORMANCE,Consultancy-Business,SIMPLY SAFES LIMIT,26/03/2015,37.50
YOUTH OFFENDING SERVICE,Stationery,"Amazon Svcs Europe,SAR",26/03/2015,20.91
YOUTH OFFENDING SERVICE,Travel/Subsistence,LUL TICKET MACHINE,26/03/2015,30.00
SCHOOL & EDUCATION IMPROVEMENT SERVICE,Facilities-Printing,PHONIC BOOKS LTD,26/03/2015,"1,035.60"
CORPORATE AFFAIRS,Legal Services-General Support,GEN COUNCIL OF,26/03/2015,102.50
CORPORATE AFFAIRS,Travel/Subsistence,FGW WEBSALES,26/03/2015,64.50
CORPORATE AFFAIRS,Travel/Subsistence,SELFSERVE TICKET,26/03/2015,50.00
CORPORATE AFFAIRS,Travel/Subsistence,SELFSERVE TICKET,26/03/2015,50.00
FINANCIAL PLANNING AND MANAGEMENT,Companies House Information request,WWW.COMPANIESHOUSE.GOV,26/03/2015,3.00
FINANCIAL PLANNING AND MANAGEMENT,HMRC Fees,HM REVENUE & CUSTOMS - CO,26/03/2015,"1,014.00"
INTERNAL AUDIT,Travel/Subsistence,OYSTER AUTOTOPUP,26/03/2015,20.00
INTERNAL AUDIT,Travel/Subsistence,OYSTER AUTOTOPUP,26/03/2015,40.00
INTERNAL AUDIT,Travel/Subsistence,OYSTER BUS AUTOTOP,26/03/2015,20.00
INTERNAL AUDIT,Travel/Subsistence,OYSTER BUS AUTOTOP,26/03/2015,20.00
INTERNAL AUDIT,Travel/Subsistence,OYSTER BUS AUTOTOP,26/03/2015,40.00
TENANT MANAGEMENT ORGANISATIONS,Telecommunications,EE & T-MOBILE,26/03/2015,30.82
INTEGRATED DISABILITY,Catering Food & Drink,TESCO STORE 2764,27/03/2015,125.23
INTEGRATED DISABILITY,Financial Services,ROYAL BANK UK /,27/03/2015,400.00
BALANCE SHEET,VAT,ROYAL BANK UK /,27/03/2015,0.00
BALANCE SHEET,VAT,EE & T-MOBILE,27/03/2015,6.16
REVENUE & BENEFITS,Travel/Subsistence,LONDON & SOUTH EAS,27/03/2015,47.20
POLICY & COMMUNICATIONS,Books/Publications/Resources,SQUARESPACE INC.,27/03/2015,66.80
TENANT MANAGEMENT ORGANISATIONS,Telecommunications,EE & T-MOBILE,27/03/2015,30.82
CHILDREN LOOKED AFTER,Accommodation,MOVENPICK AMBASSADOR HOTE,28/03/2015,"1,251.12"
INTEGRATED DISABILITY,Catering Food & Drink,TESCO STORE 3205,30/03/2015,36.57
INTEGRATED DISABILITY,Financial Services-Banking,CASH ADVANCE FEE,30/03/2015,11.80
BALANCE SHEET,VAT,TESCO STORE 3205,30/03/2015,0.00
BALANCE SHEET,VAT,DALEN LTD,30/03/2015,12.00
BALANCE SHEET,VAT,WWW.C-S.UK.COM,30/03/2015,81.42
CHILDREN LOOKED AFTER,Accommodation,COMFORT INNS,30/03/2015,640.00
CHILDREN LOOKED AFTER,Works-Surveys,DALEN LTD,30/03/2015,60.00
HOUSING MANAGEMENT SERVICES,Domestic Goods-Other,ARGOS,30/03/2015,16.19
HOUSING MANAGEMENT SERVICES,Building-Tools,PAYPAL *ABCPARTYHIR,30/03/2015,85.00
HOUSING MANAGEMENT SERVICES,Catering Food & Drink,FAIR PRICE,30/03/2015,60.96
HOUSING MANAGEMENT SERVICES,Catering Food & Drink,LOVE2SHOP.CO.UK,30/03/2015,80.95
HOUSING MANAGEMENT SERVICES,Catering Food & Drink,SAINSBURY'S S/MKT,30/03/2015,179.31
HOUSING MANAGEMENT SERVICES,Catering Food & Drink,SAINSBURYS S/MKTS,30/03/2015,36.19
HOUSING MANAGEMENT SERVICES,Catering Food & Drink,SAINSBURYS S/MKTS,30/03/2015,1.85
HOUSING MANAGEMENT SERVICES,Domestic Goods-Other,ARGOS RETAIL GROUP,30/03/2015,263.88
HOUSING MANAGEMENT SERVICES,Domestic Goods-Other,POUNDLAND LTD 1257,30/03/2015,31.00
HOUSING MANAGEMENT SERVICES,Facilities-Printing,WWW.C-S.UK.COM,30/03/2015,407.10
HOUSING MANAGEMENT SERVICES,Travel/Subsistence,OYSTER AUTOTOPUP,30/03/2015,20.00
HOUSING MANAGEMENT SERVICES,Travel/Subsistence,OYSTER BUS AUTOTOP,30/03/2015,20.00
HOUSING MANAGEMENT SERVICES,Travel/Subsistence,OYSTER BUS AUTOTOP,30/03/2015,20.00
HOUSING MANAGEMENT SERVICES,Travel/Subsistence,OYSTER BUS AUTOTOP,30/03/2015,20.00
OLDER PEOPLE,Catering Food & Drink,ICELAND,01/04/2015,10.88
OLDER PEOPLE,Financial Services,ATM BARCLAYS BANK PLC,01/04/2015,300.00
BALANCE SHEET,VAT,LIDL UK,01/04/2015,0.10
BALANCE SHEET,VAT,LIDL UK,01/04/2015,21.09
FINANCIAL PLANNING AND MANAGEMENT,Domestic Goods-Other,ARGOS RETAIL GROUP,01/04/2015,153.94
FINANCIAL PLANNING AND MANAGEMENT,Travel/Subsistence,OYSTER AUTOTOPUP,01/04/2015,20.00
INTERNAL AUDIT,Financial Services,LBL NOT PRESENT,01/04/2015,10.17
POLICY & COMMUNICATIONS,Catering Food & Drink,LIDL UK,01/04/2015,0.49
POLICY & COMMUNICATIONS,Catering Food & Drink,LIDL UK,01/04/2015,109.65
POLICY & COMMUNICATIONS,Catering Food & Drink,TESCO STORES-2143,01/04/2015,8.00
HOUSING CAPITAL & ASSET MANAGEMENT,Legal Services-Other,HMCOURTS-SERVICE.G,01/04/2015,20.00
DAY CENTRES,Food/refreshment - meetings,SAIN - BRIXTON,02/04/2015,400.00
DAY CENTRES,Travel/Subsistence,OYSTER BUS AUTOTOP,02/04/2015,20.00
OLDER PEOPLE,Financial Services,CASH ADVANCE FEE,02/04/2015,8.85
BALANCE SHEET,VAT,ACTIVIA LTD,02/04/2015,169.80
BALANCE SHEET,VAT,IAN TAIT AND CO LTD,02/04/2015,110.00
PROCUREMENT,Education-Other,ACTIVIA LTD,02/04/2015,849.00
PROCUREMENT,Education-Other,IAN TAIT AND CO LTD,02/04/2015,550.00
HOUSING CAPITAL & ASSET MANAGEMENT,Legal Services-Other,HMCOURTS-SERVICE.G,02/04/2015,360.00
DAY CENTRES,Financial Services-Banking,CASH ADVANCE FEE,03/04/2015,11.80
OLDER PEOPLE,Catering Food & Drink,ICELAND,07/04/2015,48.00
OLDER PEOPLE,Catering Food & Drink,MN WEST NORWOOD HALAL,07/04/2015,50.00
CHILDREN SAFEGUARDING & ASSESSMENTS,Travel/Subsistence,WP-SCOACH ETICKET,07/04/2015,26.70
FINANCIAL PLANNING AND MANAGEMENT,Professional subscriptions,ACCA,07/04/2015,151.00
FINANCIAL PLANNING AND MANAGEMENT,Professional subscriptions,ACCA,07/04/2015,-151.00
HUMAN RESOURCES & ORGANISATIONAL DEVELOPMENT,Professional & Advisory Services,THE KNOWLEDGE ACADEMY,07/04/2015,500.00
HUMAN RESOURCES & ORGANISATIONAL DEVELOPMENT,Professional & Advisory Services,THE KNOWLEDGE ACADEMY,07/04/2015,462.75
HOUSING MANAGEMENT SERVICES,Consultancy-Business,ARMOUR LOCK AND SAFE,07/04/2015,47.00
HOUSING MANAGEMENT SERVICES,Consultancy-Business,EB *LOCAL AUTHORITIES,07/04/2015,900.00
HOUSING MANAGEMENT SERVICES,Consultancy-Business,EB *LOCAL AUTHORITIES,07/04/2015,-900.00
HOUSING MANAGEMENT SERVICES,Consultancy-Other,WESTMINSTER FORUM,07/04/2015,252.00
HOUSING MANAGEMENT SERVICES,Facilities-Market Research,WWW.RSA.ORG.UK,07/04/2015,165.00
HOUSING MANAGEMENT SERVICES,Stationery,VIKING,07/04/2015,56.93
HOUSING MANAGEMENT SERVICES,Stationery,VIKING,07/04/2015,33.47
HOUSING MANAGEMENT SERVICES,Travel/Subsistence,CROYDON COACHES (UK) L,07/04/2015,527.85
HOUSING CAPITAL & ASSET MANAGEMENT,Legal Services-Other,HMCOURTS-SERVICE.G,07/04/2015,80.00
INTEGRATED DISABILITY,Financial Services,SAIN - BRIXTON,08/04/2015,400.00
BALANCE SHEET,VAT,SAIN - BRIXTON,08/04/2015,0.00
CHILDREN SAFEGUARDING & ASSESSMENTS,Financial Services,LAMBETH INTERNET PAYM,08/04/2015,30.50
QUALITY ASSURANCE & PERFORMANCE,Domestic Goods-Other,HIGH STREET VOUCHE,08/04/2015,-50.00
INTEGRATED DISABILITY,Financial Services,CASH ADVANCE FEE,09/04/2015,11.80
INTEGRATED DISABILITY,Catering Food & Drink,TESCO STORE 3205,09/04/2015,35.80
BALANCE SHEET,VAT,MAIDSTONE SEWING CENTRE,09/04/2015,50.00
BALANCE SHEET,VAT,TESCO STORE 3205,09/04/2015,0.00
BALANCE SHEET,VAT,CASH ADVANCE FEE,09/04/2015,0.00
CHILDREN LOOKED AFTER,Accommodation,HOLIDAY INNS,09/04/2015,590.00
FINANCIAL PLANNING AND MANAGEMENT,Use of Public Transport,LUL TICKET MACHINE,09/04/2015,35.00
POLICY & COMMUNICATIONS,Education-Arts/Crafts,MAIDSTONE SEWING CENTRE,09/04/2015,250.00
POLICY & COMMUNICATIONS,Education-Library Books,PAYPAL *VALIZBOEKEN,09/04/2015,410.97
POLICY & COMMUNICATIONS,Taxi Fares,L A S CARS,09/04/2015,17.00
HOMES & COMMUNITIES (HRA),Staff Recruitment costs,UKBA3901815771,09/04/2015,199.00
INTEGRATED DISABILITY,Education-Musical Instruments,THE COUNCIL FOR MUSIC,10/04/2015,140.40
OLDER PEOPLE,Catering Food & Drink,DOMBEY WHOLESALE BUTCH,10/04/2015,378.24
OLDER PEOPLE,Catering Food & Drink,FISH BARGAIN WAREHOUSE,10/04/2015,137.90
SENIOR MANAGEMENT - ADULTS & PUBLIC HEALTH,Travel/Subsistence,TRAINLINE.COM,10/04/2015,64.46
BALANCE SHEET,VAT,WILKIN CHAPMAN LLP,13/04/2015,17.90
BALANCE SHEET,VAT,MAJESTIC WINE,13/04/2015,14.97
PROCUREMENT,Vehicle Maintenance,WILKIN CHAPMAN LLP,13/04/2015,138.00
POLICY & COMMUNICATIONS,Catering Food & Drink,MAJESTIC WINE,13/04/2015,74.85
TENANT MANAGEMENT ORGANISATIONS,Financial Services,WWW.ICO.GOV.UK,13/04/2015,35.00
PUBLIC HEALTH - ADULTS,Travel/Subsistence,TRAINLINE.COM,14/04/2015,172.89
CHILDREN LOOKED AFTER,Couriers,MACH 1 COURIERS,14/04/2015,118.36
CHILDREN LOOKED AFTER,Couriers,MACH 1 COURIERS,14/04/2015,21.72
LIBRARIES & ARCHIVE,Facilities-Design & Photography,RAPIDPHOTO LIMITED,14/04/2015,14.00
FINANCIAL PLANNING AND MANAGEMENT,Use of Public Transport,EXPRESS NEWS,14/04/2015,20.00
POLICY & COMMUNICATIONS,Catering Food & Drink,TESCO STORES-2143,14/04/2015,4.00
INTEGRATED DISABILITY,Cleaning-Laundry Service,WWW.NISBETS.COM,15/04/2015,24.99
BALANCE SHEET,VAT,WWW.NISBETS.COM,15/04/2015,4.99
CHILDREN LOOKED AFTER,Accommodation,HOLIDAY INNS,15/04/2015,580.00
HOUSING CAPITAL & ASSET MANAGEMENT,Legal Services-Other,HMCOURTS-SERVICE.G,15/04/2015,140.00
DAY CENTRES,Travel/Subsistence,OYSTER BUS AUTOTOP,16/04/2015,20.00
OTHER - ADULTS,Facilities-Printing,Amazon UK Retail,16/04/2015,140.83
BALANCE SHEET,VAT,Amazon UK Retail,16/04/2015,28.17
CHILDREN SAFEGUARDING & ASSESSMENTS,Childcare Services,RADIO TAXIS,16/04/2015,504.90
POLICY & COMMUNICATIONS,Catering Food & Drink,VERA CRUZ,16/04/2015,587.60
HOUSING CAPITAL & ASSET MANAGEMENT,Legal Services-Other,HMCOURTS-SERVICE.G,16/04/2015,140.00
PUBLIC HEALTH - ADULTS,Facilities-Printing,WWW.HPA.ORG.UK,17/04/2015,400.00
LIBRARIES & ARCHIVE,Travel/Subsistence,OYSTER BUS AUTOTOP,17/04/2015,20.00
CHILDREN LOOKED AFTER,Accommodation,HOLIDAY INNS,20/04/2015,770.00
FINANCIAL PLANNING AND MANAGEMENT,Professional & Advisory Services,ACCA,20/04/2015,151.00
FINANCIAL PLANNING AND MANAGEMENT,Use of Public Transport,EXPRESS NEWS,20/04/2015,30.50
HOUSING CAPITAL & ASSET MANAGEMENT,Legal Services-Other,HMCOURTS-SERVICE.G,20/04/2015,100.00
INTEGRATED DISABILITY,Domestic Goods-Other,CURRYS SUPERSTORE,22/04/2015,367.99
OTHER - ADULTS,Education-Other,WWW.AAT-ORG.UK,22/04/2015,117.00
BALANCE SHEET,VAT,CURRYS SUPERSTORE,22/04/2015,0.00
BALANCE SHEET,VAT,"Amazon Svcs Europe,SAR",22/04/2015,2.94
BALANCE SHEET,VAT,VIKING,22/04/2015,36.56
LIBRARIES & ARCHIVE,Cleaning-Specialist,"Amazon Svcs Europe,SAR",22/04/2015,14.72
LIBRARIES & ARCHIVE,Education-Library Books,"Amazon Svcs Europe,SAR",22/04/2015,20.40
LIBRARIES & ARCHIVE,Education-Library Books,"Amazon Svcs Europe,SAR",22/04/2015,6.80
LIBRARIES & ARCHIVE,Education-Library Books,Amazon UK Retail,22/04/2015,16.77
FINANCIAL PLANNING AND MANAGEMENT,Furniture-Domestic Furniture,DREAMS LTD,22/04/2015,522.99
FINANCIAL PLANNING AND MANAGEMENT,Travel/Subsistence,OYSTER AUTOTOPUP,22/04/2015,20.00
HUMAN RESOURCES & ORGANISATIONAL DEVELOPMENT (HRA),Catering Food & Drink,CRACKERJACK GOLD,22/04/2015,30.00
HUMAN RESOURCES & ORGANISATIONAL DEVELOPMENT (HRA),Catering Food & Drink,TESCO STORES 5999,22/04/2015,82.42
HUMAN RESOURCES & ORGANISATIONAL DEVELOPMENT (HRA),Catering Food & Drink,VIKING,22/04/2015,182.80
HUMAN RESOURCES & ORGANISATIONAL DEVELOPMENT (HRA),Facilities-Advertising,EXPRESS NEWS,22/04/2015,30.50
HUMAN RESOURCES & ORGANISATIONAL DEVELOPMENT (HRA),Facilities-Advertising,EXPRESS NEWS,22/04/2015,1.40
HUMAN RESOURCES & ORGANISATIONAL DEVELOPMENT (HRA),Financial Services,DISCLOSURE SCOT,22/04/2015,50.00
HUMAN RESOURCES & ORGANISATIONAL DEVELOPMENT (HRA),IT Services-Disaster Recovery,BT DISCLOSURE SCOTLAND,22/04/2015,25.00
HUMAN RESOURCES & ORGANISATIONAL DEVELOPMENT (HRA),IT Services-Disaster Recovery,BT DISCLOSURE SCOTLAND,22/04/2015,25.00
HUMAN RESOURCES & ORGANISATIONAL DEVELOPMENT (HRA),IT Services-Disaster Recovery,BT DISCLOSURE SCOTLAND,22/04/2015,25.00
NEE SENIOR MANAGEMENT TEAM,Travel/Subsistence,TRAINLINE.COM,22/04/2015,50.49
BALANCE SHEET,VAT,1&1 INTERNET LIMITED,23/04/2015,11.99
BALANCE SHEET,VAT,CLOCKWORK REMOVALS LTD,23/04/2015,65.00
BALANCE SHEET,VAT,WWW.PMGLTD.CO.UK,23/04/2015,77.00
BALANCE SHEET,VAT,TESCO PFS 2161,23/04/2015,6.72
CHILDREN LOOKED AFTER,Accommodation,HOLIDAY INNS,23/04/2015,"1,335.00"
CHILDREN LOOKED AFTER,Domestic Goods-Other,ARGOS DIRECT,23/04/2015,-84.99
CHILDREN LOOKED AFTER,Domestic Goods-Other,ARGOS RETAIL GROUP,23/04/2015,232.92
CHILDREN LOOKED AFTER,Domestic Goods-Other,ARGOS RETAIL GROUP,23/04/2015,"1,517.83"
CHILDREN LOOKED AFTER,Domestic Goods-Other,ARGOS RETAIL GROUP,23/04/2015,208.94
CHILDREN LOOKED AFTER,Facilities-Market Research,Amazon Prime,23/04/2015,79.00
CHILDREN LOOKED AFTER,Furniture-Domestic Furniture,IKEA ONLINE,23/04/2015,291.00
EARLY YEARS AND PARENTING,IT Services,1&1 INTERNET LIMITED,23/04/2015,59.97
EARLY YEARS AND PARENTING,Catering Food & Drink,TESCO STORES 5999,23/04/2015,257.59
EARLY YEARS AND PARENTING,Haulage,CLOCKWORK REMOVALS LTD,23/04/2015,325.00
EARLY YEARS QUALITY IMPROVEMENT,Consultancy-Business,WWW.PMGLTD.CO.UK,23/04/2015,385.00
LIBRARIES & ARCHIVE,Education-Other,OAG AVIATION,23/04/2015,208.00
FINANCIAL PLANNING AND MANAGEMENT,Financial Services,LONDON BRGH SOUTHWARK,23/04/2015,10.00
FINANCIAL PLANNING AND MANAGEMENT,Food/refreshment - meetings,SAINSBURYS,23/04/2015,8.45
TENANT MANAGEMENT ORGANISATIONS,Vehicle Fuel,TESCO PFS 2161,23/04/2015,33.57
DAY CENTRES,Domestic Goods-Other,CURRYS SUPERSTORE,24/04/2015,49.99
BALANCE SHEET,VAT,CURRYS ONLINE,24/04/2015,66.33
BALANCE SHEET,VAT,CELLMARK,24/04/2015,57.80
BALANCE SHEET,VAT,DOD`S PARLIAMENTARY CO,24/04/2015,45.00
BALANCE SHEET,VAT,IKEA ONLINE,24/04/2015,59.32
BALANCE SHEET,VAT,MOTHERCARE DIRECT-E-CO,24/04/2015,67.27
CHILDREN LOOKED AFTER,Domestic Goods-Other,CURRYS ONLINE,24/04/2015,192.67
CHILDREN SAFEGUARDING & ASSESSMENTS,Accommodation,THE HOGS HEAD INN,24/04/2015,"1,500.00"
CHILDREN SAFEGUARDING & ASSESSMENTS,Building-Timber,B & Q,24/04/2015,596.00
CHILDREN SAFEGUARDING & ASSESSMENTS,Consultancy-Business,DOD`S PARLIAMENTARY CO,24/04/2015,225.00
CHILDREN SAFEGUARDING & ASSESSMENTS,Domestic Goods-Other,MOTHERCARE DIRECT-E-CO,24/04/2015,412.73
CHILDREN SAFEGUARDING & ASSESSMENTS,Furniture-Domestic Furniture,IKEA ONLINE,24/04/2015,296.60
CHILDREN SAFEGUARDING & ASSESSMENTS,Healthcare Services,CELLMARK,24/04/2015,289.00
CHILDREN SAFEGUARDING & ASSESSMENTS,Horticultural-Seeds & Plants,JAYESH FLORIST LIMITED,24/04/2015,68.49
CHILDREN SAFEGUARDING & ASSESSMENTS,Mail Services-Postage,POST OFFICE LTD,24/04/2015,133.40
CHILDREN SAFEGUARDING & ASSESSMENTS,Professional & Advisory Services,PAYPAL *ABSOLUTEINT,24/04/2015,453.60
CHILDREN SAFEGUARDING & ASSESSMENTS,Travel/Subsistence,EXPEDIA 17546066429,24/04/2015,"1,002.60"
CHILDREN SAFEGUARDING & ASSESSMENTS,Travel/Subsistence,VIR ATL 2165098071,24/04/2015,"1,051.07"
CHILDREN SAFEGUARDING & ASSESSMENTS,Works-Construction,DISCOUNT CARPETS S,24/04/2015,620.00
BALANCE SHEET,VAT,DIRECT TELECOM SVS,25/04/2015,36.66
BALANCE SHEET,VAT,IDCLIMITED,25/04/2015,22.40
BALANCE SHEET,VAT,NEXPRESSDELIVERY.CO.UK,25/04/2015,42.62
POLICY & COMMUNICATIONS,Consultancy-Business,ACT*The NSMC CIC,25/04/2015,502.80
POLICY & COMMUNICATIONS,Domestic Goods-Other,HIGH STREET VOUCHE,25/04/2015,"1,459.50"
POLICY & COMMUNICATIONS,Facilities-Advertising,FACEBOOK A3PMF76S62,25/04/2015,8.09
POLICY & COMMUNICATIONS,Facilities-Advertising,FACEBOOK LHSNB72S62,25/04/2015,11.25
POLICY & COMMUNICATIONS,Travel/Subsistence,TRAINLINE.COM,25/04/2015,50.08
POLICY & COMMUNICATIONS,Catering Food & Drink,NEXPRESSDELIVERY.CO.UK,25/04/2015,212.99
POLICY & COMMUNICATIONS,Consultancy-Business,EB DECISION MAKING AN,25/04/2015,317.00
POLICY & COMMUNICATIONS,Domestic Goods-Other,DIRECT TELECOM SVS,25/04/2015,183.29
POLICY & COMMUNICATIONS,Domestic Goods-Other,IDCLIMITED,25/04/2015,112.00
POLICY & COMMUNICATIONS,Facilities-Market Research,CTC*CONSTANTCONTACT.COM,25/04/2015,70.80
POLICY & COMMUNICATIONS,Mail Services-Postage,NEXPRESSDELIVERY.CO.UK,25/04/2015,2.99
POLICY & COMMUNICATIONS,Travel/Subsistence,OYSTER BUS AUTOTOP,25/04/2015,40.00
POLICY & COMMUNICATIONS,Travel/Subsistence,OYSTER BUS AUTOTOP,25/04/2015,40.00
POLICY & COMMUNICATIONS,Travel/Subsistence,ZIPCAR,25/04/2015,24.00
POLICY & COMMUNICATIONS,Travel/Subsistence,ZIPCAR,25/04/2015,12.00
NEIGHBOURHOODS,Domestic Goods-Commercial,"Amazon Svcs Europe,SAR",26/04/2015,33.95
NEIGHBOURHOODS,Domestic Goods-Commercial,Amazon UK Retail,26/04/2015,12.85
NEIGHBOURHOODS,Education-Other,TRAINLINE.COM,26/04/2015,119.49
NEIGHBOURHOODS,Education-Other,WANDSWORTH COUNCIL INT,26/04/2015,140.00
NEIGHBOURHOODS,Professional & Advisory Services,GRO HM PASSPORT OFFICE,26/04/2015,28.00
NEIGHBOURHOODS,Professional & Advisory Services,GRO HM PASSPORT OFFICE,26/04/2015,28.00
NEIGHBOURHOODS,Stationery,WHSMITH.CO.UK,26/04/2015,118.82
INTEGRATED DISABILITY,Catering Food & Drink,TESCO STORE 2764,27/04/2015,30.87
INTEGRATED DISABILITY,Catering Food & Drink,TESCO-STORES 6069,27/04/2015,4.20
OLDER PEOPLE,Catering Food & Drink,ICELAND,27/04/2015,16.91
OLDER PEOPLE,Catering Food & Drink,SAINSBURYS,27/04/2015,107.30
BALANCE SHEET,VAT,TESCO STORE 2764,27/04/2015,0.00
BALANCE SHEET,VAT,TESCO-STORES 6069,27/04/2015,0.00
BALANCE SHEET,Personal,WWW.SGN.CO.UK,27/04/2015,-0.75
BALANCE SHEET,VAT,"Amazon Svcs Europe,SAR",27/04/2015,3.88
BALANCE SHEET,VAT,GLEN DIMPLEX HOME APPL,27/04/2015,1.85
BALANCE SHEET,VAT,WWW.SGN.CO.UK,27/04/2015,20.25
BALANCE SHEET,VAT,J D SPORTS 651,27/04/2015,0.00
BALANCE SHEET,VAT,POST OFFICE COUNTER,27/04/2015,0.00
BALANCE SHEET,VAT,TRAVEL FORCE,27/04/2015,0.00
BALANCE SHEET,VAT,TRAVEL FORCE,27/04/2015,0.00
BALANCE SHEET,VAT,SIRENA'S,27/04/2015,11.40
EARLY HELP,Mail Services-Postage,POST OFFICE COUNTER,27/04/2015,550.00
EARLY HELP,Sports Equipment,J D SPORTS 651,27/04/2015,350.00
EARLY HELP,Taxi Fares,TRAVEL FORCE,27/04/2015,163.20
EARLY HELP,Taxi Fares,TRAVEL FORCE,27/04/2015,204.00
LIBRARIES & ARCHIVE,Catering Food & Drink,LIDL UK,27/04/2015,8.22
BUSINESS TRANSFORMATION,Professional subscriptions,MSFT *DEVELOPER,27/04/2015,76.05
FINANCE (HRA),Travel/Subsistence,TRAINLINE.COM,27/04/2015,120.87
"PLANNING, TRANSPORT & DEVELOPMENT",Consultancy-Business,BSI STANDARDS,27/04/2015,36.00
"PLANNING, TRANSPORT & DEVELOPMENT",Travel/Subsistence,THETRAINLINE.COM,27/04/2015,53.55
"PLANNING, TRANSPORT & DEVELOPMENT",Catering Food & Drink,SIRENA'S,27/04/2015,57.00
"PLANNING, TRANSPORT & DEVELOPMENT",Consultancy-Business,PIPERS PROJECTS LTD,27/04/2015,180.00
HOUSING MANAGEMENT SERVICES,Consultancy-Other,TV LICENSING,27/04/2015,145.50
HOUSING MANAGEMENT SERVICES,Domestic Goods-Other,GLEN DIMPLEX HOME APPL,27/04/2015,9.20
HOUSING MANAGEMENT SERVICES,Domestic Goods-Other,WWW.SGN.CO.UK,27/04/2015,384.10
HOUSING MANAGEMENT SERVICES,Education-Library Books,"Amazon Svcs Europe,SAR",27/04/2015,65.90
HOUSING MANAGEMENT SERVICES,Facilities-Advertising,WH SMITH,27/04/2015,57.75
HOUSING MANAGEMENT SERVICES,Financial Services,CHERWELL DISTRICT COUN,27/04/2015,56.56
HOUSING MANAGEMENT SERVICES,Financial Services,LAND REGISTRY,27/04/2015,3.00
HOUSING MANAGEMENT SERVICES,Financial Services,LAND REGISTRY,27/04/2015,3.00
HOUSING MANAGEMENT SERVICES,Financial Services,LBL NOT PRESENT,27/04/2015,10.17
HOUSING MANAGEMENT SERVICES,Financial Services,LBL NOT PRESENT,27/04/2015,14.23
HOUSING MANAGEMENT SERVICES,Financial Services,LBL NOT PRESENT,27/04/2015,7.12
HOUSING CAPITAL & ASSET MANAGEMENT,Legal Services-Other,HMCOURTS-SERVICE.G,27/04/2015,180.00
INTEGRATED DISABILITY,Travel/Subsistence,NEWS AT NINE,28/04/2015,250.00
BALANCE SHEET,VAT,NEWS AT NINE,28/04/2015,0.00
POLICY & COMMUNICATIONS,Catering Food & Drink,SAN MARINO,28/04/2015,710.00
POLICY & COMMUNICATIONS,Cleaning-Specialist,TESCO STORES-2143,28/04/2015,8.97
INTEGRATED DISABILITY,Financial Services,ROYAL BANK UK /,29/04/2015,400.00
INTEGRATED DISABILITY,Furniture-Other,"Amazon Svcs Europe,SAR",29/04/2015,59.10
BALANCE SHEET,VAT,"Amazon Svcs Europe,SAR",29/04/2015,0.00
BALANCE SHEET,VAT,ACCESS SELF STORAG,29/04/2015,0.00
BALANCE SHEET,VAT,ACCESS SELF STORAG,29/04/2015,42.90
BALANCE SHEET,VAT,ROYAL BANK UK /,29/04/2015,0.00
BALANCE SHEET,VAT,THESPORTSHQ.COM,29/04/2015,60.81
LIBRARIES & ARCHIVE,Education-Library Books,ECONOMIST SUBSCRIPTION,29/04/2015,126.00
FINANCIAL PLANNING AND MANAGEMENT,Use of Public Transport,EXPRESS NEWS,29/04/2015,40.00
INTERNAL AUDIT,Financial Services,LBL NOT PRESENT,29/04/2015,20.33
INTERNAL AUDIT,Stationery,"Amazon Svcs Europe,SAR",29/04/2015,27.75
INTERNAL AUDIT,Travel/Subsistence,TFL CC/LEZ CHARGE,29/04/2015,11.50
INTERNAL AUDIT,Travel/Subsistence,TFL CC/LEZ CHARGE,29/04/2015,11.50
INTERNAL AUDIT,Travel/Subsistence,TFL CC/LEZ CHARGE,29/04/2015,11.50
INTERNAL AUDIT,Travel/Subsistence,TFL CC/LEZ CHARGE,29/04/2015,11.50
POLICY & COMMUNICATIONS,Professional & Advisory Services,GRAMMARLY 888-318-6146,29/04/2015,20.54
POLICY & COMMUNICATIONS,Professional & Advisory Services,GRAMMARLY 888-318-6146,29/04/2015,20.04
POLICY & COMMUNICATIONS,Professional & Advisory Services,GRAMMARLY 888-318-6146,29/04/2015,20.84
POLICY & COMMUNICATIONS,Professional & Advisory Services,GRAMMARLY 888-318-6146,29/04/2015,20.38
"PLANNING, TRANSPORT & DEVELOPMENT",Arts & Leisure Services,WWW.TICKETARENA.CO.UK,29/04/2015,15.45
"PLANNING, TRANSPORT & DEVELOPMENT",Consultancy-Business,EB LAID BACK AROUND T,29/04/2015,8.31
"PLANNING, TRANSPORT & DEVELOPMENT",Facilities-Design & Photography,4 PRINT & DESIGN,29/04/2015,152.00
"PLANNING, TRANSPORT & DEVELOPMENT",Facilities-Design & Photography,4 PRINT & DESIGN,29/04/2015,28.15
"PLANNING, TRANSPORT & DEVELOPMENT",Facilities-Storage,ACCESS SELF STORAG,29/04/2015,257.42
"PLANNING, TRANSPORT & DEVELOPMENT",Facilities-Storage,ACCESS SELF STORAG,29/04/2015,214.52
"PLANNING, TRANSPORT & DEVELOPMENT",Travel/Subsistence,LUL TICKET OFFICE.,29/04/2015,25.00
"PLANNING, TRANSPORT & DEVELOPMENT",Travel/Subsistence,OYSTER AUTOTOPUP,29/04/2015,20.00
"PLANNING, TRANSPORT & DEVELOPMENT",Travel/Subsistence,OYSTER BUS AUTOTOP,29/04/2015,20.00
HOUSING MANAGEMENT SERVICES,Catering Food & Drink,SAINSBURYS S/MKTS,29/04/2015,4.00
HOUSING MANAGEMENT SERVICES,Catering Food & Drink,SAINSBURYS S/MKTS,29/04/2015,19.60
HOUSING MANAGEMENT SERVICES,Catering Food & Drink,SAINSBURYS S/MKTS,29/04/2015,9.75
HOUSING MANAGEMENT SERVICES,Sports Equipment,THESPORTSHQ.COM,29/04/2015,688.98
HOUSING MANAGEMENT SERVICES,Travel/Subsistence,OYSTER AUTOTOPUP,29/04/2015,20.00
HOUSING MANAGEMENT SERVICES,Travel/Subsistence,OYSTER AUTOTOPUP,29/04/2015,20.00
HOUSING MANAGEMENT SERVICES,Travel/Subsistence,OYSTER AUTOTOPUP,29/04/2015,20.00
HOUSING MANAGEMENT SERVICES,Travel/Subsistence,OYSTER BUS AUTOTOP,29/04/2015,20.00
HOUSING MANAGEMENT SERVICES,Travel/Subsistence,OYSTER BUS AUTOTOP,29/04/2015,20.00
HOUSING CAPITAL & ASSET MANAGEMENT,Legal Services-Other,HMCOURTS-SERVICE.G,29/04/2015,60.00
HOUSING CAPITAL & ASSET MANAGEMENT,Legal Services-Other,HMCOURTS-SERVICE.G,29/04/2015,160.00
HOUSING CAPITAL & ASSET MANAGEMENT,Legal Services-Other,HMCOURTS-SERVICE.G,29/04/2015,80.00
HOUSING CAPITAL & ASSET MANAGEMENT,Legal Services-Other,HMCOURTS-SERVICE.G,29/04/2015,80.00
HOUSING CAPITAL & ASSET MANAGEMENT,Legal Services-Other,HMCOURTS-SERVICE.G,29/04/2015,180.00
HOUSING CAPITAL & ASSET MANAGEMENT,Legal Services-Other,HMCOURTS-SERVICE.G,29/04/2015,60.00
HOUSING CAPITAL & ASSET MANAGEMENT,Legal Services-Other,HMCOURTS-SERVICE.G,29/04/2015,440.00
HOUSING CAPITAL & ASSET MANAGEMENT,Legal Services-Other,HMCOURTS-SERVICE.G,29/04/2015,140.00
HOUSING CAPITAL & ASSET MANAGEMENT,Legal Services-Other,HMCOURTS-SERVICE.G,29/04/2015,100.00
HOUSING CAPITAL & ASSET MANAGEMENT,Legal Services-Other,HMCOURTS-SERVICE.G,29/04/2015,140.00
HOUSING CAPITAL & ASSET MANAGEMENT,Legal Services-Other,HMCOURTS-SERVICE.G,29/04/2015,40.00
HOUSING CAPITAL & ASSET MANAGEMENT,Legal Services-Other,HMCOURTS-SERVICE.G,29/04/2015,100.00
HOUSING CAPITAL & ASSET MANAGEMENT,Legal Services-Other,HMCOURTS-SERVICE.G,29/04/2015,160.00
HOUSING CAPITAL & ASSET MANAGEMENT,Legal Services-Other,HMCOURTS-SERVICE.G,29/04/2015,100.00
DAY CENTRES,Financial Services,SAIN - BRIXTON,30/04/2015,400.00
INTEGRATED DISABILITY,Financial Services,CASH ADVANCE FEE,30/04/2015,11.80
BALANCE SHEET,VAT,CASH ADVANCE FEE,30/04/2015,0.00
YOUTH OFFENDING SERVICE,Travel/Subsistence,LUL TICKET MACHINE,30/04/2015,30.00
YOUTH OFFENDING SERVICE,Travel/Subsistence,LUL TICKET MACHINE,30/04/2015,60.00
FINANCIAL PLANNING AND MANAGEMENT,Financial Services,LAND REGISTRY,30/04/2015,6.00
FINANCIAL PLANNING AND MANAGEMENT,Financial Services,LAND REGISTRY,30/04/2015,6.00
FINANCIAL PLANNING AND MANAGEMENT,Financial Services,LAND REGISTRY,30/04/2015,3.00
FINANCIAL PLANNING AND MANAGEMENT,Travel/Subsistence,OYSTER BUS AUTOTOP,30/04/2015,40.00
INTERNAL AUDIT,Travel/Subsistence,OYSTER AUTOTOPUP,30/04/2015,40.00
INTERNAL AUDIT,Travel/Subsistence,OYSTER AUTOTOPUP,30/04/2015,40.00
INTERNAL AUDIT,Travel/Subsistence,OYSTER BUS AUTOTOP,30/04/2015,20.00
INTERNAL AUDIT,Travel/Subsistence,OYSTER BUS AUTOTOP,30/04/2015,20.00
INTERNAL AUDIT,Travel/Subsistence,TFL CC/LEZ CHARGE,30/04/2015,23.00
INTERNAL AUDIT,Travel/Subsistence,TFL CC/LEZ CHARGE,30/04/2015,11.50
"PLANNING, TRANSPORT & DEVELOPMENT",Education-Other,EB MASTERCLASS HOW TO,30/04/2015,61.65
DAY CENTRES,Financial Services-Banking,CASH ADVANCE FEE,01/05/2015,11.80
BALANCE SHEET,VAT,WWW.LOCAL.GOV.UK,01/05/2015,99.00
QUALITY ASSURANCE & PERFORMANCE,Travel/Subsistence,OYSTER AUTOTOPUP,01/05/2015,40.00
QUALITY ASSURANCE & PERFORMANCE,Travel/Subsistence,OYSTER AUTOTOPUP,01/05/2015,40.00
QUALITY ASSURANCE & PERFORMANCE,Travel/Subsistence,OYSTER AUTOTOPUP,01/05/2015,40.00
QUALITY ASSURANCE & PERFORMANCE,Travel/Subsistence,OYSTER BUS AUTOTOP,01/05/2015,40.00
QUALITY ASSURANCE & PERFORMANCE,Travel/Subsistence,VIRGINTRAINSEC SERVCS,01/05/2015,31.30
QUALITY ASSURANCE & PERFORMANCE,Travel/Subsistence,VIRGINTRAINSEC SERVCS,01/05/2015,104.00
QUALITY ASSURANCE & PERFORMANCE,Travel/Subsistence,VIRGINTRAINSEC SERVCS,01/05/2015,154.00
QUALITY ASSURANCE & PERFORMANCE,Travel/Subsistence,VIRGINTRAINSEC SERVCS,01/05/2015,81.60
CHIEF EXECUTIVE'S OFFICE,Consultancy-Business,WWW.LOCAL.GOV.UK,01/05/2015,495.00
BALANCE SHEET,VAT,NATIONBUILDER,04/05/2015,0.00
BALANCE SHEET,VAT,NATIONBUILDER,04/05/2015,0.00
BALANCE SHEET,VAT,NATIONBUILDER,04/05/2015,0.00
BALANCE SHEET,VAT,NATIONBUILDER,04/05/2015,0.00
BALANCE SHEET,VAT,NATIONBUILDER,04/05/2015,0.00
BALANCE SHEET,VAT,NATIONBUILDER,04/05/2015,0.00
POLICY & COMMUNICATIONS,IT Services,NATIONBUILDER,04/05/2015,12.23
POLICY & COMMUNICATIONS,IT Services,NATIONBUILDER,04/05/2015,12.25
POLICY & COMMUNICATIONS,IT Services,NATIONBUILDER,04/05/2015,19.09
POLICY & COMMUNICATIONS,IT Services,NATIONBUILDER,04/05/2015,19.80
POLICY & COMMUNICATIONS,IT Services,NATIONBUILDER,04/05/2015,20.22
POLICY & COMMUNICATIONS,IT Services,NATIONBUILDER,04/05/2015,19.79
CHILDREN LOOKED AFTER,Accommodation,HOLIDAY INNS,05/05/2015,125.00
LIBRARIES & ARCHIVE,Education-Library Books,"Amazon Svcs Europe,SAR",05/05/2015,21.20
LIBRARIES & ARCHIVE,Education-Library Books,"Amazon Svcs Europe,SAR",05/05/2015,15.38
LIBRARIES & ARCHIVE,Education-Library Books,"Amazon Svcs Europe,SAR",05/05/2015,5.98
LIBRARIES & ARCHIVE,Education-Library Books,"Amazon Svcs Europe,SAR",05/05/2015,6.30
LIBRARIES & ARCHIVE,Education-Library Books,"Amazon Svcs Europe,SAR",05/05/2015,30.73
LIBRARIES & ARCHIVE,Education-Library Books,"Amazon Svcs Europe,SAR",05/05/2015,2.80
LIBRARIES & ARCHIVE,Education-Library Books,"Amazon Svcs Europe,SAR",05/05/2015,14.42
LIBRARIES & ARCHIVE,Education-Library Books,"Amazon Svcs Europe,SAR",05/05/2015,17.23
LIBRARIES & ARCHIVE,Education-Library Books,"Amazon Svcs Europe,SAR",05/05/2015,6.20
LIBRARIES & ARCHIVE,Education-Library Books,Amazon UK Marketplace,05/05/2015,18.77
LIBRARIES & ARCHIVE,Facilities-Printing,Amazon UK Retail,05/05/2015,12.00
LIBRARIES & ARCHIVE,Facilities-Printing,Amazon UK Retail,05/05/2015,28.47
LIBRARIES & ARCHIVE,Facilities-Printing,Amazon UK Retail,05/05/2015,7.99
LIBRARIES & ARCHIVE,Facilities-Printing,Amazon UK Retail,05/05/2015,14.00
LIBRARIES & ARCHIVE,Facilities-Printing,Amazon UK Retail,05/05/2015,12.99
HOUSING CAPITAL & ASSET MANAGEMENT,Legal Services-Other,HMCOURTS-SERVICE.G,05/05/2015,120.00
OLDER PEOPLE,Catering Food & Drink,TESCO STORE 2445,06/05/2015,65.85
BALANCE SHEET,VAT,HIGH STREET VOUCHE,06/05/2015,445.99
BALANCE SHEET,VAT,HOOTSUITE MEDIA INC.,06/05/2015,4.80
BALANCE SHEET,VAT,LOVE2SHOP.CO.UK,06/05/2015,0.99
BALANCE SHEET,VAT,MEISTERLABS GMBH,06/05/2015,9.83
BALANCE SHEET,VAT,SURVEYMONKEY.COM,06/05/2015,3.13
BALANCE SHEET,VAT,SURVEYMONKEY.COM,06/05/2015,3.13
BALANCE SHEET,VAT,SURVEYMONKEY.COM,06/05/2015,3.13
BALANCE SHEET,VAT,SURVEYMONKEY.COM,06/05/2015,3.13
BALANCE SHEET,VAT,SURVEYMONKEY.COM,06/05/2015,3.13
BALANCE SHEET,VAT,SURVEYMONKEY.COM,06/05/2015,4.33
BALANCE SHEET,VAT,SURVEYMONKEY.COM,06/05/2015,4.33
BALANCE SHEET,VAT,SURVEYMONKEY.COM,06/05/2015,4.33
BALANCE SHEET,VAT,SURVEYMONKEY.COM,06/05/2015,4.33
BALANCE SHEET,VAT,THE PRINTING PEOPLE LT,06/05/2015,76.40
BALANCE SHEET,VAT,SOLACE LTD,06/05/2015,84.00
REVENUE & BENEFITS,Legal Services-Other,HMCOURTS-SERVICE.G,06/05/2015,"3,684.00"
REVENUE & BENEFITS,Legal Services-Other,HMCOURTS-SERVICE.G,06/05/2015,"19,653.00"
REVENUE & BENEFITS,Travel/Subsistence,OYSTER AUTOTOPUP,06/05/2015,20.00
REVENUE & BENEFITS,Travel/Subsistence,OYSTER AUTOTOPUP,06/05/2015,20.00
CORPORATE AFFAIRS,Catering Food & Drink,MARKS & SPENCER,06/05/2015,4.60
CORPORATE AFFAIRS,Stationery,"Amazon Svcs Europe,SAR",06/05/2015,89.90
CORPORATE AFFAIRS,Stationery,WH SMITH,06/05/2015,220.00
CORPORATE AFFAIRS,Travel/Subsistence,BRIX CENTRAL STOP,06/05/2015,50.00
CORPORATE AFFAIRS,Travel/Subsistence,LUL TICKET MACHINE,06/05/2015,50.00
CORPORATE AFFAIRS,Travel/Subsistence,LUL TICKET MACHINE,06/05/2015,50.00
CORPORATE AFFAIRS,Travel/Subsistence,LUL TICKET MACHINE,06/05/2015,50.00
CORPORATE AFFAIRS,Travel/Subsistence,LUL TICKET MACHINE,06/05/2015,100.00
FINANCIAL PLANNING AND MANAGEMENT,Healthcare Services,SOLACE LTD,06/05/2015,416.00
COMMUNICATIONS (HRA),Consultancy-Business,HOOTSUITE MEDIA INC.,06/05/2015,4.81
COMMUNICATIONS (HRA),Consultancy-Business,HOOTSUITE MEDIA INC.,06/05/2015,23.98
COMMUNICATIONS (HRA),Domestic Goods-Other,HIGH STREET VOUCHE,06/05/2015,49.96
COMMUNICATIONS (HRA),Domestic Goods-Other,LOVE2SHOP.CO.UK,06/05/2015,494.96
COMMUNICATIONS (HRA),Facilities-Printing,THE PRINTING PEOPLE LT,06/05/2015,381.99
COMMUNICATIONS (HRA),IT Services,MEISTERLABS GMBH,06/05/2015,49.16
COMMUNICATIONS (HRA),IT Services,SURVEYMONKEY.COM,06/05/2015,20.87
COMMUNICATIONS (HRA),IT Services,SURVEYMONKEY.COM,06/05/2015,20.87
COMMUNICATIONS (HRA),IT Services,SURVEYMONKEY.COM,06/05/2015,20.87
COMMUNICATIONS (HRA),IT Services,SURVEYMONKEY.COM,06/05/2015,20.87
COMMUNICATIONS (HRA),IT Services,SURVEYMONKEY.COM,06/05/2015,20.87
COMMUNICATIONS (HRA),IT Services,SURVEYMONKEY.COM,06/05/2015,21.67
COMMUNICATIONS (HRA),IT Services,SURVEYMONKEY.COM,06/05/2015,21.67
COMMUNICATIONS (HRA),IT Services,SURVEYMONKEY.COM,06/05/2015,21.67
COMMUNICATIONS (HRA),IT Services,SURVEYMONKEY.COM,06/05/2015,21.67
"PLANNING, TRANSPORT & DEVELOPMENT",Legal Services-Other,ROYAL COURT OF JUS,06/05/2015,155.00
HOUSING CAPITAL & ASSET MANAGEMENT,Legal Services-Other,HMCOURTS-SERVICE.G,06/05/2015,200.00
INTEGRATED DISABILITY,Consultancy-Business,FAST KEY SERVICES,07/05/2015,10.22
MENTAL HEALTH,Facilities-Market Research,STATIONERY OFFICE BOOK,07/05/2015,258.00
MENTAL HEALTH,Legal Services-Other,HMCOURTS-SERVICE.G,07/05/2015,40.00
MENTAL HEALTH,Legal Services-Other,HMCOURTS-SERVICE.G,07/05/2015,20.00
MENTAL HEALTH,Legal Services-Other,HMCOURTS-SERVICE.G,07/05/2015,20.00
MENTAL HEALTH,Legal Services-Other,HMCOURTS-SERVICE.G,07/05/2015,20.00
MENTAL HEALTH,Legal Services-Other,HMCOURTS-SERVICE.G,07/05/2015,40.00
MENTAL HEALTH,Legal Services-Other,HMCOURTS-SERVICE.G,07/05/2015,20.00
MENTAL HEALTH,Legal Services-Other,HMCOURTS-SERVICE.G,07/05/2015,40.00
MENTAL HEALTH,Legal Services-Other,HMCOURTS-SERVICE.G,07/05/2015,20.00
MENTAL HEALTH,Legal Services-Other,HMCOURTS-SERVICE.G,07/05/2015,20.00
MENTAL HEALTH,Legal Services-Other,HMCOURTS-SERVICE.G,07/05/2015,40.00
MENTAL HEALTH,Legal Services-Other,HMCOURTS-SERVICE.G,07/05/2015,40.00
MENTAL HEALTH,Legal Services-Other,HMCOURTS-SERVICE.G,07/05/2015,20.00
MENTAL HEALTH,Legal Services-Other,HMCOURTS-SERVICE.G,07/05/2015,40.00
MENTAL HEALTH,Legal Services-Other,HMCOURTS-SERVICE.G,07/05/2015,40.00
MENTAL HEALTH,Legal Services-Other,HMCOURTS-SERVICE.G,07/05/2015,20.00
MENTAL HEALTH,Legal Services-Other,HMCOURTS-SERVICE.G,07/05/2015,60.00
MENTAL HEALTH,Legal Services-Other,HMCOURTS-SERVICE.G,07/05/2015,20.00
MENTAL HEALTH,Legal Services-Other,HMCOURTS-SERVICE.G,07/05/2015,20.00
MENTAL HEALTH,Legal Services-Other,HMCOURTS-SERVICE.G,07/05/2015,20.00
MENTAL HEALTH,Legal Services-Other,HMCOURTS-SERVICE.G,07/05/2015,20.00
MENTAL HEALTH,Legal Services-Other,HMCOURTS-SERVICE.G,07/05/2015,40.00
MENTAL HEALTH,Legal Services-Other,HMCOURTS-SERVICE.G,07/05/2015,20.00
MENTAL HEALTH,Mail Services-Postage,POST OFFICE COUNTER,07/05/2015,63.48
MENTAL HEALTH,Travel/Subsistence,LONDON & SOUTH EAS,07/05/2015,39.60
MENTAL HEALTH,Travel/Subsistence,LONDON & SOUTH EAS,07/05/2015,29.10
MENTAL HEALTH,Travel/Subsistence,LONDON & SOUTH EAS,07/05/2015,49.00
MENTAL HEALTH,Travel/Subsistence,LONDON & SOUTH EAS,07/05/2015,75.80
OTHER - ADULTS,Catering Food & Drink,TESCO STORES 5999,07/05/2015,73.24
OTHER - ADULTS,Domestic Goods-Other,"Amazon Svcs Europe,SAR",07/05/2015,244.98
OTHER - ADULTS,Education-Library Books,"Amazon Svcs Europe,SAR",07/05/2015,43.16
OTHER - ADULTS,Education-Library Books,"Amazon Svcs Europe,SAR",07/05/2015,9.48
OTHER - ADULTS,Facilities-Printing,Amazon UK Retail,07/05/2015,21.75
OTHER - ADULTS,IT Office Equipment,"Amazon Svcs Europe,SAR",07/05/2015,30.55
OTHER - ADULTS,Travel/Subsistence,TRAINLINE.COM,07/05/2015,111.28
BALANCE SHEET,VAT,ROYAL BANK UK /,07/05/2015,400.00
BALANCE SHEET,VAT,FAST KEY SERVICES,07/05/2015,2.04
CHILDREN LOOKED AFTER,Legal Services-Other,HM PASSPORT OFFICE,07/05/2015,92.00
CHILDREN SAFEGUARDING & ASSESSMENTS,Domestic Goods-Other,ARGOS DIRECT,07/05/2015,467.36
CHILDREN SAFEGUARDING & ASSESSMENTS,Domestic Goods-Other,ARGOS DIRECT,07/05/2015,143.93
CHILDREN SAFEGUARDING & ASSESSMENTS,Financial Services,WWW.LBHF.GOV.UK,07/05/2015,20.26
FINANCIAL PLANNING AND MANAGEMENT,Travel/Subsistence,OYSTER AUTOTOPUP,07/05/2015,20.00
FINANCIAL PLANNING AND MANAGEMENT,Travel/Subsistence,OYSTER AUTOTOPUP,07/05/2015,20.00
FINANCIAL PLANNING AND MANAGEMENT,Travel/Subsistence,OYSTER AUTOTOPUP,07/05/2015,20.00
FINANCIAL PLANNING AND MANAGEMENT,Travel/Subsistence,OYSTER BUS AUTOSET,07/05/2015,20.00
FINANCIAL PLANNING AND MANAGEMENT,Travel/Subsistence,OYSTER RENEW WEB,07/05/2015,20.00
FINANCIAL PLANNING AND MANAGEMENT,Travel/Subsistence,OYSTER RENEW WEB,07/05/2015,10.00
FINANCIAL PLANNING AND MANAGEMENT,Travel/Subsistence,OYSTER RENEW WEB,07/05/2015,-10.00
FINANCIAL PLANNING AND MANAGEMENT,Facilities-Advertising,EXPRESS NEWS,07/05/2015,20.50
FINANCIAL PLANNING AND MANAGEMENT,Travel/Subsistence,OYSTER AUTOTOPUP,07/05/2015,20.00
FINANCE (HRA),Education-Other,WWW.CIMAGLOBAL.COM,07/05/2015,259.00
FINANCE (HRA),Travel/Subsistence,WWW.VIRGINTRAINS.CO.UK,07/05/2015,300.00
"PLANNING, TRANSPORT & DEVELOPMENT",Travel/Subsistence,LUL TICKET MACHINE,07/05/2015,60.00
"PLANNING, TRANSPORT & DEVELOPMENT",Travel/Subsistence,LUL TICKET MACHINE,07/05/2015,60.00
"PLANNING, TRANSPORT & DEVELOPMENT",Travel/Subsistence,LUL TICKET MACHINE,07/05/2015,60.00
HOUSING CAPITAL & ASSET MANAGEMENT,Legal Services-Other,HMCOURTS-SERVICE.G,07/05/2015,100.00
BALANCE SHEET,VAT,CASH ADVANCE FEE,08/05/2015,11.80
EARLY HELP,Taxi Fares,TRAVEL FORCE,08/05/2015,204.00
QUALITY ASSURANCE & PERFORMANCE,Domestic Goods-Other,ARGOS,08/05/2015,41.78
LIBRARIES & ARCHIVE,Travel/Subsistence,OYSTER BUS AUTOTOP,08/05/2015,20.00
HOUSING MANAGEMENT - REPAIRS & MAINTENANCE,Accommodation,PREMIER INN44014775,08/05/2015,45.75
HOUSING MANAGEMENT - REPAIRS & MAINTENANCE,Arts & Leisure Services,FUNCTIONCEN,08/05/2015,386.00
HOUSING MANAGEMENT - REPAIRS & MAINTENANCE,Arts & Leisure Services,PAYPAL *MISTRI,08/05/2015,350.00
HOUSING MANAGEMENT - REPAIRS & MAINTENANCE,Catering Food & Drink,CLAPHAM HOME CARE,08/05/2015,50.89
HOUSING MANAGEMENT - REPAIRS & MAINTENANCE,Catering Food & Drink,ELECTRIC SOCIAL,08/05/2015,"1,000.00"
HOUSING MANAGEMENT - REPAIRS & MAINTENANCE,Catering Food & Drink,ELECTRIC SOCIAL,08/05/2015,890.00
HOUSING MANAGEMENT - REPAIRS & MAINTENANCE,Catering Food & Drink,MARKS & SPENCER,08/05/2015,275.55
HOUSING MANAGEMENT - REPAIRS & MAINTENANCE,Catering Food & Drink,MARKS & SPENCER,08/05/2015,25.00
HOUSING MANAGEMENT - REPAIRS & MAINTENANCE,Catering Food & Drink,MARKS & SPENCER,08/05/2015,60.00
HOUSING MANAGEMENT - REPAIRS & MAINTENANCE,Catering Food & Drink,TESCO STORE 2143,08/05/2015,1.70
HOUSING MANAGEMENT - REPAIRS & MAINTENANCE,Catering Food & Drink,TESCO STORES 5999,08/05/2015,295.12
HOUSING MANAGEMENT - REPAIRS & MAINTENANCE,Cycles Purchase,EVANSCYLES.COM,08/05/2015,94.99
HOUSING MANAGEMENT - REPAIRS & MAINTENANCE,Domestic Goods-Other,PARTY PACKS,08/05/2015,426.72
HOUSING MANAGEMENT - REPAIRS & MAINTENANCE,Domestic Goods-Other,POUNDLAND LTD 1203,08/05/2015,45.00
HOUSING MANAGEMENT - REPAIRS & MAINTENANCE,Domestic Goods-Other,TESCO DIRECT,08/05/2015,28.95
HOUSING MANAGEMENT - REPAIRS & MAINTENANCE,Education-Library Books,Amazon *Mktplce EU-UK,08/05/2015,8.88
HOUSING MANAGEMENT - REPAIRS & MAINTENANCE,Education-Library Books,Amazon *Mktplce EU-UK,08/05/2015,61.76
HOUSING MANAGEMENT - REPAIRS & MAINTENANCE,Facilities-Advertising,WH SMITH,08/05/2015,3.99
HOUSING MANAGEMENT - REPAIRS & MAINTENANCE,Facilities-Advertising,WH SMITH,08/05/2015,17.95
HOUSING MANAGEMENT - REPAIRS & MAINTENANCE,Facilities-Printing,Amazon UK Retail,08/05/2015,115.48
HOUSING MANAGEMENT - REPAIRS & MAINTENANCE,Horticultural-Seeds & Plants,INTERFLORA BRITISH UNI,08/05/2015,36.98
HOUSING MANAGEMENT - REPAIRS & MAINTENANCE,Stationery,VIKING,08/05/2015,155.94
HOUSING MANAGEMENT - REPAIRS & MAINTENANCE,Travel/Subsistence,LUL TICKET OFFICE.,08/05/2015,60.00
HOUSING MANAGEMENT - REPAIRS & MAINTENANCE,Travel/Subsistence,LUL TICKET OFFICE.,08/05/2015,60.00
HOUSING MANAGEMENT - REPAIRS & MAINTENANCE,Travel/Subsistence,TRAINLINE.COM,08/05/2015,160.65
HOUSING MANAGEMENT - REPAIRS & MAINTENANCE,Travel/Subsistence,TRAINLINE.COM,08/05/2015,337.67
HOUSING MANAGEMENT - REPAIRS & MAINTENANCE,Travel/Subsistence,VIRGINTRAINS.CO.UK,08/05/2015,267.00
DAY CENTRES,Travel/Subsistence,OYSTER BUS AUTOTOP,10/05/2015,20.00
BALANCE SHEET,VAT,Amazon UK Retail,10/05/2015,25.22
BALANCE SHEET,VAT,Amazon UK Retail,10/05/2015,10.00
BALANCE SHEET,VAT,CITB,10/05/2015,5.00
BALANCE SHEET,VAT,CITB,10/05/2015,5.00
BALANCE SHEET,VAT,CITB,10/05/2015,5.00
BALANCE SHEET,VAT,CITB,10/05/2015,5.00
BALANCE SHEET,VAT,PIPERS PROJECTS LTD,10/05/2015,30.00
EMPLOYMENT & ENTERPRISE - E&L,Building-Tools,"Amazon Svcs Europe,SAR",10/05/2015,249.96
EMPLOYMENT & ENTERPRISE - E&L,Building-Tools,"Amazon Svcs Europe,SAR",10/05/2015,107.89
EMPLOYMENT & ENTERPRISE - E&L,Building-Tools,Amazon UK Retail,10/05/2015,126.10
EMPLOYMENT & ENTERPRISE - E&L,Building-Tools,Amazon UK Retail,10/05/2015,49.98
EMPLOYMENT & ENTERPRISE - E&L,Consultancy-Business,PIPERS PROJECTS LTD,10/05/2015,150.00
EMPLOYMENT & ENTERPRISE - E&L,Education-Other,CITB,10/05/2015,25.00
EMPLOYMENT & ENTERPRISE - E&L,Education-Other,CITB,10/05/2015,25.00
EMPLOYMENT & ENTERPRISE - E&L,Education-Other,CITB,10/05/2015,25.00
EMPLOYMENT & ENTERPRISE - E&L,Education-Other,CITB,10/05/2015,25.00
EMPLOYMENT & ENTERPRISE - E&L,Travel/Subsistence,OYSTER AUTOTOPUP,10/05/2015,20.00
EMPLOYMENT & ENTERPRISE - E&L,Travel/Subsistence,OYSTER AUTOTOPUP,10/05/2015,20.00
EMPLOYMENT & ENTERPRISE - E&L,Travel/Subsistence,OYSTER AUTOTOPUP,10/05/2015,20.00
EMPLOYMENT & ENTERPRISE - E&L,Travel/Subsistence,OYSTER AUTOTOPUP,10/05/2015,40.00
EMPLOYMENT & ENTERPRISE - E&L,Travel/Subsistence,OYSTER AUTOTOPUP,10/05/2015,20.00
EMPLOYMENT & ENTERPRISE - E&L,Travel/Subsistence,OYSTER BUS AUTOTOP,10/05/2015,20.00
EMPLOYMENT & ENTERPRISE - E&L,Travel/Subsistence,OYSTER BUS AUTOTOP,10/05/2015,20.00
EMPLOYMENT & ENTERPRISE - E&L,Travel/Subsistence,OYSTER BUS AUTOTOP,10/05/2015,20.00
EMPLOYMENT & ENTERPRISE - E&L,Travel/Subsistence,OYSTER BUS AUTOTOP,10/05/2015,20.00
EMPLOYMENT & ENTERPRISE - E&L,Travel/Subsistence,OYSTER BUS AUTOTOP,10/05/2015,40.00
EMPLOYMENT & ENTERPRISE - E&L,Travel/Subsistence,OYSTER BUS AUTOTOP,10/05/2015,20.00
REVENUE & BENEFITS,Public Transport,OYSTER BUS AUTOTOP,10/05/2015,20.00
OLDER PEOPLE,Catering Food & Drink,MN WEST NORWOOD HALAL,11/05/2015,135.00
BALANCE SHEET,VAT,"Amazon Svcs Europe,SAR",11/05/2015,10.16
BALANCE SHEET,VAT,STK*SHUTTERSTOCK.COM,11/05/2015,12.80
CHILDREN SAFEGUARDING & ASSESSMENTS,Childcare Services,RADIO TAXIS,11/05/2015,187.00
LIBRARIES & ARCHIVE,Furniture-Other,"Amazon Svcs Europe,SAR",11/05/2015,64.80
FINANCIAL PLANNING AND MANAGEMENT,Travel/Subsistence,TICKETOFFICESALE,11/05/2015,134.70
FINANCIAL PLANNING AND MANAGEMENT,Use of Public Transport,NEW SOUTHERN RAILW,11/05/2015,11.30
COMMUNICATIONS (HRA),Catering Food & Drink,COSTA COFFEE,11/05/2015,37.38
COMMUNICATIONS (HRA),Catering Food & Drink,VERA CRUZ,11/05/2015,39.00
COMMUNICATIONS (HRA),Cleaning-Laundry Service,SAV AND SON DRY CLEANE,11/05/2015,10.00
COMMUNICATIONS (HRA),Education-Library Books,"Amazon Svcs Europe,SAR",11/05/2015,50.80
COMMUNICATIONS (HRA),Facilities-Design & Photography,STK*SHUTTERSTOCK.COM,11/05/2015,64.00
OLDER PEOPLE,Catering Food & Drink,FISH BARGAIN WAREHOUSE,12/05/2015,119.00
OLDER PEOPLE,Catering Food & Drink,TESCO STORE 2143,12/05/2015,90.97
BALANCE SHEET,VAT,EXECUTIVE TROPHIES,12/05/2015,1.42
BALANCE SHEET,VAT,"Amazon Svcs Europe,SAR",12/05/2015,0.78
BALANCE SHEET,VAT,ROYAL MAIL GROUP,12/05/2015,19.21
BALANCE SHEET,Personal,MARKS & SPENCER,12/05/2015,-22.84
REVENUE & BENEFITS,Consultancy-Business,CRAZY EGG.COM,12/05/2015,390.54
CORPORATE AFFAIRS,Domestic Goods-Other,EXECUTIVE TROPHIES,12/05/2015,7.08
CORPORATE AFFAIRS,Legal Services-Other,LAW SOCIETY FINANC,12/05/2015,42.74
CORPORATE AFFAIRS,Legal Services-Other,ROYAL COURT OF JUS,12/05/2015,235.00
CORPORATE AFFAIRS,Travel/Subsistence,OYSTER ISSUE WEB,12/05/2015,165.00
CHIEF EXECUTIVE'S OFFICE,Catering Food & Drink,MARKS & SPENCER,12/05/2015,0.00
COMMUNICATIONS (HRA),Cleaning-Laundry Service,S.I.S.T DRY CLEANERS,12/05/2015,30.00
COMMUNICATIONS (HRA),Domestic Goods-Other,ARGOS,12/05/2015,28.48
COMMUNICATIONS (HRA),Domestic Goods-Other,CURRYS SUPERSTORE,12/05/2015,9.99
COMMUNICATIONS (HRA),Education-Library Books,"Amazon Svcs Europe,SAR",12/05/2015,3.92
COMMUNICATIONS (HRA),Facilities-Advertising,WH SMITH,12/05/2015,7.97
COMMUNICATIONS (HRA),Letting Agents,ALLPAY.NET VISA AND MAST,12/05/2015,36.00
COMMUNICATIONS (HRA),Mail Services-Postage,ROYAL MAIL GROUP,12/05/2015,96.02
HOUSING MANAGEMENT SERVICES,Financial Services,LAMBETH PCN PAYMENTS,12/05/2015,130.00
HOUSING MANAGEMENT SERVICES,Travel/Subsistence,LUL TICKET MACHINE,12/05/2015,50.00
HOUSING MANAGEMENT SERVICES,Travel/Subsistence,NEW SOUTHERN RAILW,12/05/2015,50.00
HOUSING MANAGEMENT SERVICES,Travel/Subsistence,NEW SOUTHERN RAILW,12/05/2015,150.00
HOUSING MANAGEMENT SERVICES,Travel/Subsistence,NEW SOUTHERN RAILW,12/05/2015,150.00
HOUSING MANAGEMENT SERVICES,Vehicle Fuel,CO-OP GROUP PETROL,12/05/2015,30.00
HOUSING CAPITAL & ASSET MANAGEMENT,Legal Services-Other,HMCOURTS-SERVICE.G,12/05/2015,60.00
CHILDREN SAFEGUARDING & ASSESSMENTS,Building-Floors,BUDGET CARPETS 1,13/05/2015,"1,213.00"
LIBRARIES & ARCHIVE,Catering Food & Drink,ICELAND,13/05/2015,10.20
FINANCIAL PLANNING AND MANAGEMENT,Use of Public Transport,FIRST GTR WESTERN,13/05/2015,11.30
INTERNAL AUDIT,Financial Services,LBL NOT PRESENT,13/05/2015,20.33
INTERNAL AUDIT,Travel/Subsistence,OYSTER BUS AUTOTOP,13/05/2015,40.00
HOUSING CAPITAL & ASSET MANAGEMENT,Legal Services-Other,HMCOURTS-SERVICE.G,13/05/2015,60.00
INTEGRATED DISABILITY,Financial Services,ROYAL BANK UK /,14/05/2015,400.00
OTHER - ADULTS,Catering Food & Drink,TESCO STORES 2821,14/05/2015,9.50
OTHER - ADULTS,Catering Food & Drink,TESCO STORES 5342,14/05/2015,20.52
BALANCE SHEET,VAT,Amazon UK Retail,14/05/2015,7.11
BALANCE SHEET,VAT,ROYAL BANK UK /,14/05/2015,0.00
BALANCE SHEET,VAT,SOLACE LTD,14/05/2015,84.00
CHILDREN LOOKED AFTER,Building-Floors,TOOTING CARPETS,14/05/2015,901.04
CHILDREN LOOKED AFTER,Domestic Goods-Other,AO RETAIL LIMITED,14/05/2015,499.00
CHILDREN LOOKED AFTER,Domestic Goods-Other,AO RETAIL LIMITED,14/05/2015,220.00
CHILDREN LOOKED AFTER,Domestic Goods-Other,AO RETAIL LIMITED,14/05/2015,-220.00
CHILDREN LOOKED AFTER,Domestic Goods-Other,ARGOS RETAIL GROUP,14/05/2015,"1,584.36"
CHILDREN LOOKED AFTER,Domestic Goods-Other,ARGOS RETAIL GROUP,14/05/2015,498.40
CHILDREN LOOKED AFTER,Domestic Goods-Other,ARGOS RETAIL GROUP,14/05/2015,388.94
CHILDREN LOOKED AFTER,Domestic Goods-Other,ARGOS RETAIL GROUP,14/05/2015,235.38
CHILDREN LOOKED AFTER,Financial Services,HM PASSPORT OFFICE,14/05/2015,72.50
FINANCIAL PLANNING AND MANAGEMENT,Use of Public Transport,BRIXTON HILL EXPRESS,14/05/2015,30.50
SENIOR MANAGEMENT - NEIGHBOURHOODS & GROWTH,Healthcare Services,SOLACE LTD,14/05/2015,424.00
HOUSING MANAGEMENT SERVICES,Catering Food & Drink,SAINSBURY'S S/MKT,14/05/2015,19.70
HOUSING MANAGEMENT SERVICES,Catering Food & Drink,TESCO STORES 4342,14/05/2015,29.40
HOUSING MANAGEMENT SERVICES,Catering Food & Drink,TESCO STORES 4342,14/05/2015,21.00
HOUSING MANAGEMENT SERVICES,Facilities-Printing,Amazon UK Retail,14/05/2015,35.59
HOUSING MANAGEMENT SERVICES,Financial Services,GRO HM PASSPORT OFFICE,14/05/2015,0.00
HOUSING MANAGEMENT SERVICES,Financial Services,GRO HM PASSPORT OFFICE,14/05/2015,9.25
HOUSING MANAGEMENT SERVICES,Financial Services,LAMBETH INTERNET PAYM,14/05/2015,10.17
HOUSING MANAGEMENT SERVICES,Financial Services,LBL NOT PRESENT,14/05/2015,7.12
HOUSING MANAGEMENT SERVICES,Financial Services,MENDIP DISTRICT COUNCI,14/05/2015,500.00
DAY CENTRES,Financial Services,SAIN - BRIXTON,15/05/2015,200.00
INTEGRATED DISABILITY,Financial Services,CASH ADVANCE FEE,15/05/2015,11.80
OLDER PEOPLE,Catering Food & Drink,ICELAND,15/05/2015,35.99
OLDER PEOPLE,Financial Services,ATM BARCLAYS BANK PLC,15/05/2015,500.00
BALANCE SHEET,VAT,CASH ADVANCE FEE,15/05/2015,0.00
BALANCE SHEET,VAT,ARTTO HOTEL,15/05/2015,15.13
FINANCE (HRA),Accommodation,ARTTO HOTEL,15/05/2015,75.67
FINANCE (HRA),Travel/Subsistence,TRAINLINE.COM,15/05/2015,46.00
FINANCE (HRA),Travel/Subsistence,TRAINLINE.COM,15/05/2015,68.85
CHILDREN LOOKED AFTER,Financial Services,HM PASSPORT OFFICE,16/05/2015,46.00
DAY CENTRES,Financial Services,CASH ADVANCE FEE,18/05/2015,5.90
OLDER PEOPLE,Catering Food & Drink,MN WEST NORWOOD HALAL,18/05/2015,159.00
OLDER PEOPLE,Catering Food & Drink,SEABREEZE FISH MONGERS,18/05/2015,68.00
OLDER PEOPLE,Financial Services-Banking,CASH ADVANCE FEE,18/05/2015,14.75
BALANCE SHEET,VAT,Amazon UK Retail,18/05/2015,10.90
LIBRARIES & ARCHIVE,Catering Food & Drink,TESCO STORES 5459,18/05/2015,3.16
LIBRARIES & ARCHIVE,Education-Library Books,PAYPAL *BOOKSBEYOND,18/05/2015,340.00
LIBRARIES & ARCHIVE,Environmental Services-Waste,"Amazon Svcs Europe,SAR",18/05/2015,97.20
NEIGHBOURHOODS,IT Office Equipment,Amazon UK Retail,18/05/2015,54.52
INTEGRATED DISABILITY,Education-Other,"Amazon Svcs Europe,SAR",19/05/2015,4.36
INTEGRATED DISABILITY,Education-Other,"Amazon Svcs Europe,SAR",19/05/2015,2.56
INTEGRATED DISABILITY,Furniture-Other,"Amazon Svcs Europe,SAR",19/05/2015,59.10
BALANCE SHEET,VAT,"Amazon Svcs Europe,SAR",19/05/2015,0.00
BALANCE SHEET,VAT,"Amazon Svcs Europe,SAR",19/05/2015,0.00
BALANCE SHEET,VAT,"Amazon Svcs Europe,SAR",19/05/2015,0.00
BALANCE SHEET,VAT,"Amazon Svcs Europe,SAR",19/05/2015,0.00
BALANCE SHEET,VAT,Amazon UK Marketplace,19/05/2015,0.00
BALANCE SHEET,VAT,Amazon UK Marketplace,19/05/2015,0.00
BALANCE SHEET,VAT,Amazon UK Retail,19/05/2015,3.33
CHILDREN SAFEGUARDING & ASSESSMENTS,Childcare Services,RADIO TAXIS,19/05/2015,112.20
CHILDREN SAFEGUARDING & ASSESSMENTS,Travel/Subsistence,TRAVEL REPUBLIC LTD,19/05/2015,136.67
CHILDREN SAFEGUARDING & ASSESSMENTS,Professional & Advisory Services,PAYPAL *FREEDOMPROG,19/05/2015,10.00
LIBRARIES & ARCHIVE,Education-Other,DEVON COUNCIL,19/05/2015,144.00
LIBRARIES & ARCHIVE,Domestic Goods-Other,Amazon UK Marketplace,19/05/2015,2.81
LIBRARIES & ARCHIVE,Domestic Goods-Other,Amazon UK Retail,19/05/2015,16.67
LIBRARIES & ARCHIVE,Education-Library Books,"Amazon Svcs Europe,SAR",19/05/2015,8.43
LIBRARIES & ARCHIVE,Education-Library Books,"Amazon Svcs Europe,SAR",19/05/2015,2.81
LIBRARIES & ARCHIVE,Education-Library Books,Amazon UK Marketplace,19/05/2015,2.81
INTEGRATED DISABILITY,Travel/Subsistence,NEWS AT NINE,20/05/2015,200.00
PUBLIC HEALTH - ADULTS,Healthcare Services,DERBY HOSPITALS NHS F/,20/05/2015,416.96
PUBLIC HEALTH - ADULTS,Healthcare Services,DORSET COUNTY HOSPITAL,20/05/2015,279.30
PUBLIC HEALTH - ADULTS,Healthcare Services,EAST SUSSEX HOSPITALS NH,20/05/2015,279.82
PUBLIC HEALTH - ADULTS,Healthcare Services,LUTON & DUNSTABLE HOSP,20/05/2015,"1,066.52"
PUBLIC HEALTH - ADULTS,Healthcare Services,N W L H-CASHIER ONE,20/05/2015,"2,841.38"
PUBLIC HEALTH - ADULTS,Healthcare Services,SERCO ASP,20/05/2015,261.15
PUBLIC HEALTH - ADULTS,Healthcare Services,SW NHS FOUNDTN TRUST,20/05/2015,423.00
PUBLIC HEALTH - ADULTS,Healthcare Services,THE HILLINGDON HOSPITA,20/05/2015,462.00
PUBLIC HEALTH - ADULTS,Healthcare Services,YORK TEACHING HOSPITAL,20/05/2015,421.89
BALANCE SHEET,VAT,CURRYS ONLINE,20/05/2015,124.50
BALANCE SHEET,VAT,"Amazon Svcs Europe,SAR",20/05/2015,5.89
BALANCE SHEET,VAT,EB HOW TO WRITE BETTE,20/05/2015,41.50
CHILDREN LOOKED AFTER,Legal Services-Other,HMCOURT-SERVICES.G,20/05/2015,15.00
CHILDREN LOOKED AFTER,IT Office Equipment,"Amazon Svcs Europe,SAR",20/05/2015,29.99
CHILDREN SAFEGUARDING & ASSESSMENTS,Furniture-Domestic Furniture,BALHAM BEDS,20/05/2015,220.00
REVENUE & BENEFITS,Domestic Goods-Other,CURRYS ONLINE,20/05/2015,622.50
POLICY & COMMUNICATIONS,Consultancy-Business,EB HOW TO WRITE BETTE,20/05/2015,207.50
PUBLIC HEALTH - ADULTS,Healthcare Services,BEDFORD HOSPITAL NHS T,21/05/2015,680.00
PUBLIC HEALTH - ADULTS,Healthcare Services,CHESTERFIELD ROYAL HOSPI,21/05/2015,599.83
PUBLIC HEALTH - ADULTS,Healthcare Services,FINANCIAL SERVICES,21/05/2015,280.00
PUBLIC HEALTH - ADULTS,Healthcare Services,GENERAL OFFICE,21/05/2015,139.00
PUBLIC HEALTH - ADULTS,Healthcare Services,GEORGE ELIOT HOSPITAL NH,21/05/2015,133.00
PUBLIC HEALTH - ADULTS,Healthcare Services,HOMERTON UNI HOSPITAL,21/05/2015,"1,097.90"
PUBLIC HEALTH - ADULTS,Healthcare Services,LEWISHAM HOSPITAL,21/05/2015,"4,373.49"
PUBLIC HEALTH - ADULTS,Healthcare Services,MEDWAY NHS FOUNDAT,21/05/2015,148.00
PUBLIC HEALTH - ADULTS,Healthcare Services,MEDWAY NHS FOUNDAT,21/05/2015,147.95
PUBLIC HEALTH - ADULTS,Healthcare Services,MID ESSEX HOSPITALS-FINC,21/05/2015,147.30
PUBLIC HEALTH - ADULTS,Healthcare Services,NHS SBS,21/05/2015,"4,443.87"
PUBLIC HEALTH - ADULTS,Healthcare Services,NORFOLK AND NORWIC,21/05/2015,"1,366.48"
PUBLIC HEALTH - ADULTS,Healthcare Services,NORFOLK AND NORWIC,21/05/2015,134.00
PUBLIC HEALTH - ADULTS,Healthcare Services,NORTH MANCHESTER GENER,21/05/2015,136.00
PUBLIC HEALTH - ADULTS,Healthcare Services,S F H FINANCE,21/05/2015,140.28
PUBLIC HEALTH - ADULTS,Healthcare Services,SALISBURY HOSP CASHIER,21/05/2015,595.00
PUBLIC HEALTH - ADULTS,Healthcare Services,SOUTHEND HOSP,21/05/2015,344.00
PUBLIC HEALTH - ADULTS,Healthcare Services,STH MANCHESTER,21/05/2015,311.74
PUBLIC HEALTH - ADULTS,Healthcare Services,YDH NHS FOUNDATION TRU,21/05/2015,141.00
BALANCE SHEET,VAT,WWW.SOLACE.ORG.UK,21/05/2015,99.00
CHILDREN SAFEGUARDING & ASSESSMENTS,Accommodation,GRAND PORT ROYAL HOTEL,21/05/2015,423.36
CHILDREN SAFEGUARDING & ASSESSMENTS,Accommodation,GRAND PORT ROYAL HOTEL,21/05/2015,844.72
RESIDUAL RESOURCES,Healthcare Services,CASHIERS CF,21/05/2015,471.00
CORPORATE AFFAIRS,Catering Food & Drink,TESCO STORE 2143,21/05/2015,21.10
CORPORATE AFFAIRS,Organised Activities,WWW.SOLACE.ORG.UK,21/05/2015,495.00
CORPORATE AFFAIRS,Travel/Subsistence,SELFSERVE TICKET,21/05/2015,7.60
FINANCIAL PLANNING AND MANAGEMENT,Conference Expenses,REDACTIVE,21/05/2015,834.00
POLICY & COMMUNICATIONS,Travel/Subsistence,VIRGINTRAINSEC SERVCS,21/05/2015,181.70
POLICY & COMMUNICATIONS,Catering Food & Drink,SAINSBURYS S/MKTS,21/05/2015,1.99
HOUSING MANAGEMENT SERVICES,Building-Timber,B & Q,21/05/2015,86.51
HOUSING MANAGEMENT SERVICES,Catering Food & Drink,ELECTRIC SOCIAL,21/05/2015,302.00
HOUSING MANAGEMENT SERVICES,Telecommunications,KHAN MOBILES,21/05/2015,5.00
DAY CENTRES,Travel/Subsistence,OYSTER BUS AUTOTOP,22/05/2015,20.00
DAY CENTRES,Travel/Subsistence,OYSTER BUS AUTOTOP,22/05/2015,20.00
PUBLIC HEALTH - ADULTS,Financial Services,OXFORD UNIV HOSPITAL,22/05/2015,"2,969.58"
BALANCE SHEET,VAT,CIPFA FINANCE,22/05/2015,397.00
CHILDREN SAFEGUARDING & ASSESSMENTS,Furniture-Domestic Furniture,KIDDICARE,22/05/2015,365.81
FINANCIAL PLANNING AND MANAGEMENT,Domestic Goods-Other,CIPFA FINANCE,22/05/2015,"1,985.00"
BALANCE SHEET,VAT,Amazon *Mktplce EU-UK,23/05/2015,3.90
BALANCE SHEET,VAT,Amazon EU,23/05/2015,31.68
BALANCE SHEET,VAT,Amazon UK Marketplace,23/05/2015,8.33
BALANCE SHEET,VAT,FORTRESS LOCK AND SAFE CO,23/05/2015,1.58
BALANCE SHEET,VAT,FORTRESS LOCK AND SAFE CO,23/05/2015,0.87
BALANCE SHEET,VAT,J D STUART LTD,23/05/2015,304.00
BALANCE SHEET,VAT,STK*SHUTTERSTOCK.COM,23/05/2015,33.00
ADVENTURE PLAYGROUNDS & ONE O'CLOCK CLUBS,Domestic Goods-Other,ARGOS,23/05/2015,117.74
ADVENTURE PLAYGROUNDS & ONE O'CLOCK CLUBS,Domestic Goods-Other,ARGOS,23/05/2015,18.99
BUSINESS TRANSFORMATION,Catering Food & Drink,TESCO STORE 2143,23/05/2015,59.60
BUSINESS TRANSFORMATION,Domestic Goods-Other,Amazon UK Marketplace,23/05/2015,41.66
BUSINESS TRANSFORMATION,Facilities-Design & Photography,STK*SHUTTERSTOCK.COM,23/05/2015,165.00
BUSINESS TRANSFORMATION,Facilities-Design & Photography,STK*SHUTTERSTOCK.COM,23/05/2015,198.00
BUSINESS TRANSFORMATION,Facilities-Design & Photography,STK*SHUTTERSTOCK.COM,23/05/2015,-198.00
BUSINESS TRANSFORMATION,Facilities-Storage,FORTRESS LOCK AND SAFE CO,23/05/2015,7.92
BUSINESS TRANSFORMATION,Facilities-Storage,FORTRESS LOCK AND SAFE CO,23/05/2015,4.38
BUSINESS TRANSFORMATION,IT Hardware,Amazon *Mktplce EU-UK,23/05/2015,19.53
BUSINESS TRANSFORMATION,IT Hardware,Amazon EU,23/05/2015,158.40
BUSINESS TRANSFORMATION,IT Hardware,Amazon EU,23/05/2015,29.95
BUSINESS TRANSFORMATION,IT Software,J D STUART LTD,23/05/2015,"1,520.00"
FINANCIAL PLANNING AND MANAGEMENT,Domestic Goods-Other,ARGOS RETAIL GROUP,23/05/2015,158.94
FINANCIAL PLANNING AND MANAGEMENT,Travel/Subsistence,OYSTER AUTOTOPUP,23/05/2015,20.00
LIBRARIES & ARCHIVE,Education-Arts/Crafts,WWW.BAKERROSS.CO.UK,24/05/2015,144.21
FINANCIAL PLANNING AND MANAGEMENT,Travel/Subsistence,OYSTER AUTOTOPUP,24/05/2015,20.00
FINANCIAL PLANNING AND MANAGEMENT,Travel/Subsistence,OYSTER AUTOTOPUP,24/05/2015,20.00
FINANCIAL PLANNING AND MANAGEMENT,Travel/Subsistence,OYSTER BUS AUTOTOP,24/05/2015,20.00
BALANCE SHEET,VAT,Amazon UK Retail,25/05/2015,6.27
PROPERTY & FINANCIAL TRANSACTION SERVICES,Healthcare Equipment,Amazon UK Retail,25/05/2015,31.36
INTEGRATED DISABILITY,Financial Services,ATM BARCLAYS BANK PLC,26/05/2015,400.00
OLDER PEOPLE,Catering Food & Drink,ICELAND,26/05/2015,36.75
BALANCE SHEET,VAT,ATM BARCLAYS BANK PLC,26/05/2015,0.00
CHILDREN SAFEGUARDING & ASSESSMENTS,Domestic Goods-Other,ARGOS DIRECT,26/05/2015,442.32
CHILDREN SAFEGUARDING & ASSESSMENTS,Financial Services,LAMBETH INTERNET PAYM,26/05/2015,10.17
CHILDREN SAFEGUARDING & ASSESSMENTS,Financial Services,LAMBETH INTERNET PAYM,26/05/2015,10.17
LIBRARIES & ARCHIVE,Financial Services,NATWEST BANK /,26/05/2015,250.00
REVENUE & BENEFITS,Education-Library Books,"Amazon Svcs Europe,SAR",26/05/2015,17.99
HOUSING CAPITAL & ASSET MANAGEMENT,Legal Services-Other,HMCOURTS-SERVICE.G,26/05/2015,140.00
HOUSING CAPITAL & ASSET MANAGEMENT,Legal Services-Other,HMCOURTS-SERVICE.G,26/05/2015,180.00
OTHER - ADULTS,Accommodation,INTER CONTINE,27/05/2015,150.00
OTHER - ADULTS,Taxi Fares,WWW.ADDISONLEE.COM,27/05/2015,20.70
CHILDREN SAFEGUARDING & ASSESSMENTS,Domestic Goods-Other,ARGOS DIRECT,27/05/2015,87.88
LIBRARIES & ARCHIVE,Financial Services,CASH ADVANCE FEE,27/05/2015,7.38
REVENUE & BENEFITS,IT Hardware,CURRYS SUPERSTORE,27/05/2015,29.99
FINANCIAL PLANNING AND MANAGEMENT,Facilities-Advertising,EXPRESS NEWS,27/05/2015,30.50
HOUSING MANAGEMENT - REPAIRS & MAINTENANCE,Catering Food & Drink,TESCO STORES 5999,27/05/2015,-0.80
HOUSING MANAGEMENT - REPAIRS & MAINTENANCE,Horticultural-Seeds & Plants,INTERFLORA BRITISH UNI,27/05/2015,36.98
HOUSING MANAGEMENT - REPAIRS & MAINTENANCE,Travel/Subsistence,EASYJET 000EP6GQ56,27/05/2015,60.16
HOUSING MANAGEMENT - REPAIRS & MAINTENANCE,Travel/Subsistence,GTR WEB RAIL SALES,27/05/2015,79.70
HOUSING MANAGEMENT - REPAIRS & MAINTENANCE,Travel/Subsistence,HOTELS.COM122708072574,27/05/2015,127.20
HOUSING MANAGEMENT - REPAIRS & MAINTENANCE,Travel/Subsistence,LUL TICKET MACHINE,27/05/2015,20.00
HOUSING MANAGEMENT - REPAIRS & MAINTENANCE,Travel/Subsistence,LUL TICKET MACHINE,27/05/2015,20.00
HOUSING MANAGEMENT - REPAIRS & MAINTENANCE,Travel/Subsistence,LUL TICKET MACHINE,27/05/2015,20.00
HOUSING MANAGEMENT - REPAIRS & MAINTENANCE,Travel/Subsistence,LUL TICKET MACHINE,27/05/2015,20.00
HOUSING CAPITAL & ASSET MANAGEMENT,Legal Services-Other,HMCOURTS-SERVICE.G,27/05/2015,140.00
HOUSING CAPITAL & ASSET MANAGEMENT,Legal Services-Other,HMCOURTS-SERVICE.G,27/05/2015,140.00
OTHER - ADULTS,Taxi Fares,WWW.ADDISONLEE.COM,28/05/2015,16.35
BALANCE SHEET,VAT,Amazon UK Retail,28/05/2015,26.16
BALANCE SHEET,VAT,Amazon UK Retail,28/05/2015,4.18
LIBRARIES & ARCHIVE,Financial Services,NATWEST BANK /,28/05/2015,400.00
HOUSING MANAGEMENT SERVICES,Catering Food & Drink,THE TOMMYFIELD PUB,28/05/2015,75.00
HOUSING MANAGEMENT SERVICES,Education-Library Books,"Amazon Svcs Europe,SAR",28/05/2015,15.96
HOUSING MANAGEMENT SERVICES,Education-Library Books,"Amazon Svcs Europe,SAR",28/05/2015,15.99
HOUSING MANAGEMENT SERVICES,Education-Library Books,Amazon UK Marketplace,28/05/2015,14.84
HOUSING MANAGEMENT SERVICES,Facilities-Printing,Amazon UK Retail,28/05/2015,126.89
HOUSING MANAGEMENT SERVICES,Facilities-Printing,Amazon UK Retail,28/05/2015,17.03
HOUSING MANAGEMENT SERVICES,Mail Services-Postage,Amazon UK Marketplace,28/05/2015,7.99
HOUSING MANAGEMENT SERVICES,Mail Services-Postage,Amazon UK Retail,28/05/2015,3.92
HOUSING MANAGEMENT SERVICES,Mail Services-Postage,Amazon UK Retail,28/05/2015,3.92
INTEGRATED DISABILITY,Financial Services,SAIN - BRIXTON,29/05/2015,400.00
BALANCE SHEET,VAT,SAIN - BRIXTON,29/05/2015,0.00
QUALITY ASSURANCE & PERFORMANCE,Mail Services-Postage,POST OFFICE COUNTER,29/05/2015,372.00
QUALITY ASSURANCE & PERFORMANCE,Mail Services-Postage,POST OFFICE COUNTER,29/05/2015,372.00
QUALITY ASSURANCE & PERFORMANCE,Mail Services-Postage,POST OFFICE COUNTER,29/05/2015,378.00
QUALITY ASSURANCE & PERFORMANCE,Mail Services-Postage,POST OFFICE COUNTER,29/05/2015,189.00
LIBRARIES & ARCHIVE,Financial Services,CASH ADVANCE FEE,29/05/2015,11.80
FINANCIAL PLANNING AND MANAGEMENT,Financial Services,LAND REGISTRY,29/05/2015,3.00
FINANCIAL PLANNING AND MANAGEMENT,Financial Services,LAND REGISTRY,29/05/2015,3.00
FINANCIAL PLANNING AND MANAGEMENT,Financial Services,LAND REGISTRY,29/05/2015,3.00
FINANCIAL PLANNING AND MANAGEMENT,Financial Services,LAND REGISTRY,29/05/2015,3.00
FINANCIAL PLANNING AND MANAGEMENT,Financial Services,LAND REGISTRY,29/05/2015,3.00
HOUSING MANAGEMENT SERVICES,Building-Timber,B & Q,29/05/2015,219.21
HOUSING MANAGEMENT SERVICES,Building-Timber,B & Q,29/05/2015,410.92
HOUSING MANAGEMENT SERVICES,Building-Timber,B & Q,29/05/2015,300.71
BALANCE SHEET,VAT,CLKBANK*COM_3STBE7VN,30/05/2015,1.38
BALANCE SHEET,VAT,ZERO DB,30/05/2015,20.80
LIBRARIES & ARCHIVE,Travel/Subsistence,OYSTER BUS AUTOTOP,30/05/2015,20.00
POLICY & COMMUNICATIONS,Building-Tools,ZERO DB,30/05/2015,104.00
POLICY & COMMUNICATIONS,Facilities-Market Research,CTC*CONSTANTCONTACT.COM,30/05/2015,70.80
POLICY & COMMUNICATIONS,IT Services,123-REG.CO.UK,30/05/2015,61.14
POLICY & COMMUNICATIONS,IT Software,CLKBANK*COM_3STBE7VN,30/05/2015,6.90
POLICY & COMMUNICATIONS,Travel/Subsistence,OYSTER AUTOTOPUP,30/05/2015,40.00
POLICY & COMMUNICATIONS,Travel/Subsistence,OYSTER BUS AUTOTOP,30/05/2015,40.00
POLICY & COMMUNICATIONS,Travel/Subsistence,OYSTER BUS AUTOTOP,30/05/2015,80.00
POLICY & COMMUNICATIONS,Travel/Subsistence,OYSTER BUS AUTOTOP,30/05/2015,40.00
POLICY & COMMUNICATIONS,Travel/Subsistence,ZIPCAR,30/05/2015,137.34
POLICY & COMMUNICATIONS,Travel/Subsistence,ZIPCAR,30/05/2015,-17.82
POLICY & COMMUNICATIONS,Travel/Subsistence,ZIPCAR,30/05/2015,-35.64
POLICY & COMMUNICATIONS,Travel/Subsistence,ZIPCAR,30/05/2015,27.53
POLICY & COMMUNICATIONS,Travel/Subsistence,ZIPCAR,30/05/2015,15.53
POLICY & COMMUNICATIONS,IT Consumables,PRZCHARGE.PREZI.COM,30/05/2015,104.27
QUALITY ASSURANCE & PERFORMANCE,Travel/Subsistence,GOV.UK/DART-CHARGE,31/05/2015,10.00
QUALITY ASSURANCE & PERFORMANCE,Travel/Subsistence,NEW SOUTHERN RAILW,31/05/2015,50.00
QUALITY ASSURANCE & PERFORMANCE,Travel/Subsistence,OYSTER AUTOTOPUP,31/05/2015,40.00
QUALITY ASSURANCE & PERFORMANCE,Travel/Subsistence,OYSTER AUTOTOPUP,31/05/2015,40.00
QUALITY ASSURANCE & PERFORMANCE,Travel/Subsistence,OYSTER AUTOTOPUP,31/05/2015,40.00
QUALITY ASSURANCE & PERFORMANCE,Travel/Subsistence,OYSTER BUS AUTOTOP,31/05/2015,40.00
QUALITY ASSURANCE & PERFORMANCE,Travel/Subsistence,OYSTER RENEW WEB,31/05/2015,32.55
QUALITY ASSURANCE & PERFORMANCE,Travel/Subsistence,VIRGINTRAINSEC SERVCS,31/05/2015,24.40
QUALITY ASSURANCE & PERFORMANCE,Travel/Subsistence,VIRGINTRAINSEC SERVCS,31/05/2015,112.00
QUALITY ASSURANCE & PERFORMANCE,Travel/Subsistence,VIRGINTRAINSEC SERVCS,31/05/2015,54.20
LIBRARIES & ARCHIVE,Education-Library Books,"Amazon Svcs Europe,SAR",31/05/2015,4.73
LIBRARIES & ARCHIVE,Education-Library Books,"Amazon Svcs Europe,SAR",31/05/2015,14.65
LIBRARIES & ARCHIVE,Education-Library Books,"Amazon Svcs Europe,SAR",31/05/2015,3.82
LIBRARIES & ARCHIVE,Education-Library Books,"Amazon Svcs Europe,SAR",31/05/2015,10.95
LIBRARIES & ARCHIVE,Education-Library Books,Amazon UK Retail,31/05/2015,9.49
LIBRARIES & ARCHIVE,Telecommunications,BT BILL PAYMENT 1,31/05/2015,160.12
INTEGRATED DISABILITY,Financial Services,CASH ADVANCE FEE,01/06/2015,11.80
BALANCE SHEET,VAT,ACCESS SELF STORAG,01/06/2015,42.90
BALANCE SHEET,VAT,ACCESS SELF STORAG,01/06/2015,42.90
BALANCE SHEET,VAT,ACCESS SELF STORAG,01/06/2015,42.90
BALANCE SHEET,VAT,TRAVEL FORCE,01/06/2015,0.00
BALANCE SHEET,VAT,TRAVEL FORCE,01/06/2015,0.00
BALANCE SHEET,VAT,CASH ADVANCE FEE,01/06/2015,0.00
BALANCE SHEET,VAT,SGN CONNECTIONS,01/06/2015,67.20
BALANCE SHEET,VAT,"Amazon Svcs Europe,SAR",01/06/2015,6.37
EARLY HELP,Taxi Fares,TRAVEL FORCE,01/06/2015,224.40
EARLY HELP,Taxi Fares,TRAVEL FORCE,01/06/2015,224.40
CHIEF EXECUTIVE'S OFFICE,IT Office Equipment,"Amazon Svcs Europe,SAR",01/06/2015,38.84
"PLANNING, TRANSPORT & DEVELOPMENT",Facilities-Storage,ACCESS SELF STORAG,01/06/2015,214.52
"PLANNING, TRANSPORT & DEVELOPMENT",Facilities-Storage,ACCESS SELF STORAG,01/06/2015,214.52
"PLANNING, TRANSPORT & DEVELOPMENT",Facilities-Storage,ACCESS SELF STORAG,01/06/2015,214.52
HOUSING MANAGEMENT SERVICES,Building-Tools,PAYPAL *ABCPARTYHIR,01/06/2015,100.00
HOUSING MANAGEMENT SERVICES,Building-Tools,PAYPAL *ABCPARTYHIR AB,01/06/2015,110.00
HOUSING MANAGEMENT SERVICES,Catering Food & Drink,SAINSBURYS S/MKTS,01/06/2015,29.50
HOUSING MANAGEMENT SERVICES,Catering Food & Drink,SAINSBURYS S/MKTS,01/06/2015,36.00
HOUSING MANAGEMENT SERVICES,Domestic Goods-Other,SGN CONNECTIONS,01/06/2015,336.00
HOUSING MANAGEMENT SERVICES,Domestic Goods-Other,WITHOUTAKEY.CO.UK,01/06/2015,58.99
HOUSING MANAGEMENT SERVICES,Organised Activities,NEWLYN PLC,01/06/2015,202.00
HOUSING MANAGEMENT SERVICES,Travel/Subsistence,OYSTER AUTOTOPUP,01/06/2015,20.00
HOUSING MANAGEMENT SERVICES,Travel/Subsistence,OYSTER AUTOTOPUP,01/06/2015,20.00
HOUSING MANAGEMENT SERVICES,Travel/Subsistence,OYSTER AUTOTOPUP,01/06/2015,20.00
HOUSING MANAGEMENT SERVICES,Travel/Subsistence,OYSTER BUS AUTOTOP,01/06/2015,40.00
HOUSING MANAGEMENT SERVICES,Travel/Subsistence,OYSTER BUS AUTOTOP,01/06/2015,20.00
HOUSING MANAGEMENT SERVICES,Travel/Subsistence,OYSTER BUS AUTOTOP,01/06/2015,20.00
OLDER PEOPLE,Catering Food & Drink,MN WEST NORWOOD HALAL,02/06/2015,55.91
CHILDREN LOOKED AFTER,Financial Services,GRO HM PASSPORT OFFICE,02/06/2015,23.40
CHILDREN SAFEGUARDING & ASSESSMENTS,Domestic Goods-Other,ARGOS DIRECT,02/06/2015,-99.99
CHILDREN SAFEGUARDING & ASSESSMENTS,Domestic Goods-Other,ARGOS DIRECT,02/06/2015,149.98
LIBRARIES & ARCHIVE,Education-Other,WH SMITH,02/06/2015,216.09
LIBRARIES & ARCHIVE,Education-Other,WH SMITH,02/06/2015,588.58
DAY CENTRES,Financial Services,SAIN - BRIXTON,03/06/2015,400.00
INTEGRATED DISABILITY,Financial Services,ROYAL BANK UK /,03/06/2015,400.00
OTHER - ADULTS,Catering Food & Drink,CO-OP GROUP FOOD,03/06/2015,5.54
OTHER - ADULTS,Catering Food & Drink,CO-OP GROUP FOOD,03/06/2015,5.54
OTHER - ADULTS,Catering Food & Drink,TESCO STORES 5999,03/06/2015,78.23
OTHER - ADULTS,Catering Food & Drink,TESCO STORES 5999,03/06/2015,-78.30
OTHER - ADULTS,Education-Library Books,"Amazon Svcs Europe,SAR",03/06/2015,10.69
OTHER - ADULTS,Education-Library Books,"Amazon Svcs Europe,SAR",03/06/2015,9.90
OTHER - ADULTS,Education-Other,PAYPAL *HILLCROFTCO,03/06/2015,20.00
BALANCE SHEET,VAT,ROYAL BANK UK /,03/06/2015,0.00
CHILDREN SAFEGUARDING & ASSESSMENTS,Taxi Fares,RADIO TAXIS,03/06/2015,561.00
LIBRARIES & ARCHIVE,Education-Other,"BOOTS,0808",03/06/2015,15.10
PROPERTY & FINANCIAL TRANSACTION SERVICES,Travel/Subsistence,OYSTER BUS AUTOTOP,03/06/2015,20.00
PROPERTY & FINANCIAL TRANSACTION SERVICES,Travel/Subsistence,OYSTER BUS AUTOTOP,03/06/2015,20.00
HOUSING MANAGEMENT SERVICES,Catering Food & Drink,SHILLINGS,03/06/2015,50.00
HOUSING MANAGEMENT SERVICES,Financial Services,GRO HM PASSPORT OFFICE,03/06/2015,-9.25
HOUSING CAPITAL & ASSET MANAGEMENT,Legal Services-Other,HMCOURTS-SERVICE.G,03/06/2015,180.00
DAY CENTRES,Financial Services,CASH ADVANCE FEE,04/06/2015,11.80
INTEGRATED DISABILITY,Financial Services,CASH ADVANCE FEE,04/06/2015,11.80
INTEGRATED DISABILITY,Financial Services,CASH ADVANCE FEE,04/06/2015,11.80
BALANCE SHEET,VAT,CASH ADVANCE FEE,04/06/2015,0.00
BALANCE SHEET,VAT,CASH ADVANCE FEE,04/06/2015,0.00
CHILDREN SAFEGUARDING & ASSESSMENTS,Travel/Subsistence,WP-SCOACH ETICKET,04/06/2015,39.70
REVENUE & BENEFITS,Legal Services-Other,HMCOURTS-SERVICE.G,04/06/2015,"7,968.00"
HOUSING MANAGEMENT SERVICES,Arts & Leisure Services,ACE DISCOS LTD,04/06/2015,70.00
HOUSING MANAGEMENT SERVICES,Arts & Leisure Services,ACE DISCOS LTD,04/06/2015,144.00
HOUSING MANAGEMENT SERVICES,Arts & Leisure Services,ACE DISCOS LTD,04/06/2015,103.00
HOUSING MANAGEMENT SERVICES,Domestic Goods-Other,BRITISH GAS TRADIN,04/06/2015,754.72
HOUSING MANAGEMENT SERVICES,Education-Library Books,Amazon *Mktplce EU-UK,04/06/2015,-479.90
HOUSING MANAGEMENT SERVICES,Facilities-Printing,Amazon UK Retail,04/06/2015,107.81
HOUSING MANAGEMENT SERVICES,Banquet & Catering,ASDA SUPERSTORE,04/06/2015,186.53
HOUSING MANAGEMENT SERVICES,Banquet & Catering,BRIXTON DIY CENTRE,04/06/2015,9.98
HOUSING MANAGEMENT SERVICES,Banquet & Catering,FREEZELAND,04/06/2015,35.94
HOUSING MANAGEMENT SERVICES,Banquet & Catering,Kace Afro Hair,04/06/2015,40.00
HOUSING MANAGEMENT SERVICES,Banquet & Catering,LIDL UK,04/06/2015,7.71
HOUSING MANAGEMENT SERVICES,Banquet & Catering,POUNDLAND LTD 1203,04/06/2015,14.00
HOUSING MANAGEMENT SERVICES,Banquet & Catering,TESCO STORE 2143,04/06/2015,37.82
HOUSING MANAGEMENT SERVICES,Cemetery & Crematorium,LAMBETH INTERNET PAYM,04/06/2015,10.17
HOUSING MANAGEMENT SERVICES,Clothing-Other,H AND M FOOD STORE,04/06/2015,27.57
HOUSING MANAGEMENT SERVICES,Travel/Subsistence,LUL TICKET MACHINE,04/06/2015,260.00
BALANCE SHEET,VAT,MAILCHIMP,05/06/2015,0.00
BALANCE SHEET,VAT,MAILCHIMP,05/06/2015,0.00
BALANCE SHEET,VAT,THE PRESS ASSOCIATION,05/06/2015,136.00
BALANCE SHEET,VAT,WWW.SOLACE.ORG.UK,05/06/2015,48.00
QUALITY ASSURANCE & PERFORMANCE,Domestic Goods-Other,ARGOS,05/06/2015,41.79
LIBRARIES & ARCHIVE,Catering Food & Drink,TESCO STORE 2143,05/06/2015,30.33
FINANCIAL PLANNING AND MANAGEMENT,Professional subscriptions,CIPFA ESS,05/06/2015,100.00
FINANCIAL PLANNING AND MANAGEMENT,Professional subscriptions,CIPFA ESS,05/06/2015,-100.00
POLICY & COMMUNICATIONS,Books/Publications/Resources,THE PRESS ASSOCIATION,05/06/2015,680.00
POLICY & COMMUNICATIONS,IT Services,MAILCHIMP,05/06/2015,692.49
POLICY & COMMUNICATIONS,IT Services,MAILCHIMP,05/06/2015,660.05
SENIOR MANAGEMENT - NEIGHBOURHOODS & GROWTH,Healthcare Services,WWW.SOLACE.ORG.UK,05/06/2015,240.00
INTEGRATED DISABILITY,Domestic Goods-Other,"Amazon Svcs Europe,SAR",08/06/2015,14.96
INTEGRATED DISABILITY,Domestic Goods-Other,Amazon UK Marketplace,08/06/2015,14.42
OLDER PEOPLE,Banquet & Catering,CHETTON HILL LTD,08/06/2015,495.00
OLDER PEOPLE,Banquet & Catering,CHETTON HILL LTD,08/06/2015,495.00
OLDER PEOPLE,Banquet & Catering,CHETTON HILL LTD,08/06/2015,15.00
BALANCE SHEET,VAT,"Amazon Svcs Europe,SAR",08/06/2015,0.00
BALANCE SHEET,VAT,Amazon UK Marketplace,08/06/2015,0.00
BALANCE SHEET,VAT,AO RETAIL LIMITED,08/06/2015,27.33
BALANCE SHEET,VAT,WWW.BAKERROSS.CO.UK,08/06/2015,54.76
EARLY YEARS AND PARENTING,Education-Arts/Crafts,WWW.BAKERROSS.CO.UK,08/06/2015,273.78
EMPLOYMENT & ENTERPRISE - E&L,Travel/Subsistence,OYSTER RENEW WEB,08/06/2015,32.10
ADVENTURE PLAYGROUNDS & ONE O'CLOCK CLUBS,Domestic Goods-Other,AO RETAIL LIMITED,08/06/2015,136.65
REVENUE & BENEFITS,Stationery,Amazon UK Retail,08/06/2015,20.10
FINANCIAL PLANNING AND MANAGEMENT,Travel/Subsistence,LUL TICKET MACHINE,08/06/2015,30.00
INTEGRATED DISABILITY,Financial Services,ROYAL BANK UK /,09/06/2015,400.00
INTEGRATED DISABILITY,Clothing-Other,Amazon UK Marketplace,09/06/2015,18.10
OTHER - ADULTS,Taxi Fares,WWW.ADDISONLEE.COM,09/06/2015,13.45
OTHER - ADULTS,Taxi Fares,WWW.ADDISONLEE.COM,09/06/2015,13.45
BALANCE SHEET,VAT,Amazon UK Marketplace,09/06/2015,0.00
BALANCE SHEET,VAT,PIPERS PROJECTS LTD,09/06/2015,136.00
BALANCE SHEET,VAT,ROYAL BANK UK /,09/06/2015,0.00
"PLANNING, TRANSPORT & DEVELOPMENT",Consultancy-Business,PIPERS PROJECTS LTD,09/06/2015,680.00
INTEGRATED DISABILITY,Financial Services-Banking,CASH ADVANCE FEE,10/06/2015,11.80
OTHER - ADULTS,IT Software,CITY LIT,10/06/2015,149.00
BALANCE SHEET,VAT,CASH ADVANCE FEE,10/06/2015,0.00
BALANCE SHEET,VAT,PAYPAL *WALKERLOCKS,10/06/2015,16.49
REVENUE & BENEFITS,Travel/Subsistence,OYSTER AUTOTOPUP,10/06/2015,20.00
HOUSING MANAGEMENT SERVICES,Catering Food & Drink,SAINSBURYS S/MKTS,10/06/2015,20.50
HOUSING MANAGEMENT SERVICES,Consultancy-Business,CREDIT ADJUSTMENT,10/06/2015,-98.94
HOUSING MANAGEMENT SERVICES,Consultancy-Business,PAYPAL *WALKERLOCKS,10/06/2015,82.45
HOUSING MANAGEMENT SERVICES,Cycles Purchase,HALFORDS 0716,10/06/2015,64.99
HOUSING MANAGEMENT SERVICES,Travel/Subsistence,OYSTER AUTOTOPUP,10/06/2015,20.00
HOUSING CAPITAL & ASSET MANAGEMENT,Legal Services-Other,HMCOURTS-SERVICE.G,10/06/2015,100.00
OLDER PEOPLE,Financial Services,ATM BARCLAYS BANK PLC,11/06/2015,250.00
BALANCE SHEET,VAT,HOOTSUITE MEDIA INC.,11/06/2015,4.80
BALANCE SHEET,VAT,SURVEYMONKEY.COM,11/06/2015,4.34
BALANCE SHEET,VAT,Amazon UK Retail,11/06/2015,6.42
BALANCE SHEET,VAT,TESCO PFS 2161,11/06/2015,12.72
CHILDREN LOOKED AFTER,Furniture-Other,ARGOS RETAIL GROUP,11/06/2015,113.93
QUALITY ASSURANCE & PERFORMANCE,Stationery,Amazon UK Retail,11/06/2015,32.19
LIBRARIES & ARCHIVE,Education-Library Books,"Am zon Svcs Europe,SAR",11/06/2015,7.44
LIBRARIES & ARCHIVE,Education-Library Books,"Amazon Svcs Europe,SAR",11/06/2015,15.12
LIBRARIES & ARCHIVE,Education-Library Books,"Amazon Svcs Europe,SAR",11/06/2015,18.19
LIBRARIES & ARCHIVE,Education-Library Books,"Amazon Svcs Europe,SAR",11/06/2015,2.78
LIBRARIES & ARCHIVE,Education-Library Books,"Amazon Svcs Europe,SAR",11/06/2015,7.32
LIBRARIES & ARCHIVE,Education-Library Books,"Amazon Svcs Europe,SAR",11/06/2015,17.06
LIBRARIES & ARCHIVE,Education-Library Books,"Amazon Svcs Europe,SAR",11/06/2015,7.05
LIBRARIES & ARCHIVE,Education-Library Books,Amazon UK Marketplace,11/06/2015,2.81
LIBRARIES & ARCHIVE,Education-Library Books,Amazon UK Marketplace,11/06/2015,15.30
LIBRARIES & ARCHIVE,Education-Library Books,Amazon UK Marketplace,11/06/2015,2.81
LIBRARIES & ARCHIVE,Education-Library Books,Amazon UK Retail,11/06/2015,42.58
COMMUNICATIONS (HRA),Consultancy-Business,HOOTSUITE MEDIA INC.,11/06/2015,23.98
COMMUNICATIONS (HRA),Domestic Goods-Other,POUNDLAND LTD 1203,11/06/2015,23.00
COMMUNICATIONS (HRA),Facilities-Advertising,WH SMITH,11/06/2015,3.99
COMMUNICATIONS (HRA),Facilities-Design & Photography,WWW.ISAACPERALPHOTOGRA,11/06/2015,375.00
COMMUNICATIONS (HRA),IT Services,SURVEYMONKEY.COM,11/06/2015,21.66
HOUSING CAPITAL & ASSET MANAGEMENT,Legal Services-Other,HMCOURTS-SERVICE.G,11/06/2015,180.00
HOUSING CAPITAL & ASSET MANAGEMENT,Legal Services-Other,HMCOURTS-SERVICE.G,11/06/2015,100.00
HOUSING CAPITAL & ASSET MANAGEMENT,Legal Services-Other,HMCOURTS-SERVICE.G,11/06/2015,240.00
HOUSING CAPITAL & ASSET MANAGEMENT,Legal Services-Other,HMCOURTS-SERVICE.G,11/06/2015,60.00
HOUSING CAPITAL & ASSET MANAGEMENT,Legal Services-Other,HMCOURTS-SERVICE.G,11/06/2015,180.00
HOUSING CAPITAL & ASSET MANAGEMENT,Telecommunications,EE & T-MOBILE,11/06/2015,0.00
TENANT MANAGEMENT ORGANISATIONS,Vehicle Fuel,TESCO PFS 2161,11/06/2015,63.60
INTEGRATED DISABILITY,Catering Food & Drink,TESCO STORE 2764,12/06/2015,43.93
OLDER PEOPLE,Financial Services-Banking,CASH ADVANCE FEE,12/06/2015,7.38
BALANCE SHEET,VAT,TESCO STORE 2764,12/06/2015,0.00
BALANCE SHEET,VAT,MAKRO SELF SERVICE CROYDO,12/06/2015,16.69
BALANCE SHEET,VAT,Amazon UK Retail,12/06/2015,3.33
BALANCE SHEET,VAT,WWW.PAYPHS.COM,12/06/2015,29.60
CHILDREN LOOKED AFTER,Accommodation,BEACHCROFT HOTELS RECEPTI,12/06/2015,238.00
CHILDREN LOOKED AFTER,Accommodation,WWW.MYSTAY.LONDON,12/06/2015,182.00
CHILDREN SAFEGUARDING & ASSESSMENTS,Travel/Subsistence,WP-SCOACH ETICKET,12/06/2015,42.50
LIBRARIES & ARCHIVE,Education-Library Books,"Amazon Svcs Europe,SAR",12/06/2015,-2.81
LIBRARIES & ARCHIVE,Education-Library Books,Amazon UK Retail,12/06/2015,13.59
LIBRARIES & ARCHIVE,Education-Other,Amazon EU,12/06/2015,78.75
LIBRARIES & ARCHIVE,Education-Other,Amazon Prime,12/06/2015,79.00
LIBRARIES & ARCHIVE,Catering Food & Drink,LIDL UK,12/06/2015,22.43
REVENUE & BENEFITS,Mail Services-Postage,POST OFFICE COUNTER,12/06/2015,7.25
FINANCE (HRA),Accommodation,HOLIDAY INN EXPRESS NOTT,12/06/2015,64.00
FINANCE (HRA),Accommodation,PREMIER INN 44533710,12/06/2015,977.50
FINANCE (HRA),Building-Timber,SCREWFIX DIRECT,12/06/2015,174.98
FINANCE (HRA),Education-Other,QUADRILECT LTD,12/06/2015,"1,491.36"
FINANCE (HRA),Education-Other,WWW.SPOCE.COM,12/06/2015,"1,198.80"
FINANCE (HRA),Environmental Services-Cleansing,AUSSIECLEANTEAM,12/06/2015,123.50
FINANCE (HRA),Financial Services,EA INTEGRATED REG,12/06/2015,105.00
FINANCE (HRA),Financial Services-Accountancy,TENON,12/06/2015,390.00
FINANCE (HRA),Legal Services-General Support,WWW.CLARKEWILLMOTT.COM,12/06/2015,451.81
FINANCE (HRA),Organised Activities,1ST LOC UK LTD-LCS,12/06/2015,108.01
FINANCE (HRA),Travel/Subsistence,TRAINLINE.COM,12/06/2015,93.33
FINANCE (HRA),Travel/Subsistence,TRAINLINE.COM,12/06/2015,194.92
HOUSING MANAGEMENT - REPAIRS & MAINTENANCE,Catering Food & Drink,JONES THE BUTCHERS,12/06/2015,194.00
HOUSING MANAGEMENT - REPAIRS & MAINTENANCE,Catering Food & Drink,L.S MASH & SON,12/06/2015,185.00
HOUSING MANAGEMENT SERVICES,Building-Others,WWW.PAYPHS.COM,12/06/2015,148.01
HOUSING MANAGEMENT SERVICES,Domestic Goods-Other,Amazon UK Marketplace,12/06/2015,10.99
HOUSING MANAGEMENT SERVICES,Education-Library Books,"Amazon Svcs Europe,SAR",12/06/2015,17.72
HOUSING MANAGEMENT SERVICES,Facilities-Printing,Amazon UK Retail,12/06/2015,16.64
HOUSING MANAGEMENT SERVICES,Mail Services-Postage,WWW.PAYPHS.COM,12/06/2015,3.55
HOUSING MANAGEMENT SERVICES,Travel/Subsistence,LUL TICKET MACHINE,12/06/2015,50.00
HOUSING MANAGEMENT SERVICES,Travel/Subsistence,LUL TICKET MACHINE,12/06/2015,100.00
HOUSING MANAGEMENT SERVICES,Travel/Subsistence,LUL TICKET MACHINE,12/06/2015,50.00
HOUSING MANAGEMENT SERVICES,Catering Food & Drink,ASDA SUPERSTORE,12/06/2015,201.16
HOUSING MANAGEMENT SERVICES,Catering Food & Drink,CENTRAL HILL STORE,12/06/2015,90.60
HOUSING MANAGEMENT SERVICES,Catering Food & Drink,COSTCUTTER,12/06/2015,53.49
HOUSING MANAGEMENT SERVICES,Catering Food & Drink,SAINSBURYS,12/06/2015,90.00
HOUSING MANAGEMENT SERVICES,Domestic Goods-Other,MAKRO SELF SERVICE CROYDO,12/06/2015,116.41
HOUSING MANAGEMENT SERVICES,Facilities-Advertising,WH SMITH,12/06/2015,17.67
HOUSING MANAGEMENT SERVICES,Travel/Subsistence,OYSTER BUS AUTOTOP,12/06/2015,20.00
INTERNAL AUDIT,Catering Food & Drink,TESCO STORES-2143,13/06/2015,8.00
INTERNAL AUDIT,Education-Library Books,"Amazon Svcs Europe,SAR",13/06/2015,15.69
INTERNAL AUDIT,Financial Services,GRO HM PASSPORT OFFICE,13/06/2015,27.75
INTERNAL AUDIT,Financial Services,GRO HM PASSPORT OFFICE,13/06/2015,9.25
INTERNAL AUDIT,Financial Services,LBL NOT PRESENT,13/06/2015,10.17
INTERNAL AUDIT,Travel/Subsistence,OYSTER AUTOTOPUP,13/06/2015,40.00
INTERNAL AUDIT,Travel/Subsistence,OYSTER AUTOTOPUP,13/06/2015,20.00
INTERNAL AUDIT,Travel/Subsistence,OYSTER BUS AUTOTOP,13/06/2015,40.00
INTERNAL AUDIT,Travel/Subsistence,OYSTER BUS AUTOTOP,13/06/2015,20.00
INTERNAL AUDIT,Travel/Subsistence,OYSTER BUS AUTOTOP,13/06/2015,40.00
INTERNAL AUDIT,Travel/Subsistence,OYSTER BUS AUTOTOP,13/06/2015,40.00
INTERNAL AUDIT,Travel/Subsistence,OYSTER BUS AUTOTOP,13/06/2015,40.00
INTERNAL AUDIT,Travel/Subsistence,OYSTER BUS AUTOTOP,13/06/2015,40.00
INTERNAL AUDIT,Travel/Subsistence,OYSTER BUS AUTOTOP,13/06/2015,20.00
INTERNAL AUDIT,Travel/Subsistence,OYSTER BUS AUTOTOP,13/06/2015,40.00
INTERNAL AUDIT,Travel/Subsistence,OYSTER BUS AUTOTOP,13/06/2015,40.00
INTERNAL AUDIT,Travel/Subsistence,OYSTER BUS AUTOTOP,13/06/2015,20.00
INTERNAL AUDIT,Travel/Subsistence,TFL CC/LEZ CHARGE,13/06/2015,11.50
QUALITY ASSURANCE & PERFORMANCE,Accommodation,THE NADLER LIVERPOOL D,14/06/2015,53.10
QUALITY ASSURANCE & PERFORMANCE,Travel/Subsistence,EXPEDIA 18918245063,14/06/2015,0.00
QUALITY ASSURANCE & PERFORMANCE,Travel/Subsistence,OYSTER AUTOTOPUP,14/06/2015,40.00
QUALITY ASSURANCE & PERFORMANCE,Travel/Subsistence,OYSTER AUTOTOPUP,14/06/2015,40.00
QUALITY ASSURANCE & PERFORMANCE,Travel/Subsistence,OYSTER BUS AUTOTOP,14/06/2015,40.00
QUALITY ASSURANCE & PERFORMANCE,Travel/Subsistence,VIRGINTRAINSEC SERVCS,14/06/2015,81.60
QUALITY ASSURANCE & PERFORMANCE,Travel/Subsistence,VIRGINTRAINSEC SERVCS,14/06/2015,42.40
QUALITY ASSURANCE & PERFORMANCE,Travel/Subsistence,VIRGINTRAINSEC SERVCS,14/06/2015,76.10
OTHER - ADULTS,Taxi Fares,WWW.ADDISONLEE.COM,15/06/2015,8.33
BALANCE SHEET,VAT,Amazon UK Retail,15/06/2015,33.62
BALANCE SHEET,VAT,ROYAL MAIL GROUP,15/06/2015,71.11
CHILDREN LOOKED AFTER,Travel/Subsistence,EASYJET 000EP8RPSK,15/06/2015,127.48
CHILDREN SAFEGUARDING & ASSESSMENTS,Facilities-Storage,BIG YELLOW S S KENNING,15/06/2015,146.20
CORPORATE AFFAIRS,Stationery,"Amazon Svcs Europe,SAR",15/06/2015,96.90
CORPORATE AFFAIRS,Stationery,Amazon UK Retail,15/06/2015,168.20
CORPORATE AFFAIRS,Travel/Subsistence,LUL TICKET MACHINE,15/06/2015,150.00
CORPORATE AFFAIRS,Travel/Subsistence,LUL TICKET MACHINE,15/06/2015,50.00
CORPORATE AFFAIRS,Travel/Subsistence,LUL TICKET MACHINE,15/06/2015,50.00
FINANCIAL PLANNING AND MANAGEMENT,Travel/Subsistence,TRAINLINE.COM,15/06/2015,60.69
POLICY & COMMUNICATIONS,Catering Equipment,TESCO STORES-2143,15/06/2015,2.00
HUMAN RESOURCES & ORGANISATIONAL DEVELOPMENT (HRA),Catering Food & Drink,MARKS & SPENCER,15/06/2015,92.85
HUMAN RESOURCES & ORGANISATIONAL DEVELOPMENT (HRA),Domestic Goods-Other,POUNDLAND LTD 1203,15/06/2015,3.00
HUMAN RESOURCES & ORGANISATIONAL DEVELOPMENT (HRA),Financial Services,DISCLOSURE SCOT,15/06/2015,25.00
HUMAN RESOURCES & ORGANISATIONAL DEVELOPMENT (HRA),Financial Services,DISCLOSURE SCOT,15/06/2015,25.00
HUMAN RESOURCES & ORGANISATIONAL DEVELOPMENT (HRA),Financial Services,DISCLOSURE SCOT,15/06/2015,25.00
HUMAN RESOURCES & ORGANISATIONAL DEVELOPMENT (HRA),Mail Services-Postage,ROYAL MAIL GROUP,15/06/2015,355.57
HUMAN RESOURCES & ORGANISATIONAL DEVELOPMENT (HRA),Stationery,VIKING,15/06/2015,129.84
HUMAN RESOURCES & ORGANISATIONAL DEVELOPMENT (HRA),Travel/Subsistence,CRACKERJACK GOLD,15/06/2015,31.00
HUMAN RESOURCES & ORGANISATIONAL DEVELOPMENT (HRA),Travel/Subsistence,CRACKERJACK GOLD,15/06/2015,30.00
HUMAN RESOURCES & ORGANISATIONAL DEVELOPMENT (HRA),Travel/Subsistence,CRACKERJACK GOLD,15/06/2015,60.00
HUMAN RESOURCES & ORGANISATIONAL DEVELOPMENT (HRA),Travel/Subsistence,CRACKERJACK GOLD,15/06/2015,30.50
NEIGHBOURHOODS,Catering Food & Drink,ICELAND,15/06/2015,35.50
NEIGHBOURHOODS,Catering Food & Drink,ICELAND,15/06/2015,39.20
NEIGHBOURHOODS,Catering Food & Drink,MARKS & SPENCER,15/06/2015,11.00
NEIGHBOURHOODS,Catering Food & Drink,SACAT MARKS & SPENCER,15/06/2015,29.88
NEIGHBOURHOODS,Catering Food & Drink,SACAT MARKS & SPENCER,15/06/2015,5.45
NEIGHBOURHOODS,Domestic Goods-Other,ARGOS,15/06/2015,30.00
NEIGHBOURHOODS,Domestic Goods-Other,ARGOS,15/06/2015,11.99
NEIGHBOURHOODS,Domestic Goods-Other,MORLEYS,15/06/2015,7.00
NEIGHBOURHOODS,Facilities-Printing,Amazon EU,15/06/2015,15.00
NEIGHBOURHOODS,Facilities-Printing,Amazon EU,15/06/2015,80.00
NEIGHBOURHOODS,Facilities-Printing,Amazon UK Retail,15/06/2015,53.19
NEIGHBOURHOODS,Facilities-Printing,Amazon UK Retail,15/06/2015,15.00
NEIGHBOURHOODS,Financial Services,LAMBETH COUNCIL,15/06/2015,20.10
NEIGHBOURHOODS,Travel/Subsistence,BRITISH A 1258522314041,15/06/2015,203.44
INTEGRATED DISABILITY,Financial Services,ROYAL BANK UK /,16/06/2015,400.00
BALANCE SHEET,VAT,ROYAL BANK UK /,16/06/2015,0.00
BALANCE SHEET,VAT,KEY FORENSIC SERVICES,16/06/2015,108.00
PROPERTY & FINANCIAL TRANSACTION SERVICES,Stationery,"Amazon Svcs Europe,SAR",16/06/2015,144.54
PROPERTY & FINANCIAL TRANSACTION SERVICES,Stationery,Amazon UK Marketplace,16/06/2015,132.00
FINANCIAL PLANNING AND MANAGEMENT,Domestic Goods-Other,ARGOS RETAIL GROUP,16/06/2015,102.94
FINANCIAL PLANNING AND MANAGEMENT,Domestic Goods-Other,ARGOS RETAIL GROUP,16/06/2015,57.66
FINANCIAL PLANNING AND MANAGEMENT,Domestic Goods-Other,ARGOS RETAIL GROUP,16/06/2015,84.49
INTERNAL AUDIT,Professional & Advisory Services,KEY FORENSIC SERVICES,16/06/2015,540.00
INTERNAL AUDIT,Stationery,GRO HM PASSPORT OFFICE,16/06/2015,9.25
INTERNAL AUDIT,Travel/Subsistence,LONDON MIDLAND INT,16/06/2015,59.20
POLICY & COMMUNICATIONS,Stationery,WH SMITH,16/06/2015,11.78
NEIGHBOURHOODS,Travel/Subsistence,PAYPAL *COACHPEOPLE,16/06/2015,455.40
INTEGRATED DISABILITY,Financial Services,CASH ADVANCE FEE,17/06/2015,11.80
INTEGRATED DISABILITY,Catering Equipment,"Amazon Svcs Europe,SAR",17/06/2015,39.94
INTEGRATED DISABILITY,Domestic Goods-Other,Amazon UK Marketplace,17/06/2015,28.74
OLDER PEOPLE,Catering Food & Drink,ICELAND,17/06/2015,49.80
OTHER - ADULTS,Domestic Goods-Other,ARGOS RETAIL GROUP,17/06/2015,199.99
BALANCE SHEET,VAT,"Amazon Svcs Europe,SAR",17/06/2015,0.00
BALANCE SHEET,VAT,Amazon UK Marketplace,17/06/2015,0.00
BALANCE SHEET,VAT,CASH ADVANCE FEE,17/06/2015,0.00
YOUTH OFFENDING SERVICE,Travel/Subsistence,LUL TICKET MACHINE,17/06/2015,30.00
YOUTH OFFENDING SERVICE,Travel/Subsistence,LUL TICKET MACHINE,17/06/2015,100.00
LIBRARIES & ARCHIVE,Travel/Subsistence,OYSTER BUS AUTOTOP,17/06/2015,40.00
CORPORATE AFFAIRS,Use of Public Transport,LUL TICKET MACHINE,17/06/2015,50.00
CORPORATE AFFAIRS,Catering Food & Drink,MARKS & SPENCER,17/06/2015,36.60
CORPORATE AFFAIRS,Travel/Subsistence,NEW SOUTHERN RAILW,17/06/2015,12.00
CORPORATE AFFAIRS,Travel/Subsistence,TRAINLINE.COM,17/06/2015,107.41
FINANCIAL PLANNING AND MANAGEMENT,Taxi Fares,PARKER CAR SERVICE,17/06/2015,9.40
HOUSING MANAGEMENT SERVICES,Building-Timber,BREWERS,17/06/2015,210.12
HOUSING MANAGEMENT SERVICES,Building-Timber,BREWERS,17/06/2015,35.86
HOUSING MANAGEMENT SERVICES,Facilities-Design & Photography,HOSPEDIAHOSPITALTV,17/06/2015,75.00
HOUSING MANAGEMENT SERVICES,Facilities-Design & Photography,HOSPEDIAHOSPITALTV,17/06/2015,-27.50
HOUSING MANAGEMENT SERVICES,Facilities-Market Research,Amazon Prime,17/06/2015,-79.00
HOUSING MANAGEMENT SERVICES,Facilities-Market Research,WWW.INSIDEHG.CO.UK R/T,17/06/2015,64.50
HOUSING CAPITAL & ASSET MANAGEMENT,Legal Services-Other,HMCOURTS-SERVICE.G,17/06/2015,120.00
DAY CENTRES,Travel/Subsistence,OYSTER BUS AUTOTOP,18/06/2015,20.00
BALANCE SHEET,VAT,1&1 INTERNET LIMITED,18/06/2015,23.98
BALANCE SHEET,VAT,Amazon UK Retail,18/06/2015,1.33
BALANCE SHEET,VAT,CITB,18/06/2015,5.00
BALANCE SHEET,VAT,CITB,18/06/2015,5.00
BALANCE SHEET,VAT,CITB,18/06/2015,5.00
BALANCE SHEET,VAT,SURVEYMONKEYCOM/HELP,18/06/2015,49.83
BALANCE SHEET,VAT,WWW.OFFICEKITTENLTD.CO,18/06/2015,32.30
BALANCE SHEET,VAT,"Amazon Svcs Europe,SAR",18/06/2015,12.80
CHILDREN SAFEGUARDING & ASSESSMENTS,Facilities-Market Research,ARGOS DIRECT,18/06/2015,142.93
EARLY YEARS AND PARENTING,Catering Food & Drink,TESCO STORE 2143,18/06/2015,28.90
EARLY YEARS AND PARENTING,Facilities-Market Research,MAGSUBCRIPTIONS COM,18/06/2015,112.20
EARLY YEARS AND PARENTING,Travel/Subsistence,VIRGINTRAINS.CO.UK,18/06/2015,117.30
EARLY YEARS AND PARENTING,Catering Food & Drink,TESCO STORE 2143,18/06/2015,29.99
EARLY YEARS AND PARENTING,Catering Food & Drink,TESCO STORE 2143,18/06/2015,14.12
EARLY YEARS QUALITY IMPROVEMENT,Education-Other,THE MAKATON CHARIT,18/06/2015,68.00
EMPLOYMENT & ENTERPRISE - E&L,Catering Food & Drink,ICELAND,18/06/2015,5.80
EMPLOYMENT & ENTERPRISE - E&L,Catering Food & Drink,SAINSBURYS S/MKTS,18/06/2015,3.30
EMPLOYMENT & ENTERPRISE - E&L,Catering Food & Drink,SAINSBURYS S/MKTS,18/06/2015,5.00
EMPLOYMENT & ENTERPRISE - E&L,Catering Food & Drink,TESCO STORES 6567,18/06/2015,21.40
EMPLOYMENT & ENTERPRISE - E&L,Catering Food & Drink,TESCO-STORES 6567,18/06/2015,25.01
EMPLOYMENT & ENTERPRISE - E&L,Education-Other,CITB,18/06/2015,25.00
EMPLOYMENT & ENTERPRISE - E&L,Education-Other,CITB,18/06/2015,25.00
EMPLOYMENT & ENTERPRISE - E&L,Education-Other,CITB,18/06/2015,25.00
EMPLOYMENT & ENTERPRISE - E&L,Education-Other,PAYPAL *TOBY THOMAS,18/06/2015,145.00
EMPLOYMENT & ENTERPRISE - E&L,Facilities-Market Research,SURVEYMONKEYCOM/HELP,18/06/2015,249.17
EMPLOYMENT & ENTERPRISE - E&L,IT Services,1&1 INTERNET LIMITED,18/06/2015,119.88
EMPLOYMENT & ENTERPRISE - E&L,Stationery,Amazon UK Retail,18/06/2015,6.67
EMPLOYMENT & ENTERPRISE - E&L,Stationery,WWW.OFFICEKITTENLTD.CO,18/06/2015,161.48
EMPLOYMENT & ENTERPRISE - E&L,Travel/Subsistence,OYSTER AUTOTOPUP,18/06/2015,20.00
EMPLOYMENT & ENTERPRISE - E&L,Travel/Subsistence,OYSTER AUTOTOPUP,18/06/2015,20.00
EMPLOYMENT & ENTERPRISE - E&L,Travel/Subsistence,OYSTER AUTOTOPUP,18/06/2015,20.00
EMPLOYMENT & ENTERPRISE - E&L,Travel/Subsistence,OYSTER AUTOTOPUP,18/06/2015,20.00
EMPLOYMENT & ENTERPRISE - E&L,Travel/Subsistence,OYSTER AUTOTOPUP,18/06/2015,20.00
EMPLOYMENT & ENTERPRISE - E&L,Travel/Subsistence,OYSTER AUTOTOPUP,18/06/2015,20.00
EMPLOYMENT & ENTERPRISE - E&L,Travel/Subsistence,OYSTER BUS AUTOTOP,18/06/2015,20.00
EMPLOYMENT & ENTERPRISE - E&L,Travel/Subsistence,OYSTER BUS AUTOTOP,18/06/2015,20.00
EMPLOYMENT & ENTERPRISE - E&L,Travel/Subsistence,OYSTER BUS AUTOTOP,18/06/2015,40.00
EMPLOYMENT & ENTERPRISE - E&L,Travel/Subsistence,OYSTER BUS AUTOTOP,18/06/2015,20.00
EMPLOYMENT & ENTERPRISE - E&L,Travel/Subsistence,OYSTER RENEW WEB,18/06/2015,24.10
EMPLOYMENT & ENTERPRISE - E&L,Travel/Subsistence,OYSTER RENEW WEB,18/06/2015,24.10
EMPLOYMENT & ENTERPRISE - E&L,Travel/Subsistence,OYSTER RENEW WEB,18/06/2015,24.10
EMPLOYMENT & ENTERPRISE - E&L,Travel/Subsistence,OYSTER RENEW WEB,18/06/2015,32.10
EMPLOYMENT & ENTERPRISE - E&L,Travel/Subsistence,OYSTER RENEW WEB,18/06/2015,32.10
EMPLOYMENT & ENTERPRISE - E&L,Travel/Subsistence,OYSTER RENEW WEB,18/06/2015,32.10
LIBRARIES & ARCHIVE,Education-Library Books,"Amazon Svcs Europe,SAR",18/06/2015,2.12
LIBRARIES & ARCHIVE,Education-Library Books,"Amazon Svcs Europe,SAR",18/06/2015,14.26
LIBRARIES & ARCHIVE,Education-Library Books,"Amazon Svcs Europe,SAR",18/06/2015,14.06
LIBRARIES & ARCHIVE,Education-Library Books,"Amazon Svcs Europe,SAR",18/06/2015,47.07
LIBRARIES & ARCHIVE,Education-Library Books,Amazon UK Marketplace,18/06/2015,33.11
LIBRARIES & ARCHIVE,Education-Library Books,Amazon UK Marketplace,18/06/2015,8.29
LIBRARIES & ARCHIVE,Education-Library Books,Amazon UK Retail,18/06/2015,10.49
LIBRARIES & ARCHIVE,Education-Library Books,Amazon UK Retail,18/06/2015,22.50
ADVENTURE PLAYGROUNDS & ONE O'CLOCK CLUBS,Catering Food & Drink,TESCO STORES 5999,18/06/2015,419.11
PROPERTY & FINANCIAL TRANSACTION SERVICES,Stationery,"Amazon Svcs Europe,SAR",18/06/2015,64.00
REVENUE & BENEFITS,Travel/Subsistence,OYSTER AUTOTOPUP,18/06/2015,20.00
DAY CENTRES,Financial Services,SAIN - BRIXTON,19/06/2015,400.00
OLDER PEOPLE,Catering Food & Drink,ICELAND,19/06/2015,17.60
BALANCE SHEET,VAT,Amazon UK Marketplace,19/06/2015,3.58
BALANCE SHEET,VAT,Amazon UK Retail,19/06/2015,10.32
BALANCE SHEET,VAT,TRAVELODGE WEBSITE,19/06/2015,108.10
CHILDREN LOOKED AFTER,Accommodation,TRAVELODGE WEBSITE,19/06/2015,540.50
CHILDREN LOOKED AFTER,Travel/Subsistence,EUROSTAR INT ECC,19/06/2015,165.50
QUALITY ASSURANCE & PERFORMANCE,IT Hardware,Amazon UK Retail,19/06/2015,51.63
LIBRARIES & ARCHIVE,Travel/Subsistence,OYSTER BUS AUTOTOP,19/06/2015,20.00
LIBRARIES & ARCHIVE,Catering Food & Drink,SAINSBURYS S/MKTS,19/06/2015,13.20
PROPERTY & FINANCIAL TRANSACTION SERVICES,IT Consumables,Amazon UK Marketplace,19/06/2015,17.88
FINANCIAL PLANNING AND MANAGEMENT,Travel/Subsistence,OYSTER AUTOTOPUP,21/06/2015,20.00
FINANCIAL PLANNING AND MANAGEMENT,Travel/Subsistence,OYSTER AUTOTOPUP,21/06/2015,20.00
DAY CENTRES,Financial Services,CASH ADVANCE FEE,22/06/2015,11.80
INTEGRATED DISABILITY,Catering Food & Drink,TESCO STORE 2764,22/06/2015,26.41
INTEGRATED DISABILITY,Catering Food & Drink,TESCO STORE 2764,22/06/2015,31.60
INTEGRATED DISABILITY,Domestic Goods-Other,CURRYS SUPERSTORE,22/06/2015,149.99
OTHER - ADULTS,Legal Services-Other,COUNTY COURT,22/06/2015,280.00
BALANCE SHEET,VAT,CURRYS SUPERSTORE,22/06/2015,0.00
BALANCE SHEET,VAT,TESCO STORE 2764,22/06/2015,0.00
BALANCE SHEET,VAT,COLUMBUS TRAINLINE,22/06/2015,0.00
BALANCE SHEET,VAT,COLUMBUS TRAINLINE,22/06/2015,0.00
BALANCE SHEET,VAT,DAILY.CO.UK,22/06/2015,0.00
BALANCE SHEET,VAT,TRAINLINE.COM,22/06/2015,0.00
BALANCE SHEET,VAT,TRAINLINE.COM,22/06/2015,0.00
BALANCE SHEET,VAT,MACH 1 COURIERS,22/06/2015,2.12
BALANCE SHEET,VAT,MACH 1 COURIERS,22/06/2015,51.53
BALANCE SHEET,VAT,MACH 1 COURIERS,22/06/2015,4.32
CHILDREN LOOKED AFTER,Couriers,MACH 1 COURIERS,22/06/2015,380.35
CHILDREN LOOKED AFTER,Couriers,MACH 1 COURIERS,22/06/2015,25.80
CHILDREN LOOKED AFTER,Couriers,MACH 1 COURIERS,22/06/2015,235.26
CHILDREN LOOKED AFTER,Couriers,MACH 1 COURIERS,22/06/2015,17.29
CHILDREN SAFEGUARDING & ASSESSMENTS,Domestic Goods-Other,ARGOS,22/06/2015,71.24
CHILDREN SAFEGUARDING & ASSESSMENTS,Domestic Goods-Other,ARGOS,22/06/2015,71.23
LIBRARIES & ARCHIVE,Education-Library Books,"Amazon Svcs Europe,SAR",22/06/2015,7.56
REVENUE & BENEFITS,Travel/Subsistence,LONDON & SOUTH EAS,22/06/2015,63.00
REVENUE & BENEFITS,Travel/Subsistence,LONDON & SOUTH EAS,22/06/2015,444.00
REVENUE & BENEFITS,Travel/Subsistence,LONDON & SOUTH EAS,22/06/2015,169.40
POLICY & COMMUNICATIONS,Financial Services-Insurance,COLUMBUS TRAINLINE,22/06/2015,2.00
POLICY & COMMUNICATIONS,IT Services,DAILY.CO.UK,22/06/2015,79.10
POLICY & COMMUNICATIONS,Travel/Subsistence,TRAINLINE.COM,22/06/2015,238.17
POLICY & COMMUNICATIONS,Financial Services-Insurance,COLUMBUS TRAINLINE,22/06/2015,2.00
POLICY & COMMUNICATIONS,Travel/Subsistence,TRAINLINE.COM,22/06/2015,20.25
NEIGHBOURHOODS,IT Office Equipment,Amazon UK Marketplace,22/06/2015,29.89
PUBLIC HEALTH - ADULTS,Healthcare Services,MID YORKSHIRE H,23/06/2015,134.00
PUBLIC HEALTH - ADULTS,Healthcare Services,NHS SBS,23/06/2015,133.00
PUBLIC HEALTH - ADULTS,Healthcare Services,TAUNTON&SOMERSET NHS T,23/06/2015,245.07
BALANCE SHEET,VAT,THE OFFICE ISLINGT,23/06/2015,16.00
CHILDREN SAFEGUARDING & ASSESSMENTS,Childcare Services,RADIO TAXIS,23/06/2015,517.00
LIBRARIES & ARCHIVE,Education-Library Books,Amazon UK Marketplace,23/06/2015,16.25
POLICY & COMMUNICATIONS,Professional & Advisory Services,THE OFFICE ISLINGT,23/06/2015,80.00
POLICY & COMMUNICATIONS,Horticultural-Other,JANET EDWARDS LONDON B,23/06/2015,35.00
HOUSING MANAGEMENT - REPAIRS & MAINTENANCE,Catering Food & Drink,TESCO STORE 2143,23/06/2015,179.64
HOUSING MANAGEMENT - REPAIRS & MAINTENANCE,IT Services,SURVEYMONKEY.COM,23/06/2015,299.00
HOUSING MANAGEMENT - REPAIRS & MAINTENANCE,Travel/Subsistence,TRAINLINE.COM,23/06/2015,146.37
HOUSING MANAGEMENT - REPAIRS & MAINTENANCE,Vehicle Hire,EC VEHICLE RENTAL,23/06/2015,104.65
HOUSING MANAGEMENT - REPAIRS & MAINTENANCE,Vehicle Maintenance,CROXTED MOTORS,23/06/2015,37.88
HOUSING CAPITAL & ASSET MANAGEMENT,Legal Services-Other,HMCOURTS-SERVICE.G,23/06/2015,20.00
BALANCE SHEET,VAT,EUROFFICE.CO.UK,24/06/2015,20.00
YOUTH OFFENDING SERVICE,IT Office Equipment,EUROFFICE.CO.UK,24/06/2015,99.99
LIBRARIES & ARCHIVE,Education-Library Books,Amazon UK Marketplace,24/06/2015,12.32
FINANCIAL PLANNING AND MANAGEMENT,Taxi Fares,IDEAL TAXIS,24/06/2015,21.50
INTERNAL AUDIT,Financial Services,GRO HM PASSPORT OFFICE,24/06/2015,-9.25
INTERNAL AUDIT,Travel/Subsistence,OYSTER BUS AUTOTOP,24/06/2015,60.00
HOUSING MANAGEMENT SERVICES,Travel/Subsistence,OYSTER BUS AUTOTOP,24/06/2015,20.00
HOUSING CAPITAL & ASSET MANAGEMENT,Legal Services-Other,HMCOURTS-SERVICE.G,24/06/2015,240.00
HOUSING CAPITAL & ASSET MANAGEMENT,Legal Services-Other,HMCOURTS-SERVICE.G,24/06/2015,220.00
INTEGRATED DISABILITY,Financial Services,SAIN - BRIXTON,25/06/2015,400.00
INTEGRATED DISABILITY,Travel/Subsistence,NEWS AT NINE,25/06/2015,250.00
INTEGRATED DISABILITY,Catering Food & Drink,TESCO STORE 3205,25/06/2015,69.63
INTEGRATED DISABILITY,Catering Food & Drink,TESCO-STORES 3205,25/06/2015,9.64
INTEGRATED DISABILITY,Financial Services,NATWEST BANK /,25/06/2015,400.00
BALANCE SHEET,VAT,TESCO STORE 3205,25/06/2015,0.00
BALANCE SHEET,VAT,NEWS AT NINE,25/06/2015,0.00
BALANCE SHEET,VAT,SAIN - BRIXTON,25/06/2015,0.00
BALANCE SHEET,VAT,CUPBOARDS DIRECT L,25/06/2015,103.40
LIBRARIES & ARCHIVE,Education-Library Books,Amazon Prime,25/06/2015,-72.68
LIBRARIES & ARCHIVE,Education-Library Books,"Amazon Svcs Europe,SAR",25/06/2015,31.79
LIBRARIES & ARCHIVE,Education-Library Books,Amazon UK Marketplace,25/06/2015,8.50
LIBRARIES & ARCHIVE,Education-Library Books,Amazon UK Marketplace,25/06/2015,13.72
LIBRARIES & ARCHIVE,Education-Library Books,Amazon UK Marketplace,25/06/2015,13.75
LIBRARIES & ARCHIVE,Education-Library Books,Amazon UK Retail,25/06/2015,10.95
FINANCIAL PLANNING AND MANAGEMENT,Domestic Goods-Other,ARGOS RETAIL GROUP,25/06/2015,68.74
FINANCIAL PLANNING AND MANAGEMENT,Furniture-Domestic Furniture,DREAMS LTD,25/06/2015,477.99
FINANCIAL PLANNING AND MANAGEMENT,Stationery,TESCO STORES 5342,25/06/2015,5.04
INTERNAL AUDIT,Financial Services,LBL NOT PRESENT,25/06/2015,10.17
INTERNAL AUDIT,Financial Services,LBL NOT PRESENT,25/06/2015,10.17
INTERNAL AUDIT,Financial Services,LEWISHAM COUNCIL,25/06/2015,10.85
INTERNAL AUDIT,Travel/Subsistence,LONDON MIDLAND INT,25/06/2015,74.00
INTERNAL AUDIT,Travel/Subsistence,TFL CC/LEZ CHARGE,25/06/2015,11.50
INTERNAL AUDIT,Travel/Subsistence,TFL CC/LEZ CHARGE,25/06/2015,11.50
INTERNAL AUDIT,Travel/Subsistence,TFL CC/LEZ CHARGE,25/06/2015,11.50
INTERNAL AUDIT,Travel/Subsistence,THE CHILTERN RLYWY,25/06/2015,9.00
INTERNAL AUDIT,Furniture-Domestic Furniture,CUPBOARDS DIRECT L,25/06/2015,517.00
INTEGRATED DISABILITY,Financial Services,CASH ADVANCE FEE,26/06/2015,11.80
BALANCE SHEET,VAT,CASH ADVANCE FEE,26/06/2015,11.80
BALANCE SHEET,VAT,Amazon UK Marketplace,27/06/2015,2.66
BALANCE SHEET,VAT,SHOP.WISLEY.CO.UK,27/06/2015,7.32
BALANCE SHEET,VAT,EB SOCIAL MEDIA INSIG,27/06/2015,80.00
CHILDREN LOOKED AFTER,Accommodation,CROYDON PARK HOTEL,27/06/2015,469.20
REVENUE & BENEFITS,Consultancy-Business,EB SOCIAL MEDIA INSIG,27/06/2015,419.30
POLICY & COMMUNICATIONS,Domestic Goods-Other,Amazon UK Marketplace,27/06/2015,13.32
POLICY & COMMUNICATIONS,Domestic Goods-Other,IDCLIMITED,27/06/2015,"2,115.67"
POLICY & COMMUNICATIONS,Domestic Goods-Other,PAYPAL *FROSTS,27/06/2015,54.48
POLICY & COMMUNICATIONS,Domestic Goods-Other,SHOP.WISLEY.CO.UK,27/06/2015,36.63
POLICY & COMMUNICATIONS,Facilities-Market Research,CTC*CONSTANTCONTACT.COM,27/06/2015,70.80
POLICY & COMMUNICATIONS,Financial Services,WANDSWORTH COUNCIL INT,27/06/2015,70.00
POLICY & COMMUNICATIONS,Taxi Fares,WWW.ADDISONLEE.COM,27/06/2015,17.80
POLICY & COMMUNICATIONS,Travel/Subsistence,OYSTER AUTOTOPUP,27/06/2015,40.00
POLICY & COMMUNICATIONS,Travel/Subsistence,OYSTER BUS AUTOTOP,27/06/2015,40.00
OLDER PEOPLE,Catering Food & Drink,ICELAND,29/06/2015,30.00
BALANCE SHEET,VAT,CURRYS ONLINE,29/06/2015,119.99
BALANCE SHEET,VAT,IKEA ONLINE,29/06/2015,167.54
CHILDREN LOOKED AFTER,Financial Services,HARINGEY COUNCIL,29/06/2015,11.00
CHILDREN LOOKED AFTER,Travel/Subsistence,EXPEDIA 17546061675,29/06/2015,"1,002.60"
CHILDREN LOOKED AFTER,Travel/Subsistence,EXPEDIA 17546063197,29/06/2015,42.06
CHILDREN LOOKED AFTER,Travel/Subsistence,VIR ATL EMSPQY,29/06/2015,198.44
CHILDREN LOOKED AFTER,Accommodation,CROYDON PARK HOTEL,29/06/2015,90.00
CHILDREN LOOKED AFTER,Domestic Goods-Other,CURRYS ONLINE,29/06/2015,599.96
CHILDREN LOOKED AFTER,Domestic Goods-Other,CURRYS ONLINE,29/06/2015,-719.95
CHILDREN LOOKED AFTER,Domestic Goods-Other,WWW.COOPELECTRICAL,29/06/2015,329.99
CHILDREN LOOKED AFTER,Furniture-Domestic Furniture,IKEA ONLINE,29/06/2015,837.71
CHILDREN SAFEGUARDING & ASSESSMENTS,Accommodation,THE REMBRANDT,29/06/2015,25.00
CHILDREN SAFEGUARDING & ASSESSMENTS,Financial Services,UKBA3735888563,29/06/2015,184.00
LIBRARIES & ARCHIVE,Education-Library Books,"Amazon Svcs Europe,SAR",29/06/2015,34.92
LIBRARIES & ARCHIVE,Education-Library Books,Amazon UK Marketplace,29/06/2015,16.52
LIBRARIES & ARCHIVE,Education-Library Books,Amazon UK Marketplace,29/06/2015,10.49
LIBRARIES & ARCHIVE,Education-Library Books,WWW.THEBOOKSELLER.COM,29/06/2015,196.00
FINANCIAL PLANNING AND MANAGEMENT,Financial Services,LAND REGISTRY,29/06/2015,9.00
FINANCIAL PLANNING AND MANAGEMENT,Financial Services,LAND REGISTRY,29/06/2015,9.00
FINANCIAL PLANNING AND MANAGEMENT,Financial Services,LAND REGISTRY,29/06/2015,6.00
FINANCIAL PLANNING AND MANAGEMENT,Financial Services,LAND REGISTRY,29/06/2015,3.00
FINANCIAL PLANNING AND MANAGEMENT,Financial Services,LAND REGISTRY,29/06/2015,12.00
FINANCIAL PLANNING AND MANAGEMENT,Financial Services,LAND REGISTRY,29/06/2015,3.00
INTERNAL AUDIT,Education-Library Books,"Amazon Svcs Europe,SAR",29/06/2015,186.66
OLDER PEOPLE,Catering Food & Drink,ICELAND,30/06/2015,36.00
BALANCE SHEET,VAT,Amazon UK Marketplace,30/06/2015,8.93
BALANCE SHEET,VAT,ALDEBURGH LIBRARY,30/06/2015,60.00
CHILDREN LOOKED AFTER,Accommodation,TRAVELODGE WEBSITE,30/06/2015,512.50
CHILDREN LOOKED AFTER,Couriers,MACH 1 COURIERS,30/06/2015,56.47
CHILDREN LOOKED AFTER,Building-Floors,CARPETRIGHT,30/06/2015,238.00
CHILDREN LOOKED AFTER,Facilities-Market Research,WAYFAIR STORES,30/06/2015,"1,073.02"
LIBRARIES & ARCHIVE,Education-Other,ALDEBURGH LIBRARY,30/06/2015,300.00
BUSINESS TRANSFORMATION,Charges and Penalties,MSFT *<E0600154QD>,30/06/2015,12.80
FINANCIAL PLANNING AND MANAGEMENT,Catering Food & Drink,BRIXTON NEWS,30/06/2015,30.60
HOUSING CAPITAL & ASSET MANAGEMENT,Legal Services-Other,HMCOURTS-SERVICE.G,30/06/2015,40.00
INTEGRATED DISABILITY,Building-Others,"Amazon Svcs Europe,SAR",01/07/2015,26.60
INTEGRATED DISABILITY,Building-Others,Amazon UK Retail,01/07/2015,8.09
INTEGRATED DISABILITY,Catering Food & Drink,TESCO STORE 2764,01/07/2015,65.11
PUBLIC HEALTH - ADULTS,Facilities-Printing,WWW.HPA.ORG.UK,01/07/2015,460.00
BALANCE SHEET,VAT,"Amazon Svcs Europe,SAR",01/07/2015,0.00
BALANCE SHEET,VAT,Amazon UK Retail,01/07/2015,0.00
BALANCE SHEET,VAT,TESCO STORE 2764,01/07/2015,0.00
BALANCE SHEET,VAT,PIPERS PROJECTS LTD,01/07/2015,30.00
FINANCIAL PLANNING AND MANAGEMENT,Travel/Subsistence,LUL TICKET MACHINE,01/07/2015,30.00
HUMAN RESOURCES & ORGANISATIONAL DEVELOPMENT (HRA),Financial Services,DISCLOSURE SCOT,01/07/2015,25.00
"PLANNING, TRANSPORT & DEVELOPMENT",Catering Food & Drink,SAINSBURYS S/MKTS,01/07/2015,39.18
"PLANNING, TRANSPORT & DEVELOPMENT",Catering Food & Drink,SAINSBURYS S/MKTS,01/07/2015,28.84
"PLANNING, TRANSPORT & DEVELOPMENT",Consultancy-Business,EB HACKNEY CYCLING CO,01/07/2015,113.25
"PLANNING, TRANSPORT & DEVELOPMENT",Consultancy-Business,EB THE RTPI AWARDS FO,01/07/2015,346.80
"PLANNING, TRANSPORT & DEVELOPMENT",Consultancy-Business,PIPERS PROJECTS LTD,01/07/2015,150.00
"PLANNING, TRANSPORT & DEVELOPMENT",Facilities-Printing,Am zon UK Ret il,01/07/2015,50.00
"PLANNING, TRANSPORT & DEVELOPMENT",Facilities-Storage,ACCESS SELF STORAG,01/07/2015,257.42
"PLANNING, TRANSPORT & DEVELOPMENT",Travel/Subsistence,LUL TICKET MACHINE,01/07/2015,35.00
"PLANNING, TRANSPORT & DEVELOPMENT",Travel/Subsistence,OYSTER BUS AUTOTOP,01/07/2015,20.00
"PLANNING, TRANSPORT & DEVELOPMENT",Travel/Subsistence,OYSTER BUS AUTOTOP,01/07/2015,20.00
"PLANNING, TRANSPORT & DEVELOPMENT",Travel/Subsistence,OYSTER BUS AUTOTOP,01/07/2015,20.00
"PLANNING, TRANSPORT & DEVELOPMENT",Travel/Subsistence,VIRGINTRAINSEC SERVCS,01/07/2015,66.75
HOUSING CAPITAL & ASSET MANAGEMENT,Legal Services-Other,HMCOURTS-SERVICE.G,01/07/2015,60.00
INTEGRATED DISABILITY,Building-Others,Amazon UK Marketplace,02/07/2015,20.61
BALANCE SHEET,VAT,Amazon UK Marketplace,02/07/2015,0.00
BALANCE SHEET,Personal,WWW.EDENRED.CO.UK,02/07/2015,-3.69
BALANCE SHEET,VAT,1&1 INTERNET LIMITED,02/07/2015,1.40
CHILDREN LOOKED AFTER,Accommodation,PREMIER INN44015170,02/07/2015,366.50
CHILDREN LOOKED AFTER,Financial Services,HM PASSPORT OFFICE,02/07/2015,46.00
CHILDREN SAFEGUARDING & ASSESSMENTS,Domestic Goods-Other,ARGOS,02/07/2015,47.99
EMPLOYMENT & ENTERPRISE - E&L,Catering Food & Drink,SAINSBURYS S/MKTS,02/07/2015,4.59
EMPLOYMENT & ENTERPRISE - E&L,Catering Food & Drink,SAINSBURYS S/MKTS,02/07/2015,8.54
EMPLOYMENT & ENTERPRISE - E&L,Catering Food & Drink,TESCO STORES-2143,02/07/2015,6.30
EMPLOYMENT & ENTERPRISE - E&L,Domestic Goods-Other,POUNDLAND LTD 1203,02/07/2015,11.00
EMPLOYMENT & ENTERPRISE - E&L,Education-Other,HIGH STREET VOUCHE,02/07/2015,454.25
EMPLOYMENT & ENTERPRISE - E&L,Education-Other,MARKS & SPENCER,02/07/2015,250.00
EMPLOYMENT & ENTERPRISE - E&L,IT Services,1&1 INTERNET LIMITED,02/07/2015,6.98
EMPLOYMENT & ENTERPRISE - E&L,Professional & Advisory Services,JIB,02/07/2015,30.22
EMPLOYMENT & ENTERPRISE - E&L,Stationery,WH SMITH,02/07/2015,7.99
EMPLOYMENT & ENTERPRISE - E&L,Taxi Fares,WWW.ADDISONLEE.COM,02/07/2015,21.30
EMPLOYMENT & ENTERPRISE - E&L,Travel/Subsistence,OYSTER AUTOTOPUP,02/07/2015,20.00
EMPLOYMENT & ENTERPRISE - E&L,Travel/Subsistence,OYSTER BUS AUTOTOP,02/07/2015,20.00
EMPLOYMENT & ENTERPRISE - E&L,Travel/Subsistence,OYSTER BUS AUTOTOP,02/07/2015,20.00
EMPLOYMENT & ENTERPRISE - E&L,Travel/Subsistence,OYSTER RENEW WEB,02/07/2015,32.10
EMPLOYMENT & ENTERPRISE - E&L,Travel/Subsistence,WWW.EDENRED.CO.UK,02/07/2015,258.43
REVENUE & BENEFITS,Legal Services-Other,HMCOURTS-SERVICE.G,02/07/2015,"5,577.00"
FINANCIAL PLANNING AND MANAGEMENT,Use of Public Transport,OYSTER BUS AUTOTOP,02/07/2015,20.00
DAY CENTRES,Furniture-Soft Furnishings,DUNELM LTD,03/07/2015,199.98
INTEGRATED DISABILITY,Building-Others,Amazon UK Marketplace,03/07/2015,3.05
BALANCE SHEET,VAT,Amazon UK Marketplace,03/07/2015,0.00
BALANCE SHEET,VAT,Amazon UK Marketplace,03/07/2015,17.94
BALANCE SHEET,VAT,Amazon UK Marketplace,03/07/2015,29.99
CHILDREN SAFEGUARDING & ASSESSMENTS,Financial Services,HM PASSPORT OFFICE,03/07/2015,46.00
CHILDREN SAFEGUARDING & ASSESSMENTS,Furniture-Domestic Furniture,KIDDICARE,03/07/2015,-19.99
FINANCE (HRA),Professional & Advisory Services,UK TRAINING WORLDWIDE LTD,03/07/2015,322.80
SENIOR MANAGEMENT - NEIGHBOURHOODS & GROWTH,IT Consumables,Amazon UK Marketplace,03/07/2015,149.95
BALANCE SHEET,VAT,LONDON LETTERBOX MARKETIN,04/07/2015,90.00
BALANCE SHEET,VAT,SPEED GATE ENTERPRISES LT,04/07/2015,12.50
BALANCE SHEET,VAT,Amazon UK Retail,04/07/2015,7.83
QUALITY ASSURANCE & PERFORMANCE,Travel/Subsistence,EXPEDIA19062699974,04/07/2015,38.00
QUALITY ASSURANCE & PERFORMANCE,Travel/Subsistence,OYSTER AUTOTOPUP,04/07/2015,40.00
QUALITY ASSURANCE & PERFORMANCE,Travel/Subsistence,OYSTER BUS AUTOTOP,04/07/2015,40.00
QUALITY ASSURANCE & PERFORMANCE,Travel/Subsistence,OYSTER BUS AUTOTOP,04/07/2015,40.00
QUALITY ASSURANCE & PERFORMANCE,Travel/Subsistence,TICKETOFFICESALE,04/07/2015,33.80
QUALITY ASSURANCE & PERFORMANCE,Travel/Subsistence,TSGN,04/07/2015,15.00
QUALITY ASSURANCE & PERFORMANCE,Travel/Subsistence,VIRGINTRAINSEC SERVCS,04/07/2015,12.00
QUALITY ASSURANCE & PERFORMANCE,Travel/Subsistence,VIRGINTRAINSEC SERVCS,04/07/2015,81.60
QUALITY ASSURANCE & PERFORMANCE,Travel/Subsistence,VIRGINTRAINSEC SERVCS,04/07/2015,161.00
PROPERTY & FINANCIAL TRANSACTION SERVICES,IT Office Equipment,Amazon UK Retail,04/07/2015,39.16
POLICY & COMMUNICATIONS,Consultancy-Business,LONDON LETTERBOX MARKETIN,04/07/2015,450.00
POLICY & COMMUNICATIONS,Couriers,SPEED GATE ENTERPRISES LT,04/07/2015,75.00
POLICY & COMMUNICATIONS,Facilities-Market Research,DAILY.CO.UK,04/07/2015,360.00
POLICY & COMMUNICATIONS,Horticultural-Other,SPEED GATE ENTERPRISES LT,04/07/2015,562.50
POLICY & COMMUNICATIONS,Mail Services-Postage,SAFESCAN B.V.,04/07/2015,5.90
POLICY & COMMUNICATIONS,Utilities,SAFESCAN B.V.,04/07/2015,499.00
POLICY & COMMUNICATIONS,Taxi Fares,WWW.ADDISONLEE.COM,04/07/2015,22.60
POLICY & COMMUNICATIONS,Travel/Subsistence,OYSTER BUS AUTOTOP,04/07/2015,40.00
INTEGRATED DISABILITY,Building-Others,Amazon UK Marketplace,05/07/2015,5.61
BALANCE SHEET,VAT,Amazon UK Marketplace,05/07/2015,0.00
DAY CENTRES,Financial Services,SAIN - BRIXTON,06/07/2015,400.00
INTEGRATED DISABILITY,Clothing-Other,"Amazon Svcs Europe,SAR",06/07/2015,41.80
INTEGRATED DISABILITY,Clothing-Other,Amazon UK Retail,06/07/2015,2.41
BALANCE SHEET,Personal,Amazon UK Retail,06/07/2015,-12.03
BALANCE SHEET,VAT,"Amazon Svcs Europe,SAR",06/07/2015,0.00
BALANCE SHEET,VAT,Amazon UK Retail,06/07/2015,0.00
BALANCE SHEET,VAT,GRANTS REMOVAL AND STORA,06/07/2015,300.00
BALANCE SHEET,VAT,GRANTS REMOVAL AND STORA,06/07/2015,217.80
BALANCE SHEET,VAT,HOOTSUITE MEDIA INC.,06/07/2015,4.80
BALANCE SHEET,VAT,Amazon UK Marketplace,06/07/2015,7.01
CHILDREN LOOKED AFTER,Accommodation,CROYDON PARK HOTEL,06/07/2015,84.00
CHILDREN LOOKED AFTER,Travel/Subsistence,MOMENTUMCOA,06/07/2015,103.49
CHILDREN LOOKED AFTER,Travel/Subsistence,MOMENTUMCOA,06/07/2015,"1,526.47"
CHILDREN SAFEGUARDING & ASSESSMENTS,Domestic Goods-Other,ARGOS DIRECT,06/07/2015,39.93
PROPERTY & FINANCIAL TRANSACTION SERVICES,Stationery,SAINSBURY'S SMKT,06/07/2015,26.97
REVENUE & BENEFITS,IT Consumables,Amazon UK Marketplace,06/07/2015,35.06
FINANCIAL PLANNING AND MANAGEMENT,Travel/Subsistence,TICKETOFFICESALE,06/07/2015,81.60
COMMUNICATIONS (HRA),Consultancy-Business,HOOTSUITE MEDIA INC.,06/07/2015,23.98
SENIOR MANAGEMENT - NEIGHBOURHOODS & GROWTH,Travel/Subsistence,TRAINLINE.COM,06/07/2015,30.14
SENIOR MANAGEMENT - NEIGHBOURHOODS & GROWTH,Travel/Subsistence,TRAINLINE.COM,06/07/2015,187.17
SENIOR MANAGEMENT - NEIGHBOURHOODS & GROWTH,Travel/Subsistence,TRAINLINE.COM,06/07/2015,75.58
SENIOR MANAGEMENT - NEIGHBOURHOODS & GROWTH,Travel/Subsistence,TRAINLINE.COM,06/07/2015,84.76
HOUSING MANAGEMENT SERVICES,Haulage,GRANTS REMOVAL AND STORA,06/07/2015,"1,200.00"
HOUSING MANAGEMENT SERVICES,Haulage,GRANTS REMOVAL AND STORA,06/07/2015,"1,282.20"
HOUSING CAPITAL & ASSET MANAGEMENT,Legal Services-Other,HMCOURTS-SERVICE.G,06/07/2015,80.00
DAY CENTRES,Domestic Goods-Other,CURRYS SUPERSTORE,07/07/2015,149.99
DAY CENTRES,Financial Services,CASH ADVANCE FEE,07/07/2015,11.80
INTEGRATED DISABILITY,Building-Others,Amazon UK Retail,07/07/2015,36.98
BALANCE SHEET,VAT,Amazon UK Retail,07/07/2015,0.00
EARLY HELP,Stationery,J D SPORTS 651,07/07/2015,95.00
EARLY HELP,Stationery,TK MAXX,07/07/2015,25.97
LIBRARIES & ARCHIVE,Education-Library Books,"Amazon Svcs Europe,SAR",07/07/2015,6.22
LIBRARIES & ARCHIVE,Education-Library Books,"Amazon Svcs Europe,SAR",07/07/2015,17.44
LIBRARIES & ARCHIVE,Education-Library Books,Amazon UK Marketplace,07/07/2015,7.79
LIBRARIES & ARCHIVE,Education-Library Books,Amazon UK Marketplace,07/07/2015,10.80
LIBRARIES & ARCHIVE,Education-Library Books,Amazon UK Marketplace,07/07/2015,3.59
FINANCIAL PLANNING AND MANAGEMENT,Travel/Subsistence,WRYTHE GREEN NEWSAGENT,07/07/2015,30.80
HOUSING CAPITAL & ASSET MANAGEMENT,HMRC Fees,HMCOURTS-SERVICE.G,07/07/2015,100.00
INTEGRATED DISABILITY,Financial Services,SAIN - BRIXTON,08/07/2015,400.00
OLDER PEOPLE,Catering Food & Drink,ICELAND,08/07/2015,73.96
OLDER PEOPLE,Catering Food & Drink,MN WEST NORWOOD HALAL,08/07/2015,17.00
OLDER PEOPLE,Catering Food & Drink,MN WEST NORWOOD HALAL,08/07/2015,124.72
OLDER PEOPLE,Financial Services,ATM BARCLAYS BANK PLC,08/07/2015,300.00
CHILDREN SAFEGUARDING & ASSESSMENTS,Domestic Goods-Other,ARGOS DIRECT,08/07/2015,238.94
FINANCIAL PLANNING AND MANAGEMENT,Travel/Subsistence,OYSTER AUTOTOPUP,08/07/2015,20.00
FINANCIAL PLANNING AND MANAGEMENT,Travel/Subsistence,OYSTER AUTOTOPUP,08/07/2015,20.00
